Workbook

Sheet PISA JUNIO 2019 (hidden)

Sheet ANEXO AySA NOTAS MONTOS (hidden)
C1: ANEXO AySA - NOTAS EN CAMPOS CORRESPONDIENTES A "MONTOS ORIGINAL", "MODIFICACIONES MONTO ORIGINAL" Y "MONTO VIGENTE"
A4: DIRECCION | B4: NOTA | C4: OC | D4: CONTRATISTA | E4: Revisión | F4: Monto revisiones | G4: Monto original con IVA Total OC | H4: Monto Revisiones con IVA - Total OC | I4: Monto vigente con IVA Total OC | J4: Monto estimado inversiones sobre el monto vigente con IVA | K4: Observaciones
A5: DRCF | B5: NOTA 1 | C5: 17305 | D5: COMPANIA SUDAMERICANA DE GAS S.A. | E5: Rev. 1 - ítems 13 al 24;Rev. 1 - ítems 25 al 30 | F5: 3.389.147,7; 282.283,89 | G5: =+I5-H5 -> 13669562.39 | H5: =(3389147.7+282283.89)*1.21 -> 4442432.224 | I5: 18111994.61
B6: NOTA 2 | C6: 17306 | D6: CONSTRUCCIONES ZUBDESA S.A. | E6: Rev. 1 Items 9 al 16. Rev 2 Items 17 al 20 | F6: $1.503.267,90;$ 117.073,47 | G6: 6063180.53 | H6: =(1503267.9+117073.47)*1.21 -> 1960613.058 | I6: 8023793.588
B7: NOTA 3 | C7: 20690 | D7: CONSTRUCCIONES ZUBDESA S.A. | E7: Rev. 1 ítems 25 al 32; Rev. 2 ítems 33 a 40; Rev 3 ítems 41 a 48; Rev. 4 ítems 49, 50 y 51- Se reduce monto ítems 9, 11, 17, 18 y 40;Rev. 6 items 52,53,54. | F7: $654.958,02;$756.289,58; $1.303.101,49;0;21.041.820,68 | G7: 55992515.5 | H7: =(654958.02+756289.58+1303101.49+21041820.68)*1.21 -> 28744965.42 | I7: 84737480.92
B8: NOTA 4 | C8: 20691 | D8: COMPANIA SUDAMERICANA DE GAS S.A. | E8: Rev. 1 ítem 25 a 27; Rev. 2 ítems 28 al 35;Rev. 3 ítems 51 al 58; Rev. 4 ítems 45 a 50;Rev. 5 ítems 51 a 58 | F8: $12.000.000;1.316.956,80;$1.587.171,06;$43.441.043;$3.085.787,72 | G8: 93613715.81 | H8: =(12000000+1316956.8+1587171.06+43441043+3085787.72)*1.21 -> 74331459.88 | I8: 167945175.7
A9: DRO | B9: NOTA 5 | C9: 3997 | D9: Construcciones Zubdesa S.A. | E9: Rev 1. Items 9, 10 y 11;Rev.2 ítems n° 12, 13 y 14; Rev. 4 ítems N° 15 al 18;Rev. 5 Items 19 a 22. | F9: $ 1.022.139; $ 326.643,00.-;$ 13.640.216,00;$ 346.776,00 | G9: 26210235.92 | H9: =(1022139+326643+13640216+346776)*1.21 -> 18556286.54 | I9: 44766522.46
B10: NOTA 6 | C10: 17310 | D10: Construcciones Zubdesa S.A. | E10: Rev. 2 ítems 17 al 22;Rev. 3 ítems 23 al 30 | F10: $ 2.235.000.-; $201.975 | G10: 13447670.17 | H10: =(2235000+201975)*1.21 -> 2948739.75 | I10: 16396409.92 | J10: 8721442.84
B11: NOTA 7 | C11: 11530 | D11: APCO SA | E11: Sin revision | F11: Sin revision | G11: =+I11 -> 332095.2085 | H11: 0 | I11: 332095.2085
B12: NOTA 8 | C12: 17605 | D12: Rowing SA | E12: Sin revision | F12: Sin revision | G12: =+I12 -> 542789.5319 | H12: 0 | I12: 542789.5319
B13: NOTA 9 | C13: 20694 | D13: Construcciones Zubdesa S.A. | E13: Rev. 1 ítem 41 a 60;Rev. 2 ítems 63 al 72;Rev. 3 ítems 73 y 74.;Rev. 4 ítems 77 y 78; Rev. 5 ítem 79 y 80 | F13: $1.325.141.;$ 907.443;$ 2.137.676;$ 1.554.174; $ 11.642.103 | G13: 95550462.38 | H13: 21255509.77 | I13: =+G13+H13 -> 116805972.1 | J13: 54760237.24
B14: NOTA 26 | C14: 20695 | D14: C&E Construcciones S.A. | E14: Rev. 1 ítem 33 a 48;Rev. 2 ítems 49 al 56;Rev. 3 ítems 57 y 58.;Rev. 4 ítems 59 y 60 | F14: $695.535; $447.219; $1.029.435; $809.920 | G14: 67316984.45 | H14: 3608351.89 | I14: =+G14+H14 -> 70925336.34 | J14: 37356369.23
A15: DRSE | B15: NOTA 10 | C15: 4000 | D15: APCO S.A. | E15: Rev. 1 Items 4, 5 y 6;Rev.2 Items 7 a 9;Rev. 3 Items 10 a 12; Rev 4 Items 13 a 15;Rev 5 Ítems 16 a 27 | F15: 11315457;$ 444,822.00;$12.850.000,00;$ 1.430.000,00;$ 539.479,53 | G15: =+I15-H15 -> 20464913.92 | H15: =(11315457+444822+12850000+1430000+539479.53)*1.21 -> 32161507.82 | I15: 52626421.74
B16: NOTA 11 | C16: 4003 | D16: TORASSO-SAUCEDAL UTE | E16: Rev. 1 Items 4 y 5;Rev. 2 items 6 a 8 ;Rev. 4 Items 9 a 11 ;Rev. 5 Items 12 a 13 | F16: $ 2781951;$ 287.705,00;$ 5.232.000,00;$ 2.137.000,00 | G16: 16575913.9 | H16: =(2781951+287705+5232000+2137000)*1.21 -> 12630773.76 | I16: 29206687.66
B17: NOTA 12 | C17: 17312 | D17: COMPANIA SUDAMERICANA DE GAS S.A. | E17: Rev. 1 ítems 16 al 21; Rev. 2 ítems 22 a 27. | F17: $2.967.163,70.;$303.347,72.- | G17: 11967560.33 | H17: =(2967163.7+303347.72)*1.21 -> 3957318.818 | I17: 15924879.15
B18: NOTA 13 | C18: 17313 | D18: TORASSO-SAUCEDAL UTE | E18: Rev. 1 ítems 11 al 14;Rev. 3 ítems 15 al 18 | F18: $275.000,00.;$54.340,16. | G18: 3465915.082 | H18: =(275000+54340.16)*1.21 -> 398501.5936 | I18: 3864416.676
B19: NOTA 14 | C19: 20696 | D19: COMPANIA SUDAMERICANA DE GAS S.A. | E19: Rev. 1 ítems 25 al 36;Rev. 2 ítems 37 al 42;Rev. 3 ítems 43 al 48; Rev. 4 ítems 49 a 55 con reducción de items varios; Rev. 5 ítems 56 al 61 | F19: $1.204.899,11;$995.179,10;$2.122.439,11;0;$1.752.592,62 | G19: 81107297.86 | H19: =(1204899.11+995179.1+2122439.11+1752592.62)*1.21 -> 7350883.027 | I19: 88458180.89
B20: NOTA 15 | C20: 20697 | D20: TORASSO-SAUCEDAL UTE | E20: Rev. ítems 25 al 32; Rev. 2 items 23 a 26; Rev.3 Items 27 a 30; Rev 4 items 31 al 34 | F20: $175.746,23.-;$184.978,74;$ 391.702,67;$287.356,05.- | G20: 25347685.29 | H20: =(175746.23+184978.74+391702.67+287356.05)*1.21 -> 1258138.265 | I20: 26605823.56
B21: NOTA 16 | C21: 31162 | D21: COMPANIA SUDAMERICANA DE GAS S.A. | E21: Sin revision | F21: Sin revision | G21: =+I21 -> 11164859.27 | H21: 0 | I21: 11164859.27 | J21: =(391483.65+947823.78+2868174.91+1892036.4)*1.21 -> 7380417.675
A22: DRSO | B22: NOTA 17 | C22: 17314 | D22: Torasso Saucedal | E22: 12393394.75 | H22: =(1300000+171305.42)*1.21 -> 1780279.558 | I22: 12393394.75
B23: NOTA 18 | C23: 20698 | D23: Torasso Saucedal UTE | E23: Rev. 2 items 58 a 69;Rev.3 ítems 70 a 77;Rev. 4 ítems 78 a 89;Rev. 5 ítems 90 a 104;Rev. 6 ítems 105 a 123; | F23: $736.227,31.-; $646.216,20.-; $1.214.270,49.-; $730.100,63;$ 12.962.410.- | G23: 66144806.19 | H23: =+I23-G23 -> 100575608.3 | I23: 166720414.5 | J23: 83003589.33
B24: -NOTA 18.1 | C24: 20698 | D24: Torasso Saucedal UTE | J24: 15982036.49 | K24: Inversiones - Municipios Almirante Brown - Esteban Echeverria
B25: -NOTA 18.2 | C25: 20698 | D25: Torasso Saucedal UTE | J25: 10977150.2 | K25: Inversiones - Municipios Almirante Brown - Esteban Echeverria - Ezeiza
B26: -NOTA 18.3 | C26: 20698 | D26: Torasso Saucedal UTE | J26: 7409965.04 | K26: Inversiones - Municipio de Ezeiza
B27: -NOTA 18.4 | C27: 20698 | D27: Torasso Saucedal UTE | J27: 32807109.18 | K27: Inversiones - Municipio de Lomas de Zamora
B28: -NOTA 18.5 | C28: 20698 | D28: Torasso Saucedal UTE | J28: 15827328.42 | K28: Inversiones - Región Sudoeste
B29: NOTA 19 | C29: 26334 | D29: APCO | E29: 287004.9094 | H29: 0 | I29: 287004.9094
A31: A+T | B31: NOTA 20 | C31: Cada proyecto de inversión de la Dirección de Desarrollo de la Comunidad incluye varios módulos, cuyo plazos de obra varía de acuerdo a la complejidad de las tareas, tipo de suelo, cantidad de metros. La duración promedio de cada módulo es de 8 a 12 meses
B34: NOTA 21 | C34: En 2012 los cargos en concepto de mano de obra no tienen IVA
A37: DI M&M | B37: NOTA 22 | C37: Proyectos 1060571/1060572/1060581/1060584/1060587/1060590/1060593 | G37: 5074689 | H37: =+I37-G37 -> 626367 | I37: 5701056 | K37: Este monto vigente fue prorrateado en función del monto de ejecución.
A40: A+T | B40: NOTA 23 | C40: Para el cálculo del monto contractual vigente, la Dirección de Desarrollo de la Comunidad (A+T), adiciona al monto del convenio, el monto ejecutado de materiales y contratistas con IVA, contratistas sin IVA (Sgbatos) por capacitaciones y mano de obra
E43: MONTO OC S/IVA | F43: MONTO OC C/IVA
A44: DRSO | B44: NOTA 26 | C44: 36943 | D44: TORASSO Construcciones S.R.L.-CyCO Asociados S.A.-CS Tarsa S.A. (UTE) | E44: 72151336.5 | F44: =+E44*1.21 -> 87303117.16
C46: 36942 | D46: TORASSO Construcciones S.R.L.-CyCO Asociados S.A.-CS Tarsa S.A. (UTE) | E46: 30080386.21 | F46: =+E46*1.21 -> 36397267.31
C48: 36941 | D48: TORASSO Construcciones S.R.L.-CyCO Asociados S.A.-CS Tarsa S.A. (UTE) | E48: 120679757.4 | F48: =+E48*1.21 -> 146022506.4
D51: N°OC | E51: CONTRATISTA | F51: MONTO OC S/IVA | G51: MONTO OC C/IVA | H51: VIGENCIA ORDEN DE COMPRA
A52: DRSE | B52: NOTA 27 | C52: 1659 - 1679-1680 | D52: 39632 | E52: COMPANIA SUDAMERICANA DE GAS S.A. | F52: 175166909.6 | G52: =F52*1.21 -> 211951960.6 | H52: 1/10/14 AL 30/09/17
D54: 39631 | E54: APCO S.A. | F54: 78685842.1 | G54: =F54*1.21 -> 95209868.94 | H54: 1/10/14 AL 30/09/17
C58: NOTA 24
C60: N° DE ORDEN: 298
C62: PROYECTO: N960502 - NUEVAS PERFORACIONES POR ADMINISTRACION OBRA CIVIL
C63: PROYECTO: N960503 - NUEVAS PERFORACIONES POR ADMINISTRACION OBRA ELECTROMECÁNICA
C65: Municipio | D65: Barrio / Localidad | E65: Localización exacta
C66: Almirante Brown | D66: Ministro Rivadavia | E66: Estanislao Cevallos a 650 mts R. Argentina
C67: Almirante Brown | D67: Ministro Rivadavia | E67: Calle Rivera a 700 mts Av. Espora
C68: Almirante Brown | D68: Burzaco | E68: Villarino a 700 mts. de Av. Argentina
C69: Esteban Echeverría | D69: Monte Grande | E69: Subtte. Gonzalez y Vias Metropolitano
C70: Esteban Echeverría | D70: Monte Grande | E70: Tte. Grande y Vias Metropolitano
C71: Esteban Echeverría | D71: Monte Grande | E71: Casacuberta e/ Av. Valette y J. V González
C72: Esteban Echeverría | D72: Monte Grande | E72: Lima e/ Av. Valette y Francia
C73: La Matanza | D73: Virrey del Pino | E73: Balleirini y Areco
C74: La Matanza | D74: Virrey del Pino | E74: Areco y California
C75: La Matanza | D75: Virrey del Pino | E75: Chivilcoy y California
C76: La Matanza | D76: Virrey del Pino | E76: Nahuel Huapi y Esperanza
C77: La Matanza | D77: Virrey del Pino | E77: Loefler e/ Villarroel y Fernandez
C78: La Matanza | D78: Virrey del Pino | E78: Pedro de Angelis s/n e/ Caldas y Nuñez
C79: La Matanza | D79: Virrey del Pino | E79: P. de Angelis y Nahuel Huapi
C80: La Matanza | D80: Virrey del Pino | E80: Nazarre Alejo y Paraná
C81: La Matanza | D81: Virrey del Pino | E81: Navarro y Paraná
C82: La Matanza | D82: Virrey del Pino | E82: California y Patagonia
C83: La Matanza | D83: Gonzalez Catán | E83: Barrientos e Iberá
C84: La Matanza | D84: Gonzalez Catán | E84: J. Nuwbery e/ Barrientos y Barragán
C85: La Matanza | D85: Rafael Castillo | E85: Esquiro e/ Eufrates y Chavarria
C88: NOTA 25
C90: N° DE ORDEN: 1274
C92: PROYECTO: 1054012 - INSTRUMENTACION - LP2
C94: INSTRUMENTOS | D94: CANTIDAD | E94: Estación Elevadora | F94: Partido | G94: Direcciòn
C95: Medidores de nivel para tanques de hipoclorito | D95: 4 | E95: EE Floresta | F95: Capital Federal | G95: Florentino Ameghino 1452
D96: 3 | E96: EE Lanús | F96: Lanús | G96: Salta 350 - Lanús
D97: 4 | E97: EE Constitución | F97: Capital Federal | G97: Pavon 1859. Capital
D98: 3 | E98: EE Centro | F98: Capital Federal | G98: Ayacucho 750
D99: 2 | E99: EE Devoto | F99: Capital Federal | G99: Navarro 4150
C100: Medidores de Temperatura sin contacto | D100: 1 | E100: EE Tres de Febrero | F100: Tres de Febrero | G100: M de Alvear 2300. J. Ingenieros
D101: 1 | E101: EE Caballito | F101: Capital Federal | G101: Av. Pedro Goyena 458
D102: 1 | E102: EE Centro | F102: Capital Federal | G102: Ayacucho 750
D103: 1 | E103: EE La Matanza | F103: La Matanza | G103: Av. San Martín y Nazca (Lomas del Mirador)
D104: 1 | E104: EE Devoto | F104: Capital Federal | G104: Navarro 4150
C105: Medidores de presión lineal con display digital | D105: 38 | E105: EE Devoto | F105: Capital Federal | G105: Navarro 4150
D106: 12 | E106: EE Centro | F106: Capital Federal | G106: Ayacucho 750
D107: 15 | E107: EE Caballito | F107: Capital Federal | G107: Av. Pedro Goyena 458
D108: 1 | E108: EE Constitución | F108: Capital Federal | G108: Pavon 1859. Capital
C109: Luxómetro digital | D109: 1 | E109: Oficina Técnica de EE | F109: Capital Federal | G109: Av. de los Ombúes 209
C110: Decibelímetro digital | D110: 1 | E110: Oficina Técnica de EE | F110: Capital Federal | G110: Av. de los Ombúes 209
C111: Medidores de nivel para cámaras de aspiración con display digital. | D111: 1 | E111: EE Floresta | F111: Capital Federal | G111: Florentino Ameghino 1452
D112: 1 | E112: EE Constitución | F112: Capital Federal | G112: Pavon 1859. Capital
D113: 1 | E113: EE Centro | F113: Capital Federal | G113: Ayacucho 750
D114: 1 | E114: EE Lanús | F114: Lanús | G114: Salta 350 - Lanús
D115: 1 | E115: EE Devoto | F115: Capital Federal | G115: Navarro 4150
D116: 1 | E116: EE Tres de Febrero | F116: Tres de Febrero | G116: M de Alvear 2300. J. Ingenieros
D117: 1 | E117: EE Morón | F117: Morón | G117: Derqui 1, y Acceso Oeste. Morón
D118: 1 | E118: EE Villa Adelina | F118: Vte. López | G118: Caxaraville 3530. Carapachay
D119: 1 | E119: EE Saveedra | F119: Capital Federal | G119: Mariano Acha 3465.
D120: 1 | E120: EE La Matanza | F120: La Matanza | G120: Av. San Martín y Nazca (Lomas del Mirador)
C121: Provisión de monitores de caudal electrónico para la protección de las bombas de EE Lanús y EE Quilmes. | D121: 5 | E121: EE Lanús | F121: Lanús | G121: Salta 350 - Lanús
D122: 5 | E122: EE Quilmes | F122: Quilmes | G122: Coronel Lynch 1600 - Avellaneda

Sheet POR JURISDICCION (hidden)
A4: INVERSIÓN EN LA CMR AL 30 DE JUNIO DE 2019
B6: RECURSOS NETOS DEVENGADOS EN LA CMR
B8: CONCEPTO | C8: DEVENGADO 2016 | D8: DEVENGADO 2017 | E8: DEVENGADO TOTAL 2018 | F8: DEVENGADO 1° SEMESTRE 2019
B10: TOTAL DE RECURSOS DEVENGADOS | C10: 8074389911 | D10: 1.546516175e+10 | E10: 2.110637671e+10 | F10: 1.2234075e+10
B11: TRANSFERENCIAS ENTRE JURISDICCIONES* | C11: -322947260 | D11: -2524242732 | E11: -2906354246 | F11: -2544026064
B13: RECURSOS NETOS DEVENGADOS EN LA CMR | C13: 7751442651 | D13: 1.294091902e+10 | E13: 1.820002247e+10 | F13: 9690048931
B15: *NOTA: Con el objetivo de reflejar los recursos netos devengados en la CMR, este concepto contempla aquellos recursos devengados por una Jurisdicción en concepto de transferencias a otra a cargo de su ejecución y que, por ende, deben ser deducidos para evitar duplicaciones.
B18: RECURSOS DEVENGADOS EN LA CMR - DETALLE POR JURISDICCIÓN
B20: NIVEL / SUBJURISDICCIÓN / PROGRAMA | C20: DEVENGADO 2016 | D20: DEVENGADO 2017 | E20: DEVENGADO 2018 | F20: DEVENGADO 1° SEMESTRE 2019
B21: 1. ESTADO NACIONAL | C21: 5945097035 | D21: 1.053848635e+10 | E21: 1.567017352e+10 | F21: 9241117840
B22: 2. PROVINCIA DE BS AS | C22: 745104337.5 | D22: 2015901532 | E22: 1530497713 | F22: 1265412010
B23: 3. CABA | C23: 703659556.6 | D23: 1887831924 | E23: 2146145174 | F23: 1121822089
B24: 4. ACUMAR | C24: 680528982.1 | D24: 1022941939 | E24: 1759560309 | F24: 605723056.2
B25: TOTAL DE RECURSOS DEVENGADOS | C25: 8074389911 | D25: 1.546516175e+10 | E25: 2.110637671e+10 | F25: 1.2234075e+10

Sheet Total de obras
B2: Inversiones Cuenca Matanza Riachuelo - Ejecución Diciembre 2022
B4: ID | C4: NIVEL | D4: LA | E4: AGRUPAMIENTO POR OBRA/ACTIVIDAD | F4: DENOMINACIÓN | G4: NAT | H4: JURISDICCIÓN | I4: SAF | J4: SUBJ./ SECRET./ ENTIDAD | K4: PROGRAMA | L4: SUB0PROG | M4: PROYECTO | N4: ACTIVIDAD | O4: OBRA | P4: F. FINANC. | Q4: INC | R4: PPAL | S4: PARC | T4: SUB PARC | U4: FI | V4: FU | W4: UG | X4: TIPO DE ASIG | Y4: OBRA/ACT | Z4: ENTE EJECUTOR | AA4: MUNICIPIO | AB4: LOCALIDAD/ COMUNA | AC4: DIRECCIÓN DE LA OBRA | AD4: FECHA DE INICIO | AE4: FECHA DE FIN | AF4: MONTO ORIGINAL | AG4: MODIFICACIONES MONTO ORIGINAL | AH4: OTRAS MODIFICACIONES MONTO ORIGINAL | AI4: MONTO VIGENTE | AJ4: DEVENGADO 2019 | AK4: DEVENGADO 2020 | AL4: DEVENGADO 2021 | AM4: PRESUPUESTO 2022 | AN4: DEVENGADO 1 SEM. 2022 | AO4: DEVENGADO 2 SEM. 2022 | AP4: DEVENGADO 2022 | AQ4: DEVENGADO 2022 | AR4: PRESUPUESTO 2023 | AS4: FILTRO 2022 | AT4: ESTADO | AU4: AVANCE FINANCIERO | AV4: AVANCE FÍSICO | AW4: OBSERVACIONES
B5: 118 | C5: 1. ESTADO NACIONAL | D5: 09. EXPANSIÓN DE LA RED DE AGUA POTABLE Y SANEAMIENTO DE CLOACAS | E5: REDES DE AGUA LA MATANZA | F5: PLAN YSA A + T DR. OESTE LA MATANZA | G5: 2 | H5: 91. OBLIGACIONES DEL TESORO | I5: 356 | J5: AYSA | K5: 95. ASISTENCIA FINANCIERA A EMPRESAS PÚBLICAS Y ENTE BINACIONAL | L5: 5 | M5: N848408 | N5: 77 | O5: - | P5: 22 Y RECURSOS PROPIOS | Q5: 5 | R5: 5 | S5: 7 | T5: 753 | U5: 3 | V5: 8 | W5: 2 | X5: 2 | Y5: SIN P3 | Z5: - | AA5: LA MATANZA | AB5: LA MATANZA | AC5: A LUSITANO, A EL FORTÍN M4, CANILLAS COMUNITARIAS V. CELINA, FALTANTE LASALLE M2 Y SAN ENRIQUE M3 / AMPLIACION EL TALA M1 / CASTILLO CENTRO M3 / CRISTIANIA M6/ CRISTIANIA M7 / EL PORVENIR M2 / EL TAMBO M1 / EL TAMBO M2 / EMILIOZZI M3 / EMILIOZZI M4 / LA ABADIA M3 / LOS CEDROS 1 M1 A M7 / MI ESPERANZA M5 / PARQUE SARMIENTO M3 / SAN MARTIN M2 Y M3 / SAN ROQUE M3 / AMERICA M3 / LA ISLA M1 / MI ESPERANZA M11 - DORREGO M7 / ORO VERDE M4 / LUJAN M4 /GIARDINO M2 / DOREGO M6 / LOS CEDROS 2 M1 A M8 / SAN IGNACIO M3 Y M4 / CRISTIANIA M8 Y M9 / LOS CEDROS B M1 A M3 / A LA LOMA M3, A LAS NIEVES M3, A SANTA CLARA M2, INTERCONEXIÓN CISTERNA B° MUNICIPAL, 22 DE ENERO | AD5: 2008-08-22 | AE5: 2009-08-10 | AF5: 11471411.87 | AG5: 47032.7 | AH5: 9836568.352 | AI5: 21355012.92 | AJ5: 9801 | AK5: 0 | AL5: 0 | AM5: 0 | AN5: 0 | AO5: 0 | AQ5: - | AR5: - | AS5: - | AT5: FINALIZADO | AU5: 1 | AV5: 1 | AW5: -
B6: 138 | C6: 1. ESTADO NACIONAL | D6: 09. EXPANSIÓN DE LA RED DE AGUA POTABLE Y SANEAMIENTO DE CLOACAS | E6: SISTEMA CLOACAS BERAZATEGUI | F6: SIST. BERAZATEGUI PRIMERA ETAPA PLANTA DE PRETRATAMIENTO OBRA CIVIL Y ELECTROMECÁNICA | G6: 2 | H6: 91. OBLIGACIONES DEL TESORO | I6: 356 | J6: AYSA | K6: 95. ASISTENCIA FINANCIERA A EMPRESAS PÚBLICAS Y ENTE BINACIONAL | L6: 5 | M6: A861602/03 | N6: 77 | O6: - | P6: 22 Y RECURSOS PROPIOS | Q6: 5 | R6: 5 | S6: 7 | T6: 753 | U6: 3 | V6: 8 | W6: 2 | X6: 2 | Y6: SC497 | Z6: - | AA6: BERAZATEGUI | AB6: BERAZATEGUI | AC6: EL PREDIO SE ENCUENTRA AL NOROESTE DEL PARTIDO DE BERAZATEGUI, CERCANO AL LÍMITE CON EL PARTIDO DE QUILMES, ENTRE LA AUTOPISTA BUENOS AIRES-LA PLATA Y LA COSTA DEL RÍO DE LA PLATA. | AD6: 2009-01-05 | AE6: 2013-10-13 | AF6: 323100666 | AG6: 380892128.1 | AH6: -37338947.6 | AI6: 666653846.5 | AJ6: -141082.128 | AK6: 0 | AL6: 0 | AM6: 0 | AN6: 0 | AO6: 0 | AQ6: - | AR6: - | AS6: - | AT6: FINALIZADO | AU6: 1 | AV6: 1 | AW6: AÑOS ANTERIORES EL PROYECTO FUE FINANCIADO POR PRÉSTAMO ANSES Y FUENTE 1.1. EL MONTO VIGENTE INCLUYE EL VALOR DEL CONTRATO ORIGINAL, + REDETERM. CONOCIDAS + ADDENDAS FIRMADAS + REDETERM. ESTIMADAS.
B7: 227 | C7: 2. PROVINCIA DE BS AS | D7: 08. URBANIZACIÓN DE VILLAS Y ASENTAMIENTOS URBANOS | E7: COMPLEJO LA MATANZA | F7: LA MATANZA 171 VIV | G7: 2 | H7: 42. INSTITUTO DE LA VIVIENDA | I7: - | J7: INSTITUTO DE LA VIVIENDA | K7: 14. PLAN FEDERAL DE CONSTRUCCION DE VIVIENDAS | L7: 2 | M7: 6553 | N7: - | O7: 1 | P7: 12 | Q7: 6 | R7: 3 | S7: 1 | T7: 99 | U7: 12 | V7: - | W7: 427 | X7: 1 | Y7: - | Z7: MINISTERIO DE INFRAESTRUCTURA | AA7: LA MATANZA | AB7: GONZÁLEZ CATÁN | AC7: LAVALLEJA Y DOBLAS | AD7: 2017-04-11 | AE7: 2018-04-04 | AF7: 26929448.67 | AG7: 3004014.17 | AH7: 0 | AI7: 29933462.84 | AJ7: 554493.2 | AK7: 0 | AL7: 0 | AM7: 0 | AN7: 0 | AO7: - | AQ7: - | AR7: - | AS7: - | AT7: FINALIZADO | AU7: 1 | AV7: 1 | AW7: -
B8: 233 | C8: 2. PROVINCIA DE BS AS | D8: 08. URBANIZACIÓN DE VILLAS Y ASENTAMIENTOS URBANOS | E8: COMPLEJO LA MATANZA | F8: LA MATANZA 52 VIV - TERMINACIÓN DE 119 VIV. FECOVIMA | G8: 2 | H8: 42. INSTITUTO DE LA VIVIENDA | I8: - | J8: INSTITUTO DE LA VIVIENDA | K8: 5. SOLIDARIDAD | L8: 2 | M8: 5601 | N8: - | O8: 51 | P8: 12 | Q8: 6 | R8: 3 | S8: 1 | T8: 99 | U8: 12 | V8: - | W8: 427 | X8: 1 | Y8: - | Z8: MINISTERIO DE INFRAESTRUCTURA | AA8: LA MATANZA | AB8: - | AC8: - | AD8: 2006-06-21 | AE8: 2018-11-30 | AF8: 4046460.26 | AG8: 7507022.31 | AH8: 0 | AI8: 11553483 | AJ8: 2127671.46 | AK8: 0 | AL8: 0 | AM8: 0 | AN8: 0 | AO8: - | AQ8: - | AR8: - | AS8: - | AT8: EN EJECUCIÓN | AU8: 0.988032 | AV8: 0.99 | AW8: FALTA EL CIERRE ADMINISTRATIVO A 2018
B9: 541 | C9: 1. ESTADO NACIONAL | D9: 08. URBANIZACIÓN DE VILLAS Y ASENTAMIENTOS URBANOS | E9: COMPLEJO BARRIO GENOVA | F9: Bº GENOVA - 73 VIV | G9: 2 | H9: 64. MINISTERIO DE OBRAS PÚBLICAS | I9: 325 | J9: MINISTERIO DE DESARROLLO TERRITORIAL Y HABITAT | K9: 71. URBANIZACIÓN DE VILLAS Y ASENTAMIENTOS PRECARIOS. | L9: - | M9: - | N9: 77.VIVIENDAS NUEVAS EN LA CUENCA MATANZA RIACHUELO | O9: 36/08 | P9: 11 | Q9: 5 | R9: 8 | S9: 6 | T9: 0 | U9: 3 | V9: 7 | W9: 6 | X9: 1 | Y9: - | Z9: - | AA9: AVELLANEDA | AB9: GÉNOVA | AC9: Bº GENOVA | AD9: 2009-05-08 | AE9: - | AF9: 12418823.09 | AG9: 562026.57 | AH9: 0 | AI9: 12980849.66 | AJ9: 0 | AK9: 0 | AL9: 0 | AM9: - | AN9: 0 | AO9: - | AQ9: - | AR9: - | AS9: - | AT9: - | AU9: 1 | AV9: 1 | AW9: -
B10: 542 | C10: 1. ESTADO NACIONAL | D10: 08. URBANIZACIÓN DE VILLAS Y ASENTAMIENTOS URBANOS | E10: COMPLEJO BARRIO DOCK SUD | F10: BARRIO DOCK SUD - 100 VIV | G10: 2 | H10: 64. MINISTERIO DE OBRAS PÚBLICAS | I10: 354 | J10: MINISTERIO DE DESARROLLO TERRITORIAL Y HABITAT | K10: 46. URBANIZACIÓN DE VILLAS Y ASENTAMIENTOS PRECARIOS. | L10: - | M10: - | N10: 77.VIVIENDAS NUEVAS EN LA CUENCA MATANZA RIACHUELO | O10: 36/08 | P10: 11 | Q10: 5 | R10: 8 | S10: 6 | T10: 0 | U10: 3 | V10: 7 | W10: 6 | X10: 1 | Y10: - | Z10: - | AA10: AVELLANEDA | AB10: DOCK SUD | AC10: Bº DOCK SUD | AD10: 2009-05-15 | AE10: 2012-10-09 | AF10: 17289377.36 | AG10: 1286078.4 | AH10: 0 | AI10: 18575455.76 | AJ10: 0 | AK10: 0 | AL10: 0 | AM10: - | AN10: 0 | AO10: - | AQ10: - | AR10: - | AS10: - | AT10: - | AU10: 1 | AV10: 1 | AW10: -
B11: 544 | C11: 1. ESTADO NACIONAL | D11: 08. URBANIZACIÓN DE VILLAS Y ASENTAMIENTOS URBANOS | E11: COMPLEJO BARRIO LA SALADITA | F11: Bº LA SALADITA - 138 VIV | G11: 2 | H11: 64. MINISTERIO DE OBRAS PÚBLICAS | I11: 354 | J11: MINISTERIO DE DESARROLLO TERRITORIAL Y HABITAT | K11: 46. URBANIZACIÓN DE VILLAS Y ASENTAMIENTOS PRECARIOS. | L11: - | M11: - | N11: 77.VIVIENDAS NUEVAS EN LA CUENCA MATANZA RIACHUELO | O11: 36/08 | P11: 11 | Q11: 5 | R11: 8 | S11: 6 | T11: 0 | U11: 3 | V11: 7 | W11: 6 | X11: 1 | Y11: - | Z11: - | AA11: AVELLANEDA | AB11: LA SALADITA | AC11: Bº LA SALADITA | AD11: 2009-05-08 | AE11: - | AF11: 18380473.82 | AG11: 9334297.56 | AH11: 0 | AI11: 27714771.38 | AJ11: 0 | AK11: 0 | AL11: 0 | AM11: - | AN11: 0 | AO11: - | AQ11: - | AR11: - | AS11: - | AT11: - | AU11: 1 | AV11: 0.05 | AW11: -
B12: 563 | C12: 1. ESTADO NACIONAL | D12: 08. URBANIZACIÓN DE VILLAS Y ASENTAMIENTOS URBANOS | E12: COMPLEJO GRAL. PAZ Y CASTAÑARES | F12: 220 DE 780 VIV - GRAL. PAZ Y CASTAÑARES | G12: 2 | H12: 64. MINISTERIO DE OBRAS PÚBLICAS | I12: 325 | J12: MINISTERIO DE DESARROLLO TERRITORIAL Y HABITAT | K12: 71. URBANIZACIÓN DE VILLAS Y ASENTAMIENTOS PRECARIOS. | L12: - | M12: - | N12: 77.VIVIENDAS NUEVAS EN LA CUENCA MATANZA RIACHUELO | O12: 251/2008 | P12: 11 | Q12: 5 | R12: 8 | S12: 1 | T12: 0 | U12: 3 | V12: 7 | W12: 2 | X12: 1 | Y12: - | Z12: - | AA12: CABA | AB12: - | AC12: GRAL. PAZ Y CASTAÑARES | AD12: - | AE12: - | AF12: 193064501 | AG12: 28443612.1 | AH12: 0 | AI12: 221508113.1 | AJ12: 0 | AK12: 0 | AL12: 0 | AM12: - | AN12: 0 | AO12: - | AQ12: - | AR12: - | AS12: - | AT12: EN ANÁLISIS | AU12: 0.9859 | AV12: 0.91 | AW12: -
B13: 610 | C13: 1. ESTADO NACIONAL | D13: 10. DESAGÜES PLUVIALES | E13: ARROYO DEL REY | F13: OBRA - ARROYO DEL REY - PGA - OBRAS DE PRIMERA PRIORIDAD | G13: 2 | H13: 64. MINISTERIO DE OBRAS PÚBLICAS | I13: - | J13: SECRETARÍA DE INFRAESTRUCTURA Y POLÍTICA HÍDRICA | K13: EXTRAPRESUPUESTARIO - FFIH - FONDO FIDUCIARIO INFRAESTRUCTURA HÍDRICA | L13: - | M13: - | N13: - | O13: BUE085 | P13: FFIH | Q13: - | R13: - | S13: - | T13: - | U13: - | V13: - | W13: - | X13: 1 | Y13: - | Z13: SSRH | AA13: LOMAS DE ZAMORA | AB13: ING. BUDGE | AC13: REVESTIMIENTO DEL CAUCE DEL ARROYO DEL REY DESDE LA DESEMBOCADURA EN EL RÍO MATANZA HASTA CALLE GARIBALDI | AD13: 2006-06-14 | AE13: - | AF13: 98688252.5 | AG13: 549675200 | AH13: 158561052 | AI13: 894948287.3 | AJ13: 34938322.54 | AK13: 0 | AL13: 0 | AM13: 18060759.44 | AN13: 0 | AO13: 0 | AP13: =AN13+AO13 -> 0 | AQ13: 0 | AR13: 18060759.44 | AS13: X | AT13: FINALIZADO | AU13: 0.9798 | AV13: 1 | AW13: -
B14: 794 | C14: 1. ESTADO NACIONAL | D14: 09. EXPANSIÓN DE LA RED DE AGUA POTABLE Y SANEAMIENTO DE CLOACAS | E14: SISTEMA CLOACAS LA MATANZA | F14: EQUIPAMIENTO ELECTROMECÁNICO | G14: 2 | H14: 91. OBLIGACIONES DEL TESORO | I14: 356 | J14: AYSA | K14: 95. ASISTENCIA FINANCIERA A EMPRESAS PÚBLICAS Y ENTE BINACIONAL | L14: 5 | M14: 1055102 | N14: 5 | O14: - | P14: 11 | Q14: 5 | R14: 5 | S14: 7 | T14: 753 | U14: 3 | V14: 8 | W14: 96 | X14: 2 | Y14: SIN P3 | Z14: - | AA14: LA MATANZA | AB14: ALDO BONZI | AC14: PLANTA SUDOESTE - ANA MARÍA JANER Y PALPA - ALDO BONZI | AD14: 2010-04-27 | AE14: 2011-05-01 | AF14: 2372104.57 | AG14: 0 | AH14: -541272.8816 | AI14: 1830831.688 | AJ14: -19791.6312 | AK14: 0 | AL14: 0 | AM14: 0 | AN14: 0 | AO14: 0 | AQ14: - | AR14: - | AS14: - | AT14: FINALIZADO | AU14: 0.9891898139 | AV14: 1 | AW14: -
B15: 1227 | C15: 1. ESTADO NACIONAL | D15: 10. DESAGÜES PLUVIALES | E15: PLAN DE CONTINGENCIA ANTE INUNDACIONES | F15: SERVICIOS NO PERSONALES | G15: 2 | H15: 64. MINISTERIO DE OBRAS PÚBLICAS | I15: 364 | J15: MINISTERIO DE OBRAS PUBLICAS | K15: 44. UNIDAD DE COORDINACIÓN GENERAL DEL PROYECTO BIRF 7706-AR | L15: - | M15: - | N15: 79 | O15: - | P15: 11 | Q15: 3 | R15: 4 | S15: 1 | T15: - | U15: 4 | V15: 4 | W15: 2 | X15: 1 | Y15: - | Z15: UCGP | AA15: CUENCA MATANZA RIACHUELO | AB15: - | AC15: - | AD15: - | AE15: - | AF15: 0 | AG15: 0 | AH15: 0 | AI15: 0 | AJ15: 0 | AK15: 0 | AL15: 0 | AM15: 3754652 | AN15: 0 | AO15: 0 | AP15: =AN15+AO15 -> 0 | AQ15: 0 | AR15: 0 | AS15: X | AT15: - | AU15: - | AV15: - | AW15: -
B16: 1117 | C16: 1. ESTADO NACIONAL | D16: 09. EXPANSIÓN DE LA RED DE AGUA POTABLE Y SANEAMIENTO DE CLOACAS | E16: SISTEMA LA LATA- ESTEBAN ECHEVERRIA | F16: PLANTA POTABILIZADORA POR SISTEMA DE OSMOSIS INVERSA LA LATA ETAPA 1 - OBRA ELECTROMECANICA | G16: 2 | H16: 64. MINISTERIO DE OBRAS PÚBLICAS | I16: 364 | J16: AYSA | K16: 94. ASISTENCIA FINANCIERA A EMPRESAS PÚBLICAS Y ENTE BINACIONAL | L16: 0 | M16: 1060C42-22 | N16: 53 | O16: 0 | P16: 22 | Q16: 5 | R16: 5 | S16: 7 | T16: 753 | U16: 3 | V16: 8 | W16: 6 | X16: 2 | Y16: RP380020 | Z16: - | AA16: ESTEBAN ECHEVERRÍA | AB16: MONTE GRANDE | AC16: EL PREDIO ESTÁ UBICADO EN LA CALLE COLÓN S/N°, ESQUINA MAIPÚ. | AD16: 2011-03-01 | AE16: 2017-08-20 | AF16: 6491922.11 | AG16: 0 | AH16: 0 | AI16: 6491922.11 | AJ16: 0 | AK16: 0 | AL16: 2396362.142 | AM16: 0 | AN16: 0 | AO16: 0 | AQ16: - | AR16: - | AS16: - | AT16: FINALIZADO | AU16: 1 | AV16: 1 | AW16: -
B17: 1228 | C17: 1. ESTADO NACIONAL | D17: 03. FORTALECIMIENTO INSTITUCIONAL | E17: CONSULTORÍAS INDIVIDUALES | F17: SERVICIOS NO PERSONALES | G17: 2 | H17: 64. MINISTERIO DE OBRAS PÚBLICAS | I17: 364 | J17: MINISTERIO DE OBRAS PUBLICAS | K17: 44. UNIDAD DE COORDINACIÓN GENERAL DEL PROYECTO BIRF 7706-AR | L17: - | M17: - | N17: 77 | O17: - | P17: 22 | Q17: 3 | R17: 4 | S17: 9 | T17: - | U17: 4 | V17: 4 | W17: 2 | X17: 1 | Y17: - | Z17: UCGP | AA17: CUENCA MATANZA RIACHUELO | AB17: - | AC17: - | AD17: - | AE17: - | AF17: 0 | AG17: 0 | AH17: 0 | AI17: 0 | AJ17: 6895745.64 | AK17: 10078261.16 | AL17: 19248528 | AM17: 17869000 | AN17: 18553598.4 | AO17: 23936364 | AP17: =AN17+AO17 -> 42489962.4 | AQ17: 42489962.4 | AR17: 0 | AS17: X | AT17: - | AU17: 1 | AV17: - | AW17: HONORARIOS CONSULTORES
B18: 1297 | C18: 1. ESTADO NACIONAL | D18: 09. EXPANSIÓN DE LA RED DE AGUA POTABLE Y SANEAMIENTO DE CLOACAS | E18: SISTEMA CLOACAS AVELLANEDA | F18: ESTACION BOMBEO CLOACAL SARMIENTO - OBRA ELECTROMECANICA | G18: 2 | H18: 91. OBLIGACIONES DEL TESORO | I18: 356 | J18: AYSA | K18: 95. ASISTENCIA FINANCIERA A EMPRESAS PÚBLICAS Y ENTE BINACIONAL | L18: 5 | M18: 1160316 | N18: 77 | O18: - | P18: 22 Y RECURSOS PROPIOS | Q18: 5 | R18: 5 | S18: 7 | T18: 753 | U18: 3 | V18: 8 | W18: 2 | X18: 2 | Y18: SC4832 | Z18: - | AA18: AVELLANEDA | AB18: VILLA DOMÍNICO | AC18: LA EB ESTARÁ UBICADA EN LA CALLE CANGALLO 1375 ENTRE LAS CALLES GRAL. NAZAR Y TRES SARGENTOS, DEL PARTIDO DE AVELLANEDA | AD18: 2021-05-10 | AE18: Año 2023 | AF18: 71926532.44 | AG18: 67033790.02 | AH18: 3922197.693 | AI18: 142882520.2 | AJ18: 173787.1333 | AK18: 0 | AL18: 12236956.34 | AM18: 88790474.74 | AN18: 34372897.92 | AO18: 95478456.79 | AP18: =AN18+AO18 -> 129851354.7 | AQ18: 129851354.7 | AR18: 28650789.2 | AS18: X | AT18: En ejecución | AU18: 0.9956906607 | AV18: 0.99 | AW18: CONTRATO RESCINDIDO EL 02/11/2019. RECONTRATADA CON XAPOR SA
B19: 1281 | C19: 1. ESTADO NACIONAL | D19: 09. EXPANSIÓN DE LA RED DE AGUA POTABLE Y SANEAMIENTO DE CLOACAS | E19: SISTEMA CLOACAS LOMAS DE ZAMORA | F19: TERRENO PARA PLANTA DE TRATAMIENTO DE EFLUENTES CLOACALES FIORITO | G19: 2 | H19: 91. OBLIGACIONES DEL TESORO | I19: 356 | J19: AYSA | K19: 95. ASISTENCIA FINANCIERA A EMPRESAS PÚBLICAS Y ENTE BINACIONAL | L19: 5 | M19: 1161605 | N19: 5 | O19: - | P19: 11 | Q19: 5 | R19: 5 | S19: 7 | T19: 753 | U19: 3 | V19: 8 | W19: 96 | X19: 2 | Y19: SIN P3 | Z19: - | AA19: LOMAS DE ZAMORA | AB19: VILLA FIORITO | AC19: EL PREDIO SE ENCUENTRA UBICADO EN EL CAMINO DE LA RIBERA SUD (PARCELA 1 – FRACCIÓN 1), CONTIGUO AL RIACHUELO Y EN LAS CERCANÍAS DEL PUENTE DE LA NORIA. | AD19: SE TOMÓ POSESIÓN DEL PREDIO EL 09/05/12 | AE19: NO APLICA POR SER JUICIO DE EXPROPIACIÓN | AF19: 25029095 | AG19: 0 | AH19: 82577782.46 | AI19: 107606877.5 | AJ19: -20862599.65 | AK19: 0 | AL19: 0 | AM19: 0 | AN19: 0 | AO19: 0 | AQ19: - | AR19: - | AS19: - | AT19: FINALIZADO | AU19: 1 | AV19: 1 | AW19: EN DIC 18 SE ACTIVÓ UNA CONTINGENCIA POR EL JUICIO DE EXPROPIACIÓN DEL TERRENO QUE FUE CONSIDERADA EN LA COLUMNA OTROS COSTOS INCREMENTANDO EL MONTO VIGENTE DE LA OBRA.
B20: 1303 | C20: 1. ESTADO NACIONAL | D20: 09. EXPANSIÓN DE LA RED DE AGUA POTABLE Y SANEAMIENTO DE CLOACAS | E20: ESTACIÓN DE BOMBEO CLOACAL SARMIENTO | F20: ESTACION BOMBEO CLOACAL SARMIENTO - OBRA CIVIL | G20: 2 | H20: 91. OBLIGACIONES DEL TESORO | I20: 356 | J20: AYSA | K20: 95. ASISTENCIA FINANCIERA A EMPRESAS PÚBLICAS Y ENTE BINACIONAL | L20: 5 | M20: 1160315 | N20: 77 | O20: - | P20: 22 Y RECURSOS PROPIOS | Q20: 5 | R20: 5 | S20: 7 | T20: 753 | U20: 3 | V20: 8 | W20: 2 | X20: 2 | Y20: SC4831 | Z20: - | AA20: AVELLANEDA | AB20: GERLI | AC20: LA EB ESTARÁ UBICADA EN LA CALLE CANGALLO 1375 ENTRE LAS CALLES GRAL. NAZAR Y TRES SARGENTOS, DEL PARTIDO DE AVELLANEDA | AD20: 2021-05-10 | AE20: 20/9/2022 PARTE CIVIL | AF20: 37570622.95 | AG20: 62527282.5 | AH20: 3259871.563 | AI20: 103357777 | AJ20: 25213.6775 | AK20: 0 | AL20: 26373118.55 | AM20: 81414829.05 | AN20: 38566795.73 | AO20: 38265671.95 | AP20: =AN20+AO20 -> 76832467.68 | AQ20: 76832467.68 | AR20: 0 | AS20: X | AT20: En ejecución | AU20: 1.00000116 | AV20: 1 | AW20: CONTRATO RESCINDIDO EL 02/11/2019. RECONTRATADA CON XAPOR SA
B21: 1748 | C21: 1. ESTADO NACIONAL | D21: 10. DESAGÜES PLUVIALES | E21: ARROYO SUSANA | F21: SANEAMIENTO DE LA CUENCA DEL ARROYO SUSANA - RAMAL ESTE - BARRIO SAN CARLOS | G21: 2 | H21: 64. MINISTERIO DE OBRAS PÚBLICAS | I21: - | J21: SECRETARÍA DE INFRAESTRUCTURA Y POLÍTICA HÍDRICA | K21: EXTRAPRESUPUESTARIO - FFIH - FONDO FIDUCIARIO INFRAESTRUCTURA HÍDRICA | L21: - | M21: - | N21: - | O21: BUE113 | P21: FFIH | Q21: - | R21: - | S21: - | T21: - | U21: - | V21: - | W21: - | X21: 1 | Y21: - | Z21: MUNICIPIO | AA21: LA MATANZA | AB21: ISIDRO CASANOVA | AC21: SOBRE CALLE BEDOYA | AD21: 2011-06-17 | AE21: - | AF21: 29450326.05 | AG21: 32931033.21 | AH21: 12108366.1 | AI21: 74489725.36 | AJ21: 5211651.26 | AK21: 1083340.59 | AL21: 12095090.79 | AM21: 6151762.49 | AN21: 0 | AO21: 0 | AP21: =AN21+AO21 -> 0 | AQ21: 0 | AR21: 0 | AS21: X | AT21: FINALIZADO | AU21: 0.775 | AV21: 0.97 | AW21: -
B22: 1305 | C22: 1. ESTADO NACIONAL | D22: 09. EXPANSIÓN DE LA RED DE AGUA POTABLE Y SANEAMIENTO DE CLOACAS | E22: PLANTA DE TRATAMIENTO FIORITO | F22: PLANTA DE TRATAMIENTO DE EFLUENTES FIORITO - OBRA ELECTRO | G22: 2 | H22: 91. OBLIGACIONES DEL TESORO | I22: 356 | J22: AYSA | K22: 95. ASISTENCIA FINANCIERA A EMPRESAS PÚBLICAS Y ENTE BINACIONAL | L22: 5 Y CONVENIO ACUMAR | M22: 1160511 | N22: 77 | O22: 0 Y CONVENIO ACUMAR | P22: 22 Y RECURSOS PROPIOS | Q22: 5 | R22: 5 | S22: 7 | T22: 753 | U22: 3 | V22: 8 | W22: 2 | X22: 2 | Y22: SC307 | Z22: - | AA22: LOMAS DE ZAMORA | AB22: VILLA FIORITO | AC22: EL PREDIO SE ENCUENTRA UBICADO EN EL CAMINO DE LA RIBERA SUD (PARCELA 1 – FRACCIÓN 1), CONTIGUO AL RIACHUELO Y EN LAS CERCANÍAS DEL PUENTE DE LA NORIA. | AD22: 2012-05-10 | AE22: 2019-07-02 | AF22: 141230256.2 | AG22: 383052271.4 | AH22: 10768326.38 | AI22: 535050854 | AJ22: 50260516.62 | AK22: 66519522.08 | AL22: 0 | AM22: 0 | AN22: 0 | AO22: 0 | AQ22: - | AR22: - | AS22: - | AT22: FINALIZADO | AU22: 1 | AV22: 1 | AW22: AÑOS ANTERIORES, EL PROYECTO RECIBIÓ FINANCIAMIENTO POR CONVENIO CON ACUMAR.
B23: 1627 | C23: 2. PROVINCIA DE BS AS | D23: 10. DESAGÜES PLUVIALES | E23: ARROYO UNAMUNO | F23: ALIVIADOR ESTE ARROYO UNAMUNO ETAPA II B | G23: 2 | H23: 14. MINISTERIO DE INFRAESTRUCTURA DE LA PROVINCIA DE BUENOS AIRES | I23: - | J23: MINISTERIO DE INFRAESTRUCTURA | K23: 34. CONTROL DE INUNDACIONES | L23: 3 | M23: 54 | N23: - | O23: 2 | P23: 13 | Q23: 4 | R23: 2 | S23: 2 | T23: - | U23: 3 | V23: 8 | W23: 37 | X23: 1 | Y23: - | Z23: MINISTERIO DE INFRAESTRUCTURA | AA23: LOMAS DE ZAMORA | AB23: - | AC23: - | AD23: 2011-10-11 | AE23: 2017-07-11 | AF23: 23667246.23 | AG23: 0 | AH23: 0 | AI23: 132542612.8 | AJ23: 1125402.44 | AK23: 0 | AL23: 0 | AM23: 0 | AN23: 0 | AO23: 0 | AQ23: - | AR23: 0 | AS23: - | AT23: FINALIZADO | AU23: 1 | AV23: 1 | AW23: -
B24: 1628 | C24: 2. PROVINCIA DE BS AS | D24: 10. DESAGÜES PLUVIALES | E24: ARROYO UNAMUNO | F24: ALIVIADOR ESTE ARROYO UNAMUNO IETAPA | G24: 2 | H24: 14. MINISTERIO DE INFRAESTRUCTURA DE LA PROVINCIA DE BUENOS AIRES | I24: - | J24: MINISTERIO DE INFRAESTRUCTURA | K24: 34. CONTROL DE INUNDACIONES | L24: 3 | M24: 53 | N24: - | O24: 2 | P24: 13 | Q24: 4 | R24: 2 | S24: 2 | T24: - | U24: 3 | V24: 8 | W24: 37 | X24: 1 | Y24: - | Z24: MINISTERIO DE INFRAESTRUCTURA | AA24: LOMAS DE ZAMORA | AB24: - | AC24: - | AD24: 2011-10-25 | AE24: 2019-06-03 | AF24: 56315333.76 | AG24: 3125065.21 | AH24: 0 | AI24: 249079690 | AJ24: 0 | AK24: 0 | AL24: 0 | AM24: 0 | AN24: 0 | AO24: 0 | AQ24: - | AR24: 0 | AS24: - | AT24: FINALIZADO | AU24: 0.93 | AV24: 0.99 | AW24: OBRA DUPLICADA . SE VA A INFORMAR EL ID 1839 - EL ID 1628 ES LA MISMA OBRA PERO CON DISTINTA FUENTE DE FINANCIAMIENTO
B25: 1682 | C25: 1. ESTADO NACIONAL | D25: 08. URBANIZACIÓN DE VILLAS Y ASENTAMIENTOS URBANOS | E25: COMPLEJO BARRIO LINDO | F25: BARRIO LINDO - 300 VIV + INFRA - ETAPA I | G25: 2 | H25: 64. MINISTERIO DE OBRAS PÚBLICAS | I25: 354 | J25: MINISTERIO DE DESARROLLO TERRITORIAL Y HABITAT | K25: 46. URBANIZACIÓN DE VILLAS Y ASENTAMIENTOS PRECARIOS. | L25: - | M25: - | N25: 77.VIVIENDAS NUEVAS EN LA CUENCA MATANZA RIACHUELO | O25: 253/2011-4279008/2016 | P25: 11 | Q25: 5 | R25: 8 | S25: 6 | T25: 0 | U25: 3 | V25: 7 | W25: 6 | X25: 1 | Y25: - | Z25: - | AA25: ALMIRANTE BROWN | AB25: - | AC25: CALLES AMENEDO,S ANTA ANA Y LA TORCAZA | AD25: 2011-09-08 | AE25: - | AF25: 45550262.8 | AG25: 12770033.76 | AH25: 0 | AI25: 58320296.56 | AJ25: 0 | AK25: 0 | AL25: 0 | AM25: - | AN25: 0 | AO25: - | AQ25: - | AR25: - | AS25: - | AT25: - | AU25: 0.2678675273 | AV25: 0.1972 | AW25: -
B26: 1683 | C26: 1. ESTADO NACIONAL | D26: 08. URBANIZACIÓN DE VILLAS Y ASENTAMIENTOS URBANOS | E26: COMPLEJO BARRIO LINDO | F26: BARRIO LINDO - 273 VIV + INFRA - ETAPA II | G26: 2 | H26: 64. MINISTERIO DE OBRAS PÚBLICAS | I26: 354 | J26: MINISTERIO DE DESARROLLO TERRITORIAL Y HABITAT | K26: 46. URBANIZACIÓN DE VILLAS Y ASENTAMIENTOS PRECARIOS. | L26: - | M26: - | N26: 77.VIVIENDAS NUEVAS EN LA CUENCA MATANZA RIACHUELO | O26: 254/2011-4279048/2016 | P26: 11 | Q26: 5 | R26: 8 | S26: 6 | T26: 0 | U26: 3 | V26: 7 | W26: 6 | X26: 1 | Y26: - | Z26: - | AA26: ALMIRANTE BROWN | AB26: - | AC26: CALLES PINO, MATIENZO, RODRIGUEZ Y MADARIAGA | AD26: 2011-09-08 | AE26: - | AF26: 41492650 | AG26: 11632480.44 | AH26: 0 | AI26: 53125130.44 | AJ26: 0 | AK26: 0 | AL26: 0 | AM26: - | AN26: 0 | AO26: - | AQ26: - | AR26: - | AS26: - | AT26: - | AU26: 0.2998834086 | AV26: 0.1678 | AW26: -
B27: 1688 | C27: 1. ESTADO NACIONAL | D27: 08. URBANIZACIÓN DE VILLAS Y ASENTAMIENTOS URBANOS | E27: BARRIO SUIPACHA | F27: PREDIO SUIPACHA - INFRA PARA 254 VIV | G27: 2 | H27: MINISTERIO DE DESARROLLO TERRITORIAL Y HÁBITAT | I27: 365 | J27: MINISTERIO DE DESARROLLO TERRITORIAL Y HABITAT | K27: 71. URBANIZACIÓN DE VILLAS Y ASENTAMIENTOS PRECARIOS. | L27: - | M27: - | N27: 79. INFRAESTRUCTURA, NEXOS Y OBRAS COMPLEMENTARIAS EN LA CUENCA MATANZA RIACHUELO. | O27: 1437/2011 | P27: 11 | Q27: 5 | R27: 8 | S27: 6 | T27: 0 | U27: 3 | V27: 7 | W27: 6 | X27: 1 | Y27: - | Z27: - | AA27: AVELLANEDA | AB27: - | AC27: PREDIO SUIPACHA | AD27: - | AE27: - | AF27: 26007968.84 | AG27: 0 | AH27: 0 | AI27: 26007968.84 | AJ27: 0 | AK27: 22835384.75 | AL27: 0 | AM27: - | AN27: - | AO27: 0 | AQ27: - | AR27: 0 | AS27: - | AT27: - | AU27: 0.3365 | AV27: 0.2388 | AW27: -
B28: 1695 | C28: 1. ESTADO NACIONAL | D28: 08. URBANIZACIÓN DE VILLAS Y ASENTAMIENTOS URBANOS | E28: COMPLEJO BARRIO 7 DE ENERO | F28: Bº 7 DE ENERO 20 VIV | G28: 2 | H28: 64. MINISTERIO DE OBRAS PÚBLICAS | I28: 325 | J28: MINISTERIO DE DESARROLLO TERRITORIAL Y HABITAT | K28: 71. URBANIZACIÓN DE VILLAS Y ASENTAMIENTOS PRECARIOS. | L28: - | M28: - | N28: 77.VIVIENDAS NUEVAS EN LA CUENCA MATANZA RIACHUELO | O28: 1441/2011 | P28: 11 | Q28: 5 | R28: 8 | S28: 6 | T28: 0 | U28: 3 | V28: 7 | W28: 6 | X28: 1 | Y28: - | Z28: - | AA28: AVELLANEDA | AB28: - | AC28: CNO. GRAL. BELGRANO, ARROYO SARANDI, SUIPACHA | AD28: 2011-11-01 | AE28: - | AF28: 5033334.21 | AG28: 0 | AH28: 0 | AI28: 5033334.21 | AJ28: 0 | AK28: 0 | AL28: 0 | AM28: - | AN28: 0 | AO28: - | AQ28: - | AR28: - | AS28: - | AT28: EN ANÁLISIS | AU28: 0.53 | AV28: 0.56 | AW28: SE CHEQUEARON LOS MONTOS ORIGINALES Y SE RATIFICAN LOS QUE FIGURAN EN LA PRESENTE PLANILLA
B29: 1709 | C29: 1. ESTADO NACIONAL | D29: 08. URBANIZACIÓN DE VILLAS Y ASENTAMIENTOS URBANOS | E29: COMPLEJO BARRIO RIBERA IGUAZÚ | F29: 128 VIV BARRIO RIBERA IGUAZÚ ETAPAS I Y II | G29: 2 | H29: 64. MINISTERIO DE OBRAS PÚBLICAS | I29: 354 | J29: MINISTERIO DE DESARROLLO TERRITORIAL Y HABITAT | K29: 46. URBANIZACIÓN DE VILLAS Y ASENTAMIENTOS PRECARIOS. | L29: - | M29: - | N29: 77.VIVIENDAS NUEVAS EN LA CUENCA MATANZA RIACHUELO | O29: 1015/2011-3142868/16 | P29: 11 | Q29: 5 | R29: 8 | S29: 1 | T29: 0 | U29: 3 | V29: 7 | W29: 2 | X29: 1 | Y29: - | Z29: - | AA29: CABA | AB29: 4 | AC29: IGUAZU 1835 (EX-MUNDO GRUA) | AD29: 2011-10-20 | AE29: - | AF29: 25317557.79 | AG29: 13140556.81 | AH29: 0 | AI29: 38458114.6 | AJ29: 0 | AK29: 0 | AL29: 0 | AM29: - | AN29: 0 | AO29: - | AQ29: - | AR29: - | AS29: - | AT29: - | AU29: 1 | AV29: 0.632 | AW29: SE CHEQUEARON LOS MONTOS ORIGINALES Y SE RATIFICAN LOS QUE FIGURAN EN LA PRESENTE PLANILLA
B30: 1712 | C30: 1. ESTADO NACIONAL | D30: 08. URBANIZACIÓN DE VILLAS Y ASENTAMIENTOS URBANOS | E30: COMPLEJO BARRIO VALPARAISO | F30: 48 VIV VALPARAISO 3570 / VERACRUZ 3480 | G30: 2 | H30: 64. MINISTERIO DE OBRAS PÚBLICAS | I30: 325 | J30: MINISTERIO DE DESARROLLO TERRITORIAL Y HABITAT | K30: 71. URBANIZACIÓN DE VILLAS Y ASENTAMIENTOS PRECARIOS. | L30: - | M30: - | N30: 77.VIVIENDAS NUEVAS EN LA CUENCA MATANZA RIACHUELO | O30: 1350/2011 | P30: 11 | Q30: 5 | R30: 8 | S30: 1 | T30: 0 | U30: 3 | V30: 7 | W30: 2 | X30: 1 | Y30: - | Z30: - | AA30: CABA | AB30: - | AC30: VALPARAISO 357 VERACRUZ 348 | AD30: 2013-06-06 | AE30: 2014-06-06 | AF30: 15230273.3 | AG30: 0 | AH30: 0 | AI30: 15230273.3 | AJ30: 7312685.72 | AK30: 0 | AL30: 0 | AM30: - | AN30: 0 | AO30: - | AQ30: - | AR30: - | AS30: - | AT30: EN EJECUCIÓN | AU30: 0.29 | AV30: 0.34 | AW30: -
B31: 1722 | C31: 1. ESTADO NACIONAL | D31: 12. LIMPIEZA DE MÁRGENES Y CAMINO DE SIRGA | E31: CAMINO DE SIRGA LOMAS DE ZAMORA | F31: LOMAS DE ZAMORA CAMINO DE LA RIBERA | G31: 2 | H31: 64. MINISTERIO DE OBRAS PÚBLICAS | I31: 354 | J31: MINISTERIO DE DESARROLLO TERRITORIAL Y HABITAT | K31: PAVIMENTO | L31: - | M31: - | N31: - | O31: ACU 1589/11-2030582/16 | P31: - | Q31: 5 | R31: 8 | S31: - | T31: 0 | U31: 3 | V31: 7 | W31: 6 | X31: 1 | Y31: - | Z31: - | AA31: LOMAS DE ZAMORA | AB31: - | AC31: - | AD31: - | AE31: - | AF31: 47985841.37 | AG31: 0 | AH31: 0 | AI31: 47985841.37 | AJ31: 0 | AK31: 0 | AL31: 0 | AM31: - | AN31: 0 | AO31: - | AQ31: - | AR31: - | AS31: - | AT31: - | AU31: 0.5 | AV31: 0.5 | AW31: -
B32: 3883 | C32: 1. ESTADO NACIONAL | D32: 09. EXPANSIÓN DE LA RED DE AGUA POTABLE Y SANEAMIENTO DE CLOACAS | E32: SISTEMA RIACHUELO | F32: COLECTOR MARGEN IZQUIERDO Y DESVIO BAJA COSTANERA | G32: 2 | H32: 91. OBLIGACIONES DEL TESORO | I32: 356 | J32: AYSA | K32: 95. ASISTENCIA FINANCIERA A EMPRESAS PÚBLICAS Y ENTE BINACIONAL | L32: 5 | M32: 1179L01/1479L99/1779L01/1879L01 | N32: 77 | O32: - | P32: 22 Y RECURSOS PROPIOS | Q32: 5 | R32: 5 | S32: 7 | T32: 753 | U32: 3 | V32: 8 | W32: 2 | X32: 2 | Y32: RC002 | Z32: - | AA32: CABA - AVELLANEDA | AB32: CABA - AVELLANEDA | AC32: MARGEN IZQUIERDA DEL RÍO MATANZA - RIACHUELO DESDE LA AVENIDA.GENERAL PAZ HASTA LA PLANTA DOCK SUD | AD32: 2015-01-15 | AE32: 2022-05-31 | AF32: 855087850.9 | AG32: 8086022307 | AH32: 172628529.1 | AI32: 9113738687 | AJ32: 159702003.2 | AK32: 2017275221 | AL32: 3731412162 | AM32: 2188326728 | AN32: 1251215699 | AO32: 477285453.3 | AP32: =AN32+AO32 -> 1728501152 | AQ32: 1728501152 | AR32: 11325600 | AS32: X | AT32: Finalizado | AU32: 1 | AV32: 1 | AW32: -
B33: 1783 | C33: 1. ESTADO NACIONAL | D33: 09. EXPANSIÓN DE LA RED DE AGUA POTABLE Y SANEAMIENTO DE CLOACAS | E33: PLANTA DE TRATAMIENTO CLOACAL PRESIDENTE PERÓN | F33: PLANTA DE TRATAMIENTO DE EFLUENTES CLOACALES - PRESIDENTE PERÓN | G33: 2 | H33: 64. MINISTERIO DE OBRAS PÚBLICAS | I33: 613 | J33: ENTE NACIONAL DE OBRAS HÍDRICAS Y SANEAMIENTO | K33: 20. ASISTENCIA TÉCNICO 0 FINANCIERA Y DESARROLLO DE INFRAESTRUCTURA PARA EL SANEAMIENTO | L33: - | M33: 0 | N33: 79 | O33: - | P33: 11 | Q33: 5 | R33: 8 | S33: 6 | T33: 9999 | U33: 3 | V33: 8 | W33: 6 | X33: 1 | Y33: - | Z33: MUNICIPIO | AA33: PTE. PERÓN | AB33: PTE. PERÓN | AC33: - | AD33: - | AE33: - | AF33: 46895589 | AG33: 10392246.65 | AH33: 0 | AI33: 78947908.32 | AJ33: 0 | AK33: 0 | AL33: 0 | AM33: - | AN33: 0 | AO33: 0 | AQ33: 0 | AR33: 0 | AS33: - | AT33: - | AU33: 0.6817 | AV33: 0.8 | AW33: -
B34: 1794 | C34: 2. PROVINCIA DE BS AS | D34: 10. DESAGÜES PLUVIALES | E34: DESAGUES PLUVIALES MÁXIMO PAZ | F34: MEJORAMIENTO DESAGUES PLUVIALES URBANOS Y LIMPIEZA CANALES ALEDAÑOS -LOCALIDAD MAXIMO PAZ -CAÑUELAS | G34: 2 | H34: 14. MINISTERIO DE INFRAESTRUCTURA DE LA PROVINCIA DE BUENOS AIRES | I34: - | J34: MINISTERIO DE INFRAESTRUCTURA | K34: 34. CONTROL DE INUNDACIONES | L34: 3 | M34: 366 | N34: - | O34: 1 | P34: 13 | Q34: 4 | R34: 2 | S34: 2 | T34: - | U34: 3 | V34: 8 | W34: 95 | X34: 1 | Y34: - | Z34: MINISTERIO DE INFRAESTRUCTURA | AA34: CAÑUELAS | AB34: MÁXIMO PAZ | AC34: - | AD34: 2012-11-21 | AE34: 2019-12-09 | AF34: 6712601.04 | AG34: - | AH34: 0 | AI34: 3243910.4 | AJ34: 0 | AK34: 0 | AL34: 0 | AM34: 0 | AN34: 0 | AO34: 0 | AQ34: - | AR34: 0 | AS34: - | AT34: RESCINDIDA | AU34: 1 | AV34: 0.26 | AW34: -
B35: 1796 | C35: 2. PROVINCIA DE BS AS | D35: 10. DESAGÜES PLUVIALES | E35: DESAGUES PLUVIALES RUTA 21-MERLO | F35: ADECUACION DE LOS DESAGUES PLUVIALES EN AREA RUTA 21 II ETAPA | G35: 2 | H35: 14. MINISTERIO DE INFRAESTRUCTURA DE LA PROVINCIA DE BUENOS AIRES | I35: - | J35: MINISTERIO DE INFRAESTRUCTURA | K35: 34. CONTROL DE INUNDACIONES | L35: 4 | M35: 55 | N35: - | O35: 2 | P35: 13 | Q35: 4 | R35: 2 | S35: 2 | T35: - | U35: 3 | V35: 8 | W35: 41 | X35: 1 | Y35: - | Z35: MINISTERIO DE INFRAESTRUCTURA | AA35: MERLO | AB35: - | AC35: - | AD35: 2012-04-23 | AE35: 2017-05-22 | AF35: 2495248.41 | AG35: 677364.88 | AH35: 0 | AI35: 58136095.51 | AJ35: 0 | AK35: 0 | AL35: 0 | AM35: 0 | AN35: 0 | AO35: 0 | AQ35: - | AR35: 0 | AS35: - | AT35: FINALIZADO | AU35: 1 | AV35: 1 | AW35: OBRA DUPLICADA . SE VA A INFORMAR EL ID 1841 - EL ID 1796 ES LA MISMA OBRA PERO CON DISTINTA FUENTE DE FINANCIAMIENTO
B36: 1836 | C36: 2. PROVINCIA DE BS AS | D36: 10. DESAGÜES PLUVIALES | E36: ARROYO FINOCHIETTO | F36: SANEAMIENTO HIDRAULICO DE LA CUENCA ARROYO FINOCHIETTO-ETAPA III | G36: 2 | H36: 14. MINISTERIO DE INFRAESTRUCTURA DE LA PROVINCIA DE BUENOS AIRES | I36: - | J36: MINISTERIO DE INFRAESTRUCTURA | K36: 34. CONTROL DE INUNDACIONES | L36: 3 | M36: 52 | N36: - | O36: 2 | P36: 11 | Q36: 4 | R36: 2 | S36: 2 | T36: - | U36: 3 | V36: 8 | W36: 325 | X36: 1 | Y36: - | Z36: MINISTERIO DE INFRAESTRUCTURA | AA36: LA MATANZA | AB36: - | AC36: - | AD36: - | AE36: - | AF36: 22786902.9 | AG36: 0 | AH36: 0 | AI36: 112413165 | AJ36: 0 | AK36: 0 | AL36: 0 | AM36: 0 | AN36: 0 | AO36: 0 | AQ36: - | AR36: 0 | AS36: - | AT36: FINALIZADO | AU36: 1 | AV36: 1 | AW36: -
B37: 3884 | C37: 1. ESTADO NACIONAL | D37: 09. EXPANSIÓN DE LA RED DE AGUA POTABLE Y SANEAMIENTO DE CLOACAS | E37: SISTEMA RIACHUELO | F37: COLECTOR MARGEN IZQUIERDO Y DESVIO BAJA COSTANERA | G37: 2 | H37: 64. MINISTERIO DE OBRAS PÚBLICAS | I37: 364 | J37: AYSA | K37: 44. UNIDAD DE COORDINACIÓN GENERAL DEL PROYECTO BIRF 7706-AR | L37: - | M37: 1179I01/1779I01/1879I01 | N37: 2 | O37: - | P37: 22 | Q37: 5 | R37: 1 | S37: 9 | T37: 2117 | U37: 3 | V37: 8 | W37: 96 | X37: 2 | Y37: RC002 | Z37: - | AA37: CABA - AVELLANEDA | AB37: CABA - AVELLANEDA | AC37: MARGEN IZQUIERDA DEL RÍO MATANZA - RIACHUELO DESDE LA AVENIDA.GENERAL PAZ HASTA LA PLANTA DOCK SUD | AD37: 2015-01-15 | AE37: 2022-05-31 | AF37: 1182750149 | AG37: 1.337208432e+10 | AH37: 478855054.4 | AI37: 15033689519 | AJ37: 3468852810 | AK37: 4898452846 | AL37: 1715988497 | AM37: 1628626368 | AN37: 903735271.3 | AO37: 384135766.6 | AP37: =AN37+AO37 -> 1287871038 | AQ37: 1287871038 | AR37: 9481560 | AS37: X | AT37: Finalizado | AU37: 1 | AV37: 1 | AW37: -
B38: 1839 | C38: 2. PROVINCIA DE BS AS | D38: 10. DESAGÜES PLUVIALES | E38: ARROYO UNAMUNO | F38: ALIVIADOR ESTE ARROYO UNAMUNO IETAPA | G38: 2 | H38: 14. MINISTERIO DE INFRAESTRUCTURA DE LA PROVINCIA DE BUENOS AIRES | I38: - | J38: MINISTERIO DE INFRAESTRUCTURA | K38: 34. CONTROL DE INUNDACIONES | L38: 3 | M38: 53 | N38: - | O38: 2 | P38: 11 | Q38: 4 | R38: 2 | S38: 2 | T38: - | U38: 3 | V38: 8 | W38: 37 | X38: 1 | Y38: - | Z38: MINISTERIO DE INFRAESTRUCTURA | AA38: LOMAS DE ZAMORA | AB38: - | AC38: - | AD38: 2011-10-25 | AE38: 2019-06-03 | AF38: 14977094.51 | AG38: 0 | AH38: 0 | AI38: 232014148 | AJ38: 2737225.43 | AK38: 0 | AL38: 0 | AM38: 0 | AN38: 0 | AO38: 0 | AQ38: - | AR38: 0 | AS38: - | AT38: FINALIZADO | AU38: 0.93 | AV38: 0.9895 | AW38: -
B39: 1841 | C39: 2. PROVINCIA DE BS AS | D39: 10. DESAGÜES PLUVIALES | E39: DESAGÜES PLUVIALES - RUTA 21 | F39: ADECUACION DE LOS DESAGUES PLUVIALES EN AREA RUTA 21 II ETAPA | G39: 2 | H39: 14. MINISTERIO DE INFRAESTRUCTURA DE LA PROVINCIA DE BUENOS AIRES | I39: - | J39: MINISTERIO DE INFRAESTRUCTURA | K39: 34. CONTROL DE INUNDACIONES | L39: 4 | M39: 55 | N39: - | O39: 2 | P39: 11 | Q39: - | R39: - | S39: - | T39: - | U39: 3 | V39: 8 | W39: 41 | X39: 1 | Y39: - | Z39: MINISTERIO DE INFRAESTRUCTURA | AA39: MERLO | AB39: - | AC39: - | AD39: 2012-04-23 | AE39: 2017-05-22 | AF39: 27114391 | AG39: 0 | AH39: 0 | AI39: 58135095 | AJ39: 0 | AK39: 0 | AL39: 0 | AM39: 0 | AN39: 0 | AO39: 0 | AQ39: - | AR39: 0 | AS39: - | AT39: FINALIZADO | AU39: 1 | AV39: 1 | AW39: -
B40: 1902 | C40: 1. ESTADO NACIONAL | D40: 09. EXPANSIÓN DE LA RED DE AGUA POTABLE Y SANEAMIENTO DE CLOACAS | E40: PLANTA DE TRATAMIENTO ACUBA | F40: PLANTA DE TRATAMIENTO DE EFLUENTES LANÚS (ACUBA) - OBRA CIVIL | G40: 2 | H40: 91. OBLIGACIONES DEL TESORO | I40: 356 | J40: AYSA | K40: 95. ASISTENCIA FINANCIERA A EMPRESAS PÚBLICAS Y ENTE BINACIONAL | L40: 5 Y CONVENIO ACUMAR | M40: 1161602 | N40: 77 | O40: - | P40: 22 Y RECURSOS PROPIOS | Q40: 5 | R40: 5 | S40: 7 | T40: 753 | U40: 3 | V40: 8 | W40: 2 | X40: 2 | Y40: SCE003 | Z40: - | AA40: LANÚS | AB40: VALENTÍN ALSINA | AC40: PREDIO SITUADO ENTRE LAS CALLES GENERAL OLAZÁBAL, BOQUERÓN, HERNANDO DE MAGALLANES Y CORONEL MOLINEDO, PARTIDO DE LANÚS. | AD40: 2012-01-25 | AE40: 2016-12-31 | AF40: 78145401.19 | AG40: 147618819.4 | AH40: 13177991.24 | AI40: 238942211.8 | AJ40: -973283.1988 | AK40: 0 | AL40: 0 | AM40: 0 | AN40: 0 | AO40: 0 | AQ40: - | AR40: - | AS40: - | AT40: FINALIZADO | AU40: 1 | AV40: 1 | AW40: AÑOS ANTERIORES, EL PROYECTO RECIBIÓ FINANCIAMIENTO POR CONVENIO CON ACUMAR.
B41: 1959 | C41: 1. ESTADO NACIONAL | D41: 09. EXPANSIÓN DE LA RED DE AGUA POTABLE Y SANEAMIENTO DE CLOACAS | E41: REDES CLOACALES ALMIRANTE BROWN | F41: CONDUCTO DE DESAGUE DE PLANTA DE TRATAMIENTO BARRIO RAYO DE SOL | G41: 2 | H41: 91. OBLIGACIONES DEL TESORO | I41: 356 | J41: AYSA | K41: 95. ASISTENCIA FINANCIERA A EMPRESAS PÚBLICAS Y ENTE BINACIONAL | L41: 5 | M41: 1160538 | N41: 77 | O41: - | P41: 22 Y RECURSOS PROPIOS | Q41: 5 | R41: 5 | S41: 7 | T41: 753 | U41: 3 | V41: 8 | W41: 2 | X41: 2 | Y41: SA696 | Z41: - | AA41: ALMIRANTE BROWN | AB41: ALMIRANTE BROWN | AC41: DESDE SANTA CLARA Y SANTIAGO DEL ESTERO HASTA SANTA CLARA Y MANUEL BELGRANO, POR ESTA ÚLTIMA HASTA MANUELA PEDRAZA Y POR PEDRAZA HASTA EL ZANJÓN DEL A° DEL REY. | AD41: 2017-09-11 | AE41: 2018-10-26 | AF41: 10626682.22 | AG41: 7319289.051 | AH41: 620053.6396 | AI41: 18566024.91 | AJ41: 2133594.948 | AK41: 0 | AL41: 0 | AM41: 0 | AN41: 0 | AO41: 0 | AQ41: - | AR41: - | AS41: - | AT41: FINALIZADO | AU41: 1 | AV41: 1 | AW41: -
B42: 1963 | C42: 1. ESTADO NACIONAL | D42: 09. EXPANSIÓN DE LA RED DE AGUA POTABLE Y SANEAMIENTO DE CLOACAS | E42: PLANTA DE TRATAMIENTO FIORITO | F42: PLANTA DE TRATAMIENTO DE EFLUENTES FIORITO - OBRA CIVIL | G42: 2 | H42: 91. OBLIGACIONES DEL TESORO | I42: 356 | J42: AYSA | K42: 95. ASISTENCIA FINANCIERA A EMPRESAS PÚBLICAS Y ENTE BINACIONAL | L42: 5 Y CONVENIO ACUMAR | M42: 1160515 | N42: 77 | O42: - | P42: 22 Y RECURSOS PROPIOS | Q42: 5 | R42: 5 | S42: 7 | T42: 753 | U42: 3 | V42: 8 | W42: 2 | X42: 2 | Y42: SC307 | Z42: - | AA42: LOMAS DE ZAMORA | AB42: VILLA FIORITO | AC42: EL PREDIO SE ENCUENTRA UBICADO EN EL CAMINO DE LA RIBERA SUD (PARCELA 1 – FRACCIÓN 1), CONTIGUO AL RIACHUELO Y EN LAS CERCANÍAS DEL PUENTE DE LA NORIA. | AD42: 2012-05-10 | AE42: 2019-07-02 | AF42: 146746195.9 | AG42: 850489867.2 | AH42: 26139473.5 | AI42: 1023375537 | AJ42: 10091349.1 | AK42: 30232153.3 | AL42: 0 | AM42: 0 | AN42: 0 | AO42: 0 | AQ42: - | AR42: - | AS42: - | AT42: FINALIZADO | AU42: 1 | AV42: 1 | AW42: AÑOS ANTERIORES, EL PROYECTO RECIBIÓ FINANCIAMIENTO POR CONVENIO CON ACUMAR.
B43: 2010 | C43: 1. ESTADO NACIONAL | D43: 09. EXPANSIÓN DE LA RED DE AGUA POTABLE Y SANEAMIENTO DE CLOACAS | E43: SISTEMA CLOACAS LA MATANZA | F43: RENOVACIÓN REDES DE CLOACA PROGRAMADA | G43: 2 | H43: 91. OBLIGACIONES DEL TESORO | I43: 356 | J43: AYSA | K43: 95. ASISTENCIA FINANCIERA A EMPRESAS PÚBLICAS Y ENTE BINACIONAL | L43: 5 | M43: 1211310 | N43: 5 | O43: - | P43: 11 | Q43: 5 | R43: 5 | S43: 7 | T43: 753 | U43: 3 | V43: 8 | W43: 96 | X43: 2 | Y43: SIN P3 | Z43: - | AA43: LA MATANZA | AB43: LA MATANZA | AC43: LOCALIZACIÓN 26-VER ANEXO LOCALIZACIÓN EXACTA | AD43: 2012-01-01 | AE43: 2012-12-31 | AF43: NOTA 9 | AG43: NOTA 9 | AH43: 0 | AI43: NOTA 9 | AJ43: -18924.4 | AK43: 0 | AL43: 0 | AM43: 0 | AN43: 0 | AO43: 0 | AQ43: - | AR43: - | AS43: - | AT43: FINALIZADO | AU43: 1 | AV43: 1 | AW43: -
B44: 2025 | C44: 1. ESTADO NACIONAL | D44: 09. EXPANSIÓN DE LA RED DE AGUA POTABLE Y SANEAMIENTO DE CLOACAS | E44: SISTEMA CLOACAS LA MATANZA | F44: RENOVACIÓN MARCOS Y TAPAS POR EMERG. - DISTRITO LMN | G44: 2 | H44: 91. OBLIGACIONES DEL TESORO | I44: 356 | J44: AYSA | K44: 95. ASISTENCIA FINANCIERA A EMPRESAS PÚBLICAS Y ENTE BINACIONAL | L44: 5 | M44: 1211401 | N44: 5 | O44: - | P44: 11 | Q44: 5 | R44: 5 | S44: 7 | T44: 753 | U44: 3 | V44: 8 | W44: 96 | X44: 2 | Y44: SIN P3 | Z44: - | AA44: LA MATANZA | AB44: LA MATANZA | AC44: LOCALIZACIÓN 61-VER ANEXO LOCALIZACIÓN EXACTA | AD44: 2012-01-01 | AE44: 2012-12-31 | AF44: NOTA 9 | AG44: NOTA 9 | AH44: 0 | AI44: NOTA 9 | AJ44: -3630 | AK44: 0 | AL44: 0 | AM44: 0 | AN44: 0 | AO44: 0 | AQ44: - | AR44: - | AS44: - | AT44: FINALIZADO | AU44: 1 | AV44: 1 | AW44: -
B45: 2179 | C45: 1. ESTADO NACIONAL | D45: 09. EXPANSIÓN DE LA RED DE AGUA POTABLE Y SANEAMIENTO DE CLOACAS | E45: SISTEMA AGUA ESTEBAN ECHEVERRÍA | F45: PLAN AYSA A+T DR SUR ESTEBAN ECHEVERRIA | G45: 2 | H45: 91. OBLIGACIONES DEL TESORO | I45: 356 | J45: AYSA | K45: 95. ASISTENCIA FINANCIERA A EMPRESAS PÚBLICAS Y ENTE BINACIONAL | L45: 5 | M45: 1248413 | N45: 5 | O45: - | P45: 11 | Q45: 5 | R45: 5 | S45: 7 | T45: 753 | U45: 3 | V45: 8 | W45: 96 | X45: 2 | Y45: SIN P3 | Z45: - | AA45: ESTEBAN ECHEVERRÍA | AB45: ESTEBAN ECHEVERRÍA | AC45: DON MARCELO M1 / DON MARIANO M1 / LA MORITA M1 / SANTA CATALINA M 3 | AD45: 2012-05-15 | AE45: nov-13 | AF45: 3845863.75 | AG45: 230587.55 | AH45: 2619995.099 | AI45: 6696446.399 | AJ45: 10648 | AK45: 0 | AL45: 0 | AM45: 0 | AN45: 0 | AO45: 0 | AQ45: - | AR45: - | AS45: - | AT45: FINALIZADO | AU45: 1 | AV45: 1 | AW45: -
B46: 2232 | C46: 1. ESTADO NACIONAL | D46: 04. ORDENAMIENTO AMBIENTAL DEL TERRITORIO | E46: AUTOPISTA PTE. PERÓN | F46: CAMINO DEL BUEN AYRE TRAMO I - SECCION ACCESO OESTE - ACCESO A Bº 20 DE JUNIO (PONTEVEDRA - PROG 25,55) | G46: 2 | H46: 604. DIRECCIÓN NACIONAL DE VIALIDAD | I46: 604 | J46: DIRECCION NACIONAL DE VIALIDAD | K46: 42. CONSTRUCCIÓN DE AUTOPISTAS Y AUTOVÍAS | L46: 10 | M46: 3 | N46: 0 | O46: 51 | P46: 14 | Q46: 6 | R46: 8 | S46: 7 | T46: 0 | U46: 4 | V46: 3 | W46: 6 | X46: 1 | Y46: - | Z46: - | AA46: EZEIZA - LA MATANZA - MERLO - PRESIDENTE PERÓN - SAN VICENTE | AB46: EZEIZA - LA MATANZA - MERLO - PRESIDENTE PERÓN - SAN VICENTE | AC46: CAMINO DEL BUEN AYRE | AD46: 2010-03-10 | AE46: 2023-09-10 | AF46: 483287977 | AG46: 1042465716 | AH46: 1.460134891e+10 | AI46: 1.612710261e+10 | AJ46: 424539037.8 | AK46: 0 | AL46: 0 | AM46: - | AN46: 0 | AO46: 0 | AQ46: 0 | AR46: 0 | AS46: - | AT46: EN EJECUCIÓN | AU46: 0.4493 | AV46: 0.766658783 | AW46: ACTIVIDAD INTERNA DB1. LINEA AGREGADA POR CAMBIO DE FUENTE/INCISO. PARTIDA Y PRESUPUESTO INICIAL GLOBAL.
B47: 2233 | C47: 1. ESTADO NACIONAL | D47: 04. ORDENAMIENTO AMBIENTAL DEL TERRITORIO | E47: AUTOPISTA PTE. PERÓN | F47: CAMINO DEL BUEN AYRE TRAMO II - SECCION ACCESO A Bº 20 DE JUNIO - RUTA PROV.Nº58- PROG. KM53,980) | G47: 2 | H47: 604. DIRECCIÓN NACIONAL DE VIALIDAD | I47: 604 | J47: DIRECCION NACIONAL DE VIALIDAD | K47: 42. CONSTRUCCIÓN DE AUTOPISTAS Y AUTOVÍAS | L47: 10 | M47: 3 | N47: 0 | O47: 51 | P47: 14 | Q47: 6 | R47: 8 | S47: 7 | T47: 0 | U47: 4 | V47: 3 | W47: 6 | X47: 1 | Y47: - | Z47: - | AA47: EZEIZA - LA MATANZA - MERLO - PRESIDENTE PERÓN - SAN VICENTE | AB47: EZEIZA - LA MATANZA - MERLO - PRESIDENTE PERÓN - SAN VICENTE | AC47: CAMINO DEL BUEN AYRE | AD47: 2010-03-11 | AE47: 2023-03-11 | AF47: 555060595 | AG47: 594674868 | AH47: 1.706098777e+10 | AI47: 1.821072323e+10 | AJ47: 613889738 | AK47: 0 | AL47: 0 | AM47: - | AN47: 0 | AO47: 0 | AQ47: 0 | AR47: 0 | AS47: - | AT47: EN EJECUCIÓN | AU47: 0.7723 | AV47: 0.8994891644 | AW47: ACTIVIDAD INTERNA DB3. LINEA AGREGADA POR CAMBIO DE FUENTE/INCISO. PARTIDA Y PRESUPUESTO INICIAL GLOBAL.
B48: 2234 | C48: 1. ESTADO NACIONAL | D48: 04. ORDENAMIENTO AMBIENTAL DEL TERRITORIO | E48: AUTOPISTA PTE. PERÓN | F48: CAMINO DEL BUEN AYRE TRAMO III - SECCION RUTA PROV.Nº58- RUTA PROV.Nº53 (PROG. KM 72,60) | G48: 2 | H48: 604. DIRECCIÓN NACIONAL DE VIALIDAD | I48: 604 | J48: DIRECCION NACIONAL DE VIALIDAD | K48: 42. CONSTRUCCIÓN DE AUTOPISTAS Y AUTOVÍAS | L48: 10 | M48: 3 | N48: 0 | O48: 51 | P48: 14 | Q48: 6 | R48: 8 | S48: 7 | T48: 0 | U48: 4 | V48: 3 | W48: 6 | X48: 1 | Y48: - | Z48: - | AA48: EZEIZA - LA MATANZA - MERLO - PRESIDENTE PERÓN - SAN VICENTE | AB48: EZEIZA - LA MATANZA - MERLO - PRESIDENTE PERÓN - SAN VICENTE | AC48: CAMINO DEL BUEN AYRE | AD48: 2010-03-11 | AE48: 2022-12-08 | AF48: 318183735 | AG48: 181332702 | AH48: 8122124811 | AI48: 8621641248 | AJ48: 16375976.76 | AK48: 0 | AL48: 0 | AM48: - | AN48: 0 | AO48: 0 | AQ48: 0 | AR48: 0 | AS48: - | AT48: EN EJECUCIÓN | AU48: 0.5846 | AV48: 0.8052853942 | AW48: ACTIVIDAD INTERNA DB2. LINEA AGREGADA POR CAMBIO DE FUENTE/INCISO. PARTIDA Y PRESUPUESTO INICIAL GLOBAL.
B49: 2283 | C49: 2. PROVINCIA DE BS AS | D49: 10. DESAGÜES PLUVIALES | E49: DESAGÜES PLUVIALES - ALEJANDRO KORN Y SAN VICENTE | F49: DESAGÜES PLUVIALES EN ALEJANDRO KORN -SAN VICENTE | G49: 2 | H49: 14. MINISTERIO DE INFRAESTRUCTURA DE LA PROVINCIA DE BUENOS AIRES | I49: - | J49: MINISTERIO DE INFRAESTRUCTURA | K49: 34. CONTROL DE INUNDACIONES | L49: 4 | M49: 750 | N49: - | O49: 1 | P49: 13 | Q49: 4 | R49: 2 | S49: 2 | T49: - | U49: 3 | V49: 8 | W49: 595 | X49: 1 | Y49: - | Z49: MINISTERIO DE INFRAESTRUCTURA | AA49: SAN VICENTE | AB49: - | AC49: - | AD49: 2015-04-28 | AE49: 2016-12-06 | AF49: 8000000 | AG49: 0 | AH49: 0 | AI49: 13960131 | AJ49: 0 | AK49: 0 | AL49: 0 | AM49: 0 | AN49: 0 | AO49: 0 | AQ49: - | AR49: 0 | AS49: - | AT49: FINALIZADO | AU49: 1 | AV49: 1 | AW49: -
B50: 2349 | C50: 1. ESTADO NACIONAL | D50: 08. URBANIZACIÓN DE VILLAS Y ASENTAMIENTOS URBANOS | E50: COMPLEJO BARRIO LINDO | F50: BARRIO LINDO - 300 VIV + INFRA - ETAPA I | G50: 2 | H50: 64. MINISTERIO DE OBRAS PÚBLICAS | I50: 325 | J50: MINISTERIO DE DESARROLLO TERRITORIAL Y HABITAT | K50: 71. URBANIZACIÓN DE VILLAS Y ASENTAMIENTOS PRECARIOS. | L50: - | M50: - | N50: 79. INFRAESTRUCTURA, NEXOS Y OBRAS COMPLEMENTARIAS EN LA CUENCA MATANZA RIACHUELO. | O50: 253/2011-4279100/2016 | P50: 11 | Q50: 5 | R50: 8 | S50: 6 | T50: 0 | U50: 3 | V50: 7 | W50: 6 | X50: 1 | Y50: - | Z50: - | AA50: ALMIRANTE BROWN | AB50: - | AC50: CALLES AMENEDO,S ANTA ANA Y LA TORCAZA | AD50: 2011-09-08 | AE50: - | AF50: 8038281.35 | AG50: 2253535.28 | AH50: 0 | AI50: 10291816.63 | AJ50: 0 | AK50: 0 | AL50: 0 | AM50: - | AN50: 0 | AO50: - | AQ50: - | AR50: - | AS50: - | AT50: A INICIAR | AU50: 0.25 | AV50: 0 | AW50: -
B51: 2350 | C51: 1. ESTADO NACIONAL | D51: 08. URBANIZACIÓN DE VILLAS Y ASENTAMIENTOS URBANOS | E51: COMPLEJO BARRIO LINDO | F51: BARRIO LINDO - 273 VIV + INFRA - ETAPA II | G51: 2 | H51: 64. MINISTERIO DE OBRAS PÚBLICAS | I51: 354 | J51: MINISTERIO DE DESARROLLO TERRITORIAL Y HABITAT | K51: 46. URBANIZACIÓN DE VILLAS Y ASENTAMIENTOS PRECARIOS. | L51: - | M51: - | N51: 79. INFRAESTRUCTURA, NEXOS Y OBRAS COMPLEMENTARIAS EN LA CUENCA MATANZA RIACHUELO. | O51: 254/2011-4279022/2016 | P51: 11 | Q51: 5 | R51: 8 | S51: 6 | T51: 0 | U51: 3 | V51: 7 | W51: 6 | X51: 1 | Y51: - | Z51: - | AA51: ALMIRANTE BROWN | AB51: - | AC51: CALLES PINO, MATIENZO, RODRIGUEZ Y MADARIAGA | AD51: 2011-09-08 | AE51: - | AF51: 7285300 | AG51: 2042436.67 | AH51: 0 | AI51: 9327736.67 | AJ51: 18768094.96 | AK51: 0 | AL51: 0 | AM51: - | AN51: 0 | AO51: - | AQ51: - | AR51: - | AS51: - | AT51: - | AU51: 0.2918 | AV51: 0.1416 | AW51: -
B52: 2354 | C52: 1. ESTADO NACIONAL | D52: 08. URBANIZACIÓN DE VILLAS Y ASENTAMIENTOS URBANOS | E52: COMPLEJO BARRIO SUIPACHA | F52: PREDIO SUIPACHA - 254 VIV | G52: 2 | H52: MINISTERIO DE DESARROLLO TERRITORIAL Y HÁBITAT | I52: 365 | J52: MINISTERIO DE DESARROLLO TERRITORIAL Y HABITAT | K52: 71. URBANIZACIÓN DE VILLAS Y ASENTAMIENTOS PRECARIOS. | L52: - | M52: - | N52: 77.VIVIENDAS NUEVAS EN LA CUENCA MATANZA RIACHUELO | O52: 1437/2011 | P52: 11 | Q52: 5 | R52: 8 | S52: 6 | T52: 0 | U52: 3 | V52: 7 | W52: 6 | X52: 1 | Y52: - | Z52: - | AA52: AVELLANEDA | AB52: - | AC52: PREDIO SUIPACHA | AD52: 2012-12-01 | AE52: - | AF52: 61675670.6 | AG52: 0 | AH52: 0 | AI52: 61675670.6 | AJ52: 1654148.29 | AK52: 22629731.34 | AL52: 19054073.18 | AM52: - | AN52: 0 | AO52: 0 | AQ52: 0 | AR52: 0 | AS52: - | AT52: - | AU52: 0.2475 | AV52: 0.2226 | AW52: -
B53: 2377 | C53: 1. ESTADO NACIONAL | D53: 08. URBANIZACIÓN DE VILLAS Y ASENTAMIENTOS URBANOS | E53: COMPLEJO BARRIO LACARRA | F53: LACARRA 2049/AV. S. DE COMPOSTELA 3768 - 24 DE 54 VIV | G53: 2 | H53: 64. MINISTERIO DE OBRAS PÚBLICAS | I53: 354 | J53: MINISTERIO DE DESARROLLO TERRITORIAL Y HABITAT | K53: 46. URBANIZACIÓN DE VILLAS Y ASENTAMIENTOS PRECARIOS. | L53: - | M53: - | N53: 77.VIVIENDAS NUEVAS EN LA CUENCA MATANZA RIACHUELO | O53: 170/2010- 2083285-16 | P53: 11 | Q53: 5 | R53: 8 | S53: 1 | T53: 0 | U53: 3 | V53: 7 | W53: 2 | X53: 1 | Y53: - | Z53: - | AA53: CABA | AB53: - | AC53: LACARRA 249AV. S. DE COMPOSTELA 3768 | AD53: 2011-09-30 | AE53: - | AF53: 5926979.413 | AG53: 0 | AH53: 0 | AI53: 5926979.413 | AJ53: 0 | AK53: 0 | AL53: 0 | AM53: - | AN53: 0 | AO53: - | AQ53: - | AR53: - | AS53: - | AT53: - | AU53: 0.1709099335 | AV53: 0 | AW53: -
B54: 2379 | C54: 1. ESTADO NACIONAL | D54: 08. URBANIZACIÓN DE VILLAS Y ASENTAMIENTOS URBANOS | E54: COMPLEJO BARRIO RIBERA IGUAZÚ | F54: 192 VIVIENDAS - Bº RIBERA IGUAZÚ - ETAPAS III, IV Y V | G54: 2 | H54: 64. MINISTERIO DE OBRAS PÚBLICAS | I54: 354 | J54: MINISTERIO DE DESARROLLO TERRITORIAL Y HABITAT | K54: 46. URBANIZACIÓN DE VILLAS Y ASENTAMIENTOS PRECARIOS. | L54: - | M54: - | N54: 77.VIVIENDAS NUEVAS EN LA CUENCA MATANZA RIACHUELO | O54: 1802/2012-2405057/16 | P54: 11 | Q54: 5 | R54: 8 | S54: 1 | T54: 0 | U54: 3 | V54: 7 | W54: 2 | X54: 1 | Y54: - | Z54: - | AA54: CABA | AB54: - | AC54: - | AD54: 2010-10-15 | AE54: - | AF54: 78157466.47 | AG54: 0 | AH54: 0 | AI54: 78157466.47 | AJ54: 0 | AK54: 0 | AL54: 0 | AM54: - | AN54: 0 | AO54: - | AQ54: - | AR54: - | AS54: - | AT54: - | AU54: 0.9836280699 | AV54: 0.9853 | AW54: -
B55: 2380 | C55: 1. ESTADO NACIONAL | D55: 08. URBANIZACIÓN DE VILLAS Y ASENTAMIENTOS URBANOS | E55: BARRIO RIBERA IGUAZU | F55: INFRAESTRUCTURA INTERNA PARA 192 VIVIENDAS - Bº RIBERA IGUAZÚ - ETAPAS III, IV Y V | G55: 2 | H55: 64. MINISTERIO DE OBRAS PÚBLICAS | I55: 354 | J55: MINISTERIO DE DESARROLLO TERRITORIAL Y HABITAT | K55: 46. URBANIZACIÓN DE VILLAS Y ASENTAMIENTOS PRECARIOS. | L55: - | M55: - | N55: 77.VIVIENDAS NUEVAS EN LA CUENCA MATANZA RIACHUELO | O55: 1802/2012-2402470/16 | P55: 11 | Q55: 5 | R55: 8 | S55: 1 | T55: 0 | U55: 3 | V55: 7 | W55: 2 | X55: 1 | Y55: - | Z55: - | AA55: CABA | AB55: - | AC55: A DEFINIR | AD55: - | AE55: - | AF55: 5196305.11 | AG55: 0 | AH55: 0 | AI55: 5196305.11 | AJ55: 0 | AK55: 0 | AL55: 0 | AM55: - | AN55: 0 | AO55: - | AQ55: - | AR55: - | AS55: - | AT55: - | AU55: 0.8919037264 | AV55: 0.9944 | AW55: -
B56: 2386 | C56: 1. ESTADO NACIONAL | D56: 08. URBANIZACIÓN DE VILLAS Y ASENTAMIENTOS URBANOS | E56: BARRIO LUJÁN | F56: VILLA LUJAN URBANIZACION + INFRA PARA 53 FLIAS | G56: 2 | H56: 64. MINISTERIO DE OBRAS PÚBLICAS | I56: 325 | J56: MINISTERIO DE DESARROLLO TERRITORIAL Y HABITAT | K56: 71. URBANIZACIÓN DE VILLAS Y ASENTAMIENTOS PRECARIOS. | L56: - | M56: - | N56: 77.VIVIENDAS NUEVAS EN LA CUENCA MATANZA RIACHUELO | O56: 911/2015 | P56: 11 | Q56: 5 | R56: 8 | S56: 1 | T56: 0 | U56: 3 | V56: 7 | W56: 2 | X56: 1 | Y56: - | Z56: - | AA56: CABA | AB56: - | AC56: VILLA LUJAN | AD56: - | AE56: - | AF56: 13475250 | AG56: 0 | AH56: 0 | AI56: 10795920.34 | AJ56: 0 | AK56: 0 | AL56: 0 | AM56: - | AN56: 0 | AO56: - | AQ56: - | AR56: - | AS56: - | AT56: EN EJECUCIÓN | AU56: 0.9293697218 | AV56: 0.9776 | AW56: -
B57: 2388 | C57: 1. ESTADO NACIONAL | D57: 08. URBANIZACIÓN DE VILLAS Y ASENTAMIENTOS URBANOS | E57: COMPLEJO BARRIO MONTECARLO | F57: 240 VIV | G57: 2 | H57: MINISTERIO DE DESARROLLO TERRITORIAL Y HÁBITAT | I57: 365 | J57: MINISTERIO DE DESARROLLO TERRITORIAL Y HABITAT | K57: 71. URBANIZACIÓN DE VILLAS Y ASENTAMIENTOS PRECARIOS. | L57: - | M57: - | N57: 77.VIVIENDAS NUEVAS EN LA CUENCA MATANZA RIACHUELO | O57: 198/2012 | P57: 11 | Q57: 5 | R57: 8 | S57: 6 | T57: 0 | U57: 3 | V57: 7 | W57: 6 | X57: 1 | Y57: - | Z57: - | AA57: ESTEBAN ECHEVERRÍA | AB57: MARCOS PAZ | AC57: Bº MONTECARLO | AD57: 2012-07-23 | AE57: - | AF57: 52347768.93 | AG57: 9847568.07 | AH57: 0 | AI57: 62195337 | AJ57: 15611339.47 | AK57: 9580934.74 | AL57: 0 | AM57: - | AN57: 0 | AO57: 0 | AQ57: 0 | AR57: 0 | AS57: - | AT57: - | AU57: 0.9792 | AV57: 0.9304 | AW57: INCLUIDO EN CONVENIO MARCO 17771
B58: 2389 | C58: 1. ESTADO NACIONAL | D58: 08. URBANIZACIÓN DE VILLAS Y ASENTAMIENTOS URBANOS | E58: COMPLEJO BARRIO MONTECARLO | F58: INFRA PARA 240 VIV | G58: 2 | H58: MINISTERIO DE DESARROLLO TERRITORIAL Y HÁBITAT | I58: 365 | J58: MINISTERIO DE DESARROLLO TERRITORIAL Y HABITAT | K58: 46. URBANIZACIÓN DE VILLAS Y ASENTAMIENTOS PRECARIOS. | L58: - | M58: - | N58: 79. INFRAESTRUCTURA, NEXOS Y OBRAS COMPLEMENTARIAS EN LA CUENCA MATANZA RIACHUELO. | O58: 198/2012 | P58: 11 | Q58: 5 | R58: 8 | S58: 6 | T58: 0 | U58: 3 | V58: 7 | W58: 6 | X58: 1 | Y58: - | Z58: - | AA58: ESTEBAN ECHEVERRÍA | AB58: - | AC58: Bº MONTECARLO | AD58: 2012-07-23 | AE58: - | AF58: 18926731.05 | AG58: 3560462.58 | AH58: 0 | AI58: 22487193.63 | AJ58: 8479020.56 | AK58: 1740474.1 | AL58: 0 | AM58: - | AN58: 0 | AO58: 0 | AQ58: 0 | AR58: 0 | AS58: - | AT58: - | AU58: 0.9635 | AV58: 0.8476 | AW58: INCLUIDO EN CONVENIO MARCO 17771
B59: 2401 | C59: 1. ESTADO NACIONAL | D59: 08. URBANIZACIÓN DE VILLAS Y ASENTAMIENTOS URBANOS | E59: COMPLEJO FFMM | F59: PREDIO FFMM- ETAPA I - 174 VIV | G59: 2 | H59: 64. MINISTERIO DE OBRAS PÚBLICAS | I59: 325 | J59: MINISTERIO DE DESARROLLO TERRITORIAL Y HABITAT | K59: 71. URBANIZACIÓN DE VILLAS Y ASENTAMIENTOS PRECARIOS. | L59: - | M59: - | N59: 77.VIVIENDAS NUEVAS EN LA CUENCA MATANZA RIACHUELO | O59: 766/2012 | P59: 11 | Q59: 5 | R59: 8 | S59: 6 | T59: 0 | U59: 3 | V59: 7 | W59: 6 | X59: 1 | Y59: - | Z59: - | AA59: LANÚS | AB59: - | AC59: AV. CARLOS PELLEGRINI, MORENO, PSJE AGUIRRE, CNEL. OSORIO | AD59: 2013-01-07 | AE59: - | AF59: 49365616.09 | AG59: 14137453.6 | AH59: 0 | AI59: 63503069.69 | AJ59: 0 | AK59: 0 | AL59: 0 | AM59: - | AN59: 0 | AO59: - | AQ59: - | AR59: - | AS59: - | AT59: - | AU59: 1 | AV59: 0.9979 | AW59: -
B60: 2690 | C60: 1. ESTADO NACIONAL | D60: 09. EXPANSIÓN DE LA RED DE AGUA POTABLE Y SANEAMIENTO DE CLOACAS | E60: SISTEMA AGUA CABA | F60: EQUIPAMIENTO ELECTROMECANICO | G60: 2 | H60: 91. OBLIGACIONES DEL TESORO | I60: 356 | J60: AYSA | K60: 95. ASISTENCIA FINANCIERA A EMPRESAS PÚBLICAS Y ENTE BINACIONAL | L60: 5 | M60: 1150501 | N60: 5 | O60: - | P60: 11 | Q60: 5 | R60: 5 | S60: 7 | T60: 753 | U60: 3 | V60: 8 | W60: 96 | X60: 2 | Y60: SIN P3 | Z60: - | AA60: CABA | AB60: CIUDAD AUTÓNOMA DE BUENOS AIRES | AC60: AV. DE LOS OMBÚES 209 | AD60: 2011-07-26 | AE60: 2011-11-01 | AF60: 652156.3862 | AG60: 628970.5477 | AH60: 0 | AI60: 1281126.934 | AJ60: 0 | AK60: 0 | AL60: 0 | AM60: 0 | AN60: 0 | AO60: 0 | AQ60: - | AR60: - | AS60: - | AT60: FINALIZADO | AU60: 0.8452866702 | AV60: 1 | AW60: -
B61: 2701 | C61: 1. ESTADO NACIONAL | D61: 09. EXPANSIÓN DE LA RED DE AGUA POTABLE Y SANEAMIENTO DE CLOACAS | E61: PLANTA DE TRATAMIENTO ACUBA | F61: PLANTA DE TRATAMIENTO DE EFLUENTES LANÚS (ACUBA) - OBRA ELECTROMECANICA | G61: 2 | H61: 91. OBLIGACIONES DEL TESORO | I61: 356 | J61: AYSA | K61: 95. ASISTENCIA FINANCIERA A EMPRESAS PÚBLICAS Y ENTE BINACIONAL | L61: 5 Y CONVENIO ACUMAR | M61: 1161601 | N61: 77 | O61: - | P61: 22 Y RECURSOS PROPIOS | Q61: 5 | R61: 5 | S61: 7 | T61: 753 | U61: 3 | V61: 8 | W61: 2 | X61: 2 | Y61: SCE003 | Z61: - | AA61: LANÚS | AB61: VALENTÍN ALSINA | AC61: PREDIO SITUADO ENTRE LAS CALLES GENERAL OLAZÁBAL, BOQUERÓN, HERNANDO DE MAGALLANES Y CORONEL MOLINEDO, PARTIDO DE LANÚS. | AD61: 2012-01-25 | AE61: 2016-10-31 | AF61: 44976057.06 | AG61: 154806454.8 | AH61: 5335349.038 | AI61: 205117860.9 | AJ61: -568038.3599 | AK61: 0 | AL61: 0 | AM61: 0 | AN61: 0 | AO61: 0 | AQ61: - | AR61: - | AS61: - | AT61: FINALIZADO | AU61: 0.9999999999 | AV61: 1 | AW61: AÑOS ANTERIORES, EL PROYECTO RECIBIÓ FINANCIAMIENTO POR CONVENIO CON ACUMAR.
B62: 2883 | C62: 1. ESTADO NACIONAL | D62: 08. URBANIZACIÓN DE VILLAS Y ASENTAMIENTOS URBANOS | E62: COMPLEJO BARRIO RIBERA IGUAZÚ | F62: Bº RIBERA IGUAZU INF PARA 128 + 192 VIV + 480 FAMILIAS VILLA 21-24 | G62: 2 | H62: 64. MINISTERIO DE OBRAS PÚBLICAS | I62: 354 | J62: MINISTERIO DE DESARROLLO TERRITORIAL Y HABITAT | K62: 46. URBANIZACIÓN DE VILLAS Y ASENTAMIENTOS PRECARIOS. | L62: - | M62: - | N62: 79. INFRAESTRUCTURA, NEXOS Y OBRAS COMPLEMENTARIAS EN LA CUENCA MATANZA RIACHUELO. | O62: 1801/2012-2646921/16 | P62: 11 | Q62: 5 | R62: 8 | S62: 1 | T62: 0 | U62: 3 | V62: 7 | W62: 2 | X62: 1 | Y62: - | Z62: - | AA62: CABA | AB62: - | AC62: - | AD62: - | AE62: - | AF62: 22040654.98 | AG62: 0 | AH62: 0 | AI62: 22040654.98 | AJ62: 1468495.67 | AK62: 0 | AL62: 0 | AM62: - | AN62: 0 | AO62: - | AQ62: - | AR62: - | AS62: - | AT62: - | AU62: 0.6533720686 | AV62: 0.5411 | AW62: -
B63: 2888 | C63: 1. ESTADO NACIONAL | D63: 08. URBANIZACIÓN DE VILLAS Y ASENTAMIENTOS URBANOS | E63: COMPLEJO BARRIO VILLA TALLERES | F63: Bº VILLA TALLERES - 28 DE 136 VIV + INFRA ETAPA I | G63: 2 | H63: 64. MINISTERIO DE OBRAS PÚBLICAS | I63: 325 | J63: MINISTERIO DE DESARROLLO TERRITORIAL Y HABITAT | K63: 71. URBANIZACIÓN DE VILLAS Y ASENTAMIENTOS PRECARIOS. | L63: - | M63: - | N63: 77.VIVIENDAS NUEVAS EN LA CUENCA MATANZA RIACHUELO | O63: 1693/2012 | P63: 11 | Q63: 5 | R63: 8 | S63: 6 | T63: 0 | U63: 3 | V63: 7 | W63: 6 | X63: 1 | Y63: - | Z63: - | AA63: LANÚS | AB63: - | AC63: - | AD63: 2013-05-17 | AE63: - | AF63: 10902351.23 | AG63: 3513535.69 | AH63: 0 | AI63: 14415886.92 | AJ63: 0 | AK63: 0 | AL63: 0 | AM63: - | AN63: 0 | AO63: - | AQ63: - | AR63: - | AS63: - | AT63: - | AU63: 0.936 | AV63: 0.8359 | AW63: -
B64: 2889 | C64: 1. ESTADO NACIONAL | D64: 08. URBANIZACIÓN DE VILLAS Y ASENTAMIENTOS URBANOS | E64: COMPLEJO BARRIO VILLA TALLERES | F64: Bº VILLA TALLERES - INFRA PARA 28 VIV | G64: 2 | H64: 64. MINISTERIO DE OBRAS PÚBLICAS | I64: 354 | J64: MINISTERIO DE DESARROLLO TERRITORIAL Y HABITAT | K64: 46. URBANIZACIÓN DE VILLAS Y ASENTAMIENTOS PRECARIOS. | L64: - | M64: - | N64: 79. INFRAESTRUCTURA, NEXOS Y OBRAS COMPLEMENTARIAS EN LA CUENCA MATANZA RIACHUELO. | O64: 1693/2012 | P64: 11 | Q64: 5 | R64: 8 | S64: 6 | T64: 0 | U64: 3 | V64: 7 | W64: 6 | X64: 1 | Y64: - | Z64: - | AA64: LANÚS | AB64: - | AC64: - | AD64: 2013-05-17 | AE64: - | AF64: 2928556.19 | AG64: 1236361.94 | AH64: 0 | AI64: 4164918.13 | AJ64: 0 | AK64: 0 | AL64: 0 | AM64: - | AN64: 0 | AO64: - | AQ64: - | AR64: - | AS64: - | AT64: - | AU64: 0.4685 | AV64: 0.2787 | AW64: -
B65: 2892 | C65: 1. ESTADO NACIONAL | D65: 08. URBANIZACIÓN DE VILLAS Y ASENTAMIENTOS URBANOS | E65: COMPLEJO BARRIO LA MAQUINITA | F65: B° LA MAQUINITA, 88 VIV | G65: 2 | H65: 64. MINISTERIO DE OBRAS PÚBLICAS | I65: 325 | J65: MINISTERIO DE DESARROLLO TERRITORIAL Y HABITAT | K65: 71. URBANIZACIÓN DE VILLAS Y ASENTAMIENTOS PRECARIOS. | L65: - | M65: - | N65: 77.VIVIENDAS NUEVAS EN LA CUENCA MATANZA RIACHUELO | O65: 1515/2014 | P65: 11 | Q65: 5 | R65: 8 | S65: 6 | T65: 0 | U65: 3 | V65: 7 | W65: 6 | X65: 1 | Y65: - | Z65: - | AA65: LANÚS | AB65: - | AC65: - | AD65: 2015-03-30 | AE65: - | AF65: 49485724 | AG65: 0 | AH65: 0 | AI65: 49485724 | AJ65: 0 | AK65: 0 | AL65: 0 | AM65: - | AN65: 0 | AO65: - | AQ65: - | AR65: - | AS65: - | AT65: - | AU65: 0.5606 | AV65: 0.4439 | AW65: -
B66: 2893 | C66: 1. ESTADO NACIONAL | D66: 08. URBANIZACIÓN DE VILLAS Y ASENTAMIENTOS URBANOS | E66: BARRIO LA MAQUINITA | F66: B° LA MAQUINITA, INFRA PARA 88 VIV | G66: 2 | H66: 64. MINISTERIO DE OBRAS PÚBLICAS | I66: 354 | J66: MINISTERIO DE DESARROLLO TERRITORIAL Y HABITAT | K66: 46. URBANIZACIÓN DE VILLAS Y ASENTAMIENTOS PRECARIOS. | L66: - | M66: - | N66: 79. INFRAESTRUCTURA, NEXOS Y OBRAS COMPLEMENTARIAS EN LA CUENCA MATANZA RIACHUELO. | O66: 1515/2014 | P66: 11 | Q66: 5 | R66: 8 | S66: 6 | T66: 0 | U66: 3 | V66: 7 | W66: 6 | X66: 1 | Y66: - | Z66: - | AA66: LANÚS | AB66: - | AC66: - | AD66: 2015-03-30 | AE66: - | AF66: 11852977.07 | AG66: 0 | AH66: 0 | AI66: 11852977.07 | AJ66: 0 | AK66: 0 | AL66: 0 | AM66: - | AN66: 0 | AO66: - | AQ66: - | AR66: - | AS66: - | AT66: - | AU66: 0.4525 | AV66: 0.3133 | AW66: -
B67: 2894 | C67: 1. ESTADO NACIONAL | D67: 08. URBANIZACIÓN DE VILLAS Y ASENTAMIENTOS URBANOS | E67: COMPLEJO FFMM | F67: PREDIO FFMM - ETAPA I - INFRA PARA 174 VIV | G67: 2 | H67: 64. MINISTERIO DE OBRAS PÚBLICAS | I67: 354 | J67: MINISTERIO DE DESARROLLO TERRITORIAL Y HABITAT | K67: 46. URBANIZACIÓN DE VILLAS Y ASENTAMIENTOS PRECARIOS. | L67: - | M67: - | N67: 79. INFRAESTRUCTURA, NEXOS Y OBRAS COMPLEMENTARIAS EN LA CUENCA MATANZA RIACHUELO. | O67: 766/2012 | P67: 11 | Q67: 5 | R67: 8 | S67: 6 | T67: 0 | U67: 3 | V67: 7 | W67: 6 | X67: 1 | Y67: - | Z67: - | AA67: LANÚS | AB67: - | AC67: AV. CARLOS PELLEGRINI, MORENO, PSJE AGUIRRE, CNEL. OSORIO | AD67: 2013-01-07 | AE67: - | AF67: 28072454.48 | AG67: 8581005.16 | AH67: 0 | AI67: 36653459.64 | AJ67: 0 | AK67: 0 | AL67: 0 | AM67: - | AN67: 0 | AO67: - | AQ67: - | AR67: - | AS67: - | AT67: - | AU67: 0.4813 | AV67: 0.6583 | AW67: -
B68: 3885 | C68: 1. ESTADO NACIONAL | D68: 09. EXPANSIÓN DE LA RED DE AGUA POTABLE Y SANEAMIENTO DE CLOACAS | E68: SISTEMA RIACHUELO | F68: EMISARIO PLANTA RIACHUELO + INSPECCIÓN | G68: 2 | H68: 64. MINISTERIO DE OBRAS PÚBLICAS | I68: 364 | J68: AYSA | K68: 44. UNIDAD DE COORDINACIÓN GENERAL DEL PROYECTO BIRF 7706-AR | L68: - | M68: 1179I02/1779I02 | N68: 2 | O68: - | P68: 22 | Q68: 5 | R68: 1 | S68: 9 | T68: 2117 | U68: 3 | V68: 8 | W68: 96 | X68: 2 | Y68: RC005 | Z68: - | AA68: AVELLANEDA | AB68: CABA - AVELLANEDA | AC68: RÍO DE LA PLATA | AD68: 2015-01-15 | AE68: 2022-11-30 | AF68: 1242214947 | AG68: 2.322552887e+10 | AH68: 213718099.4 | AI68: 2.468146192e+10 | AJ68: 4795949099 | AK68: 5815770027 | AL68: 2111173597 | AM68: 4039532704 | AN68: 1908981473 | AO68: 2232764070 | AP68: =AN68+AO68 -> 4141745543 | AQ68: 4141745543 | AR68: 646616171.6 | AS68: X | AT68: En ejecución | AU68: 0.9853 | AV68: 0.9853 | AW68: -
B69: 2962 | C69: 4. ACUMAR | D69: 04. ORDENAMIENTO AMBIENTAL DEL TERRITORIO | E69: DIAGNÓSTICO AMBIENTAL CUENCA ALTA MATANZA RIACHUELO | F69: DIAGNÓSTICO AMBIENTAL CUENCA ALTA MATANZA RIACHUELO | G69: 1 | H69: ACUMAR | I69: - | J69: ACUMAR | K69: ORDENAMIENTO AMBIENTAL DEL TERRITORIO | L69: - | M69: - | N69: - | O69: - | P69: - | Q69: - | R69: - | S69: - | T69: - | U69: - | V69: - | W69: - | X69: 1 | Y69: - | Z69: ACUMAR | AA69: CUENCA MATANZA RIACHUELO | AB69: - | AC69: - | AD69: 2012-03-29 | AE69: 2013-01-29 | AF69: 378000 | AG69: 0 | AH69: 0 | AI69: 378000 | AJ69: 668723.36 | AK69: 0 | AL69: 0 | AM69: - | AN69: 0 | AO69: - | AQ69: - | AR69: - | AS69: - | AT69: - | AU69: - | AV69: - | AW69: SE RECTIFICO LA DENOMINACION
B70: 2979 | C70: 4. ACUMAR | D70: 13. SANEAMIENTO DE BASURALES | E70: RECOLECCIÓN DE RESIDUOS | F70: CONVENIO ACUMAR MUNICIP AVELLANEDA LIMPIEZA | G70: 1 | H70: ACUMAR | I70: - | J70: ACUMAR | K70: SANEAMIENTO DE BASURALES | L70: - | M70: - | N70: - | O70: - | P70: - | Q70: 5 | R70: 7 | S70: 6 | T70: - | U70: - | V70: - | W70: - | X70: 1 | Y70: - | Z70: MUNICIPALIDAD DE AVELLANEDA | AA70: AVELLANEDA | AB70: - | AC70: - | AD70: 2012-09-04 | AE70: 2013-03-03 | AF70: 7350000 | AG70: 0 | AH70: 0 | AI70: 7350000 | AJ70: 0 | AK70: 0 | AL70: 0 | AM70: - | AN70: 0 | AO70: - | AQ70: - | AR70: - | AS70: - | AT70: - | AU70: - | AV70: - | AW70: PROYECTO 158
B71: 3012 | C71: 4. ACUMAR | D71: 12. LIMPIEZA DE MÁRGENES Y CAMINO DE SIRGA | E71: LIMPIEZA DE MÁRGENES | F71: PROGRAMA LIMPIEZA DE MÁRGENES ENERO 2015 ENERO 2017 - MUNICIPIO LOMAS DE ZAMORA - | G71: 1 | H71: ACUMAR | I71: - | J71: ACUMAR | K71: LIMPIEZA DE MÁRGENES | L71: - | M71: - | N71: - | O71: - | P71: - | Q71: 5 | R71: 6 | S71: 5 | T71: - | U71: - | V71: - | W71: - | X71: 1 | Y71: - | Z71: MUNICIPALIDAD DE LOMAS DE ZAMORA | AA71: LOMAS DE ZAMORA | AB71: - | AC71: - | AD71: 2017-06-30 | AE71: - | AF71: 272538734 | AG71: 0 | AH71: 0 | AI71: 272538734 | AJ71: 0 | AK71: 0 | AL71: 0 | AM71: - | AN71: 0 | AO71: - | AQ71: - | AR71: - | AS71: - | AT71: - | AU71: - | AV71: - | AW71: PROYECTO 16
B72: 3033 | C72: 4. ACUMAR | D72: 06. PLAN SANITARIO DE EMERGENCIA | E72: UNIDADES SANITARIAS AMBIENTALES | F72: UNIDAD SANITARIA MUNICIPALIDAD DE ESTEBAN ECHEVERRIA | G72: 1 | H72: ACUMAR | I72: - | J72: ACUMAR | K72: PLAN SANITARIO DE EMERGENCIA | L72: - | M72: - | N72: - | O72: - | P72: - | Q72: - | R72: - | S72: - | T72: - | U72: - | V72: - | W72: - | X72: 1 | Y72: - | Z72: MUNICIPALIDAD DE ESTEBAN ECHEVERRIA | AA72: ESTEBAN ECHEVERRÍA | AB72: - | AC72: - | AD72: 2011-12-02 | AE72: 2012-07-02 | AF72: 2350000 | AG72: 0 | AH72: 0 | AI72: 2350000 | AJ72: 6978851.08 | AK72: 361095.64 | AL72: 0 | AM72: - | AN72: 0 | AO72: - | AQ72: - | AR72: - | AS72: - | AT72: - | AU72: - | AV72: - | AW72: EL ID CABA 280.008, CONTINUA BAJO EL ID CABA 280.053. SE RECTIFICO LA DENOMINACION
B73: 3042 | C73: 4. ACUMAR | D73: 06. PLAN SANITARIO DE EMERGENCIA | E73: UNIDADES SANITARIAS AMBIENTALES | F73: UNIDAD SANIT. AMB. MUNICP. LAS HERAS | G73: 1 | H73: ACUMAR | I73: - | J73: ACUMAR | K73: PLAN SANITARIO DE EMERGENCIA | L73: - | M73: - | N73: - | O73: - | P73: - | Q73: 5 | R73: 8 | S73: 6 | T73: - | U73: - | V73: - | W73: - | X73: 1 | Y73: - | Z73: MUNICIPALIDAD DE LAS HERAS | AA73: GENERAL LAS HERAS | AB73: - | AC73: - | AD73: 2011-12-02 | AE73: 2012-08-02 | AF73: 2350000 | AG73: 0 | AH73: 0 | AI73: 2350000 | AJ73: 0 | AK73: 0 | AL73: 0 | AM73: - | AN73: 0 | AO73: - | AQ73: - | AR73: - | AS73: - | AT73: - | AU73: - | AV73: - | AW73: PROYECTO 50
B74: 3043 | C74: 4. ACUMAR | D74: 06. PLAN SANITARIO DE EMERGENCIA | E74: LABORATORIO TOXICOLÓGICO | F74: COMPRA EQUIPAMIENTO LABORATORIO TOXICOLÓGICO DE REFERENCIA PROVINCIAL Y NACIONAL - HOSPITAL CUENCA ALTA - CAÑUELAS | G74: 1 | H74: ACUMAR | I74: - | J74: ACUMAR | K74: PLAN SANITARIO DE EMERGENCIA | L74: - | M74: - | N74: - | O74: - | P74: - | Q74: - | R74: - | S74: - | T74: - | U74: - | V74: - | W74: - | X74: 1 | Y74: - | Z74: JENCK S.A. | AA74: CUENCA MATANZA RIACHUELO | AB74: - | AC74: - | AD74: 2011-05-21 | AE74: 2013-05-21 | AF74: 894813.3 | AG74: 0 | AH74: 0 | AI74: 894813.3 | AJ74: 989439.7 | AK74: 0 | AL74: 0 | AM74: - | AN74: 0 | AO74: - | AQ74: - | AR74: - | AS74: - | AT74: - | AU74: - | AV74: - | AW74: SE RECTIFICO LA DENOMINACION
B75: 3236 | C75: 3. CABA | D75: 08. URBANIZACIÓN DE VILLAS Y ASENTAMIENTOS URBANOS | E75: COMPLEJO RIBERA IGUAZÚ | F75: CONSTRUCCIÓN DE VIVIENDAS PARA LOS RESIDENTES DE LOS ASENTAMIENTOS Y VILLAS LOCALIZADAS EN LAS MÁRGENES DE LA CUENCA MATANZA-RIACHUELO.BENEFICIARIOS: HABITANTES ASENTAMIENTO EL PUEBLITO | G75: 2 | H75: 21. JEFATURA DE GABINETE DE MINISTROS | I75: - | J75: 219. INSTITUTO PARA LA VIVIENDA | K75: 109. VIVIENDAS CON AHORRO PREVIO | L75: 0. VIVIENDAS CON AHORRO PREVIO | M75: 60. ACUMAR | N75: 0. ACUMAR | O75: 56. BARRIO RIBERA IGUAZÚ | P75: 11 | Q75: 4 | R75: 2 | S75: 1 | T75: 0 | U75: 3 | V75: 7 | W75: 4 | X75: 1 | Y75: CONSTRUCCIÓN DE VIVIENDAS | Z75: 290. INSTITUTO DE LA VIVIENDA LEY N° 1.251 | AA75: CABA | AB75: 4 | AC75: IGUAZÚ N° 1.835 | AD75: 2011-01-01 | AE75: - | AF75: 48116847.03 | AG75: 0 | AH75: 48116847.03 | AI75: 113374682 | AJ75: 22163000 | AK75: 25330689.5 | AL75: 0 | AM75: - | AN75: - | AO75: - | AQ75: - | AR75: - | AS75: - | AT75: - | AU75: - | AV75: - | AW75: -
B76: 3886 | C76: 1. ESTADO NACIONAL | D76: 09. EXPANSIÓN DE LA RED DE AGUA POTABLE Y SANEAMIENTO DE CLOACAS | E76: SISTEMA RIACHUELO | F76: EMISARIO PLANTA RIACHUELO + INSPECCIÓN | G76: 2 | H76: 91. OBLIGACIONES DEL TESORO | I76: 356 | J76: AYSA | K76: 95. ASISTENCIA FINANCIERA A EMPRESAS PÚBLICAS Y ENTE BINACIONAL | L76: 5 | M76: 1179L02/1479L98/1779L02 | N76: 77 | O76: - | P76: 22 Y RECURSOS PROPIOS | Q76: 5 | R76: 5 | S76: 7 | T76: 753 | U76: 3 | V76: 8 | W76: 2 | X76: 2 | Y76: RC005 | Z76: - | AA76: AVELLANEDA | AB76: DOCK SUD | AC76: RÍO DE LA PLATA | AD76: 2015-01-15 | AE76: 2021-03-30 | AF76: 1183986122 | AG76: 5271217507 | AH76: 383207871.2 | AI76: 6838411500 | AJ76: 169326757 | AK76: 1764914826 | AL76: 1207846620 | AM76: 3023083960 | AN76: 1211695704 | AO76: 1454716041 | AP76: =AN76+AO76 -> 2666411744 | AQ76: 2666411744 | AR76: 335040326.2 | AS76: X | AT76: En ejecución | AU76: 0.9853 | AV76: 0.9853 | AW76: -
B77: 3912 | C77: 1. ESTADO NACIONAL | D77: 09. EXPANSIÓN DE LA RED DE AGUA POTABLE Y SANEAMIENTO DE CLOACAS | E77: SISTEMA RIACHUELO | F77: PLANTA DE TRATAMIENTO RIACHUELO - OBRA CIVIL | G77: 2 | H77: 91. OBLIGACIONES DEL TESORO | I77: 356 | J77: AYSA | K77: 95. ASISTENCIA FINANCIERA A EMPRESAS PÚBLICAS Y ENTE BINACIONAL | L77: 5 | M77: 1161607 | N77: 77 | O77: - | P77: 22 Y RECURSOS PROPIOS | Q77: 5 | R77: 5 | S77: 7 | T77: 753 | U77: 3 | V77: 8 | W77: 2 | X77: 2 | Y77: RC004 | Z77: - | AA77: AVELLANEDA | AB77: DOCK SUD | AC77: LAS ESTACIONES DE BOMBEO Y LA PLANTA DE PRETRATAMIENTO SE UBICARÁN EN EL PREDIO DE 450M X 350M DE RELLENO SOBRE LA COSTA DEL RÍO DE LA PLATA EN LA ZONA POR EN LA PORTUARIA EN LAS PROXIMIDADES DE LA ESCOLLERA DE PROPANEROS PARTIDO DE AVELLANEDA. | AD77: 2015-06-15 | AE77: Año 2023 | AF77: 290774929.8 | AG77: 8344945768 | AH77: 866966622.5 | AI77: 9502687320 | AJ77: -6736447.629 | AK77: 1257921194 | AL77: 1507929803 | AM77: -280698274.8 | AN77: -280698274.8 | AO77: 38564371.48 | AP77: =AN77+AO77 -> -242133903.3 | AQ77: -242133903.3 | AR77: 0 | AS77: X | AT77: En ejecución | AU77: 0.667962103 | AV77: 0.770632855 | AW77: -
B78: 3913 | C78: 1. ESTADO NACIONAL | D78: 09. EXPANSIÓN DE LA RED DE AGUA POTABLE Y SANEAMIENTO DE CLOACAS | E78: SISTEMA RIACHUELO | F78: PLANTA DE TRATAMIENTO RIACHUELO - OBRA ELECTROMECÁNICA | G78: 2 | H78: 91. OBLIGACIONES DEL TESORO | I78: 356 | J78: AYSA | K78: 95. ASISTENCIA FINANCIERA A EMPRESAS PÚBLICAS Y ENTE BINACIONAL | L78: 5 | M78: 1161609 | N78: 77 | O78: - | P78: 22 Y RECURSOS PROPIOS | Q78: 5 | R78: 5 | S78: 7 | T78: 753 | U78: 3 | V78: 8 | W78: 2 | X78: 2 | Y78: RC004 | Z78: - | AA78: AVELLANEDA | AB78: DOCK SUD | AC78: LAS ESTACIONES DE BOMBEO Y LA PLANTA DE PRETRATAMIENTO SE UBICARÁN EN EL PREDIO DE 450M X 350M DE RELLENO SOBRE LA COSTA DEL RÍO DE LA PLATA EN LA ZONA POR EN LA PORTUARIA EN LAS PROXIMIDADES DE LA ESCOLLERA DE PROPANEROS PARTIDO DE AVELLANEDA. | AD78: 2015-06-15 | AE78: Año 2023 | AF78: 276446915.2 | AG78: 1.048990221e+10 | AH78: 824246603.6 | AI78: 1.159059573e+10 | AJ78: -466268.7447 | AK78: 535974496.1 | AL78: 2469781487 | AM78: -498397766.1 | AN78: -498397766.1 | AO78: 28547309.3 | AP78: =AN78+AO78 -> -469850456.8 | AQ78: -469850456.8 | AR78: 0 | AS78: X | AT78: En ejecución | AU78: 0.5692487079 | AV78: 0.4752266139 | AW78: -
B79: 3914 | C79: 1. ESTADO NACIONAL | D79: 09. EXPANSIÓN DE LA RED DE AGUA POTABLE Y SANEAMIENTO DE CLOACAS | E79: PLANTA DE TRATAMIENTO DE BARROS SUDOESTE | F79: PLANTA DE TRATAMIENTO DE BARROS SUDOESTE OBRA CIVIL | G79: 2 | H79: 91. OBLIGACIONES DEL TESORO | I79: 356 | J79: AYSA | K79: 95. ASISTENCIA FINANCIERA A EMPRESAS PÚBLICAS Y ENTE BINACIONAL | L79: 5 | M79: 1379L05/1479L95 | N79: 77 | O79: - | P79: 22 Y RECURSOS PROPIOS | Q79: 5 | R79: 5 | S79: 7 | T79: 753 | U79: 3 | V79: 8 | W79: 2 | X79: 2 | Y79: OC4021 | Z79: - | AA79: LA MATANZA | AB79: LA MATANZA | AC79: ALDO BONZI EN A:M: JANER Y PALPA, | AD79: 2015-05-19 | AE79: 2022-03-15 | AF79: 64431627.28 | AG79: 677164422.3 | AH79: 6562419.597 | AI79: 748158469.2 | AJ79: 11148382.69 | AK79: 12559377.19 | AL79: 175155852.2 | AM79: 78796405.16 | AN79: 27492982.84 | AO79: 7146771.733 | AP79: =AN79+AO79 -> 34639754.57 | AQ79: 34639754.57 | AR79: 0 | AS79: X | AT79: Finalizado | AU79: 1 | AV79: 1 | AW79: -
B80: 3917 | C80: 1. ESTADO NACIONAL | D80: 09. EXPANSIÓN DE LA RED DE AGUA POTABLE Y SANEAMIENTO DE CLOACAS | E80: PLANTA DE TRATAMIENTO DE BARROS SUDOESTE | F80: PLANTA DE TRATAMIENTO DE BARROS SUDOESTE OBRA ELECTROMECÁNICA | G80: 2 | H80: 91. OBLIGACIONES DEL TESORO | I80: 356 | J80: AYSA | K80: 95. ASISTENCIA FINANCIERA A EMPRESAS PÚBLICAS Y ENTE BINACIONAL | L80: 5 | M80: 1379L06 | N80: 77 | O80: - | P80: 22 Y RECURSOS PROPIOS | Q80: 5 | R80: 5 | S80: 7 | T80: 753 | U80: 3 | V80: 8 | W80: 2 | X80: 2 | Y80: OC4022 | Z80: - | AA80: LA MATANZA | AB80: PARTIDO DE LA MATANZA | AC80: ALDO BONZI EN A:M: JANER Y PALPA, | AD80: 2015-05-19 | AE80: 2022-03-15 | AF80: 38469356.5 | AG80: 2492739739 | AH80: 0 | AI80: 2531209096 | AJ80: 7066163.566 | AK80: 641329806.3 | AL80: 1245784694 | AM80: 324770298 | AN80: 414005439.1 | AO80: 86356115.87 | AP80: =AN80+AO80 -> 500361555 | AQ80: 500361555 | AR80: 0 | AS80: X | AT80: Finalizado | AU80: 1 | AV80: 1 | AW80: -
B81: 3553 | C81: 4. ACUMAR | D81: 03. FORTALECIMIENTO INSTITUCIONAL | E81: MATERIALES GRÁFICOS | F81: IMPRESION DE MATERIALES GRAFICOS | G81: 1 | H81: ACUMAR | I81: - | J81: ACUMAR | K81: PLAN SANITARIO DE EMERGENCIA | L81: - | M81: - | N81: - | O81: - | P81: - | Q81: - | R81: - | S81: - | T81: - | U81: - | V81: - | W81: - | X81: 1 | Y81: - | Z81: ACUMAR | AA81: CUENCA MATANZA RIACHUELO | AB81: - | AC81: - | AD81: - | AE81: - | AF81: 0 | AG81: 0 | AH81: 0 | AI81: 0 | AJ81: 30000 | AK81: 0 | AL81: 0 | AM81: - | AN81: 0 | AO81: - | AQ81: - | AR81: - | AS81: - | AT81: - | AU81: - | AV81: - | AW81: SON OBRAS QUE SE LLEVAN A CABO DE FORMA CONTINUA, MANTENIENDO LA APERTURA PROGRAMATICA PRESUPUESTARIA A TRAVES DE LOS PERIODOS. DIFIERE DE UNA AÑO A OTRO LA LOCALIZACION, LOS BENEFICIARIOS, LAS METAS FISICAS, EL CONTRATISTA, EL ESTADO DE LA OBRA, EL MONTO. SE RECTIFICO LA DENOMINACION. SE RECTIFICO EL MONTO ORIGINAL DE LA OBRA
B82: 3919 | C82: 1. ESTADO NACIONAL | D82: 09. EXPANSIÓN DE LA RED DE AGUA POTABLE Y SANEAMIENTO DE CLOACAS | E82: PLANTA DE TRATAMIENTO DE BARROS SUDOESTE | F82: PLANTA DE TRATAMIENTO DE BARROS SUDOESTE OBRA CIVIL | G82: 2 | H82: 64. MINISTERIO DE OBRAS PÚBLICAS | I82: 364 | J82: AYSA | K82: 44. UNIDAD DE COORDINACIÓN GENERAL DEL PROYECTO BIRF 7706-AR | L82: - | M82: 1379I05 | N82: 2 | O82: - | P82: 22 | Q82: 5 | R82: 1 | S82: 9 | T82: 2117 | U82: 3 | V82: 8 | W82: 96 | X82: 2 | Y82: OC4021 | Z82: - | AA82: LA MATANZA | AB82: PARTIDO DE LA MATANZA | AC82: ALDO BONZI EN A:M: JANER Y PALPA, | AD82: 2015-05-19 | AE82: 2022-03-15 | AF82: 257726509.1 | AG82: 490431960.1 | AH82: 0 | AI82: 748158469.2 | AJ82: 148597472.2 | AK82: 41676120.13 | AL82: 0 | AM82: 29825.29 | AN82: 0 | AO82: 29825.1448 | AP82: =AN82+AO82 -> 29825.1448 | AQ82: 29825.1448 | AR82: 0 | AS82: X | AT82: Finalizado | AU82: 1 | AV82: 1 | AW82: -
B83: 5481 | C83: 1. ESTADO NACIONAL | D83: 09. EXPANSIÓN DE LA RED DE AGUA POTABLE Y SANEAMIENTO DE CLOACAS | E83: SISTEMA RIACHUELO | F83: ESTACION ELEVADORA DE SALIDA - SISTEMA RIACHUELO OBRA CIVIL | G83: 2 | H83: 91. OBLIGACIONES DEL TESORO | I83: 356 | J83: AYSA | K83: 95. ASISTENCIA FINANCIERA A EMPRESAS PÚBLICAS Y ENTE BINACIONAL | L83: 5 | M83: 1161612 | N83: 77 | O83: - | P83: 22 Y RECURSOS PROPIOS | Q83: 5 | R83: 5 | S83: 7 | T83: 753 | U83: 3 | V83: 8 | W83: 2 | X83: 2 | Y83: RC004 | Z83: - | AA83: AVELLANEDA | AB83: DOCK SUD | AC83: LAS ESTACIONES DE BOMBEO Y LA PLANTA DE PRETRATAMIENTO SE UBICARÁN EN EL PREDIO DE 450M X 350M DE RELLENO SOBRE LA COSTA DEL RÍO DE LA PLATA EN LA ZONA POR EN LA PORTUARIA EN LAS PROXIMIDADES DE LA ESCOLLERA DE PROPANEROS PARTIDO DE AVELLANEDA. | AD83: 2015-06-15 | AE83: Año 2023 | AF83: 42400612 | AG83: 1646414897 | AH83: 126420511.6 | AI83: 1815236020 | AJ83: -49171.5565 | AK83: 213503251.2 | AL83: 403768301.7 | AM83: -172823269.5 | AN83: -172823269.5 | AO83: 8478099.692 | AP83: =AN83+AO83 -> -164345169.8 | AQ83: -164345169.8 | AR83: 0 | AS83: X | AT83: En ejecución | AU83: 0.7105 | AV83: 0.5435 | AW83: -
B84: 5482 | C84: 1. ESTADO NACIONAL | D84: 09. EXPANSIÓN DE LA RED DE AGUA POTABLE Y SANEAMIENTO DE CLOACAS | E84: SISTEMA RIACHUELO | F84: ESTACION DE SALIDA - SISTEMA RIACHUELO OBRA ELECTROMECANICA | G84: 2 | H84: 91. OBLIGACIONES DEL TESORO | I84: 356 | J84: AYSA | K84: 95. ASISTENCIA FINANCIERA A EMPRESAS PÚBLICAS Y ENTE BINACIONAL | L84: 5 | M84: 1161613 | N84: 77 | O84: - | P84: 22 Y RECURSOS PROPIOS | Q84: 5 | R84: 5 | S84: 7 | T84: 753 | U84: 3 | V84: 8 | W84: 2 | X84: 2 | Y84: RC004 | Z84: - | AA84: AVELLANEDA | AB84: DOCK SUD | AC84: LAS ESTACIONES DE BOMBEO Y LA PLANTA DE PRETRATAMIENTO SE UBICARÁN EN EL PREDIO DE 450M X 350M DE RELLENO SOBRE LA COSTA DEL RÍO DE LA PLATA EN LA ZONA POR EN LA PORTUARIA EN LAS PROXIMIDADES DE LA ESCOLLERA DE PROPANEROS PARTIDO DE AVELLANEDA. | AD84: 2015-06-15 | AE84: Año 2023 | AF84: 204477790 | AG84: 6557730313 | AH84: 609665418 | AI84: 7371873521 | AJ84: 0 | AK84: 322797253.1 | AL84: 1546399148 | AM84: -785837274.9 | AN84: -785837274.9 | AO84: 19699002.95 | AP84: =AN84+AO84 -> -766138271.9 | AQ84: -766138271.9 | AR84: 0 | AS84: X | AT84: En ejecución | AU84: 0.609069967 | AV84: 0.3211978878 | AW84: AL SER UNA OBRA ELECTROMECÁNICA, LA DIFERENCIA ENTRE EL AVANCE ECONÓMICO Y EL FÍSICO CORRESPONDE A LA CERTIFICACIÓN DE ÍTEMS QUE NO REPERCUTEN EN EL ÚLTIMO HASTA SU INSTALACIÓN
B85: 3584 | C85: 1. ESTADO NACIONAL | D85: 09. EXPANSIÓN DE LA RED DE AGUA POTABLE Y SANEAMIENTO DE CLOACAS | E85: REGULARIZACIÓN CONEXIONES DE AGUA | F85: REGULARIZACIÓN CONEXIONES DE AGUA | G85: 2 | H85: 91. OBLIGACIONES DEL TESORO | I85: 356 | J85: AYSA | K85: 95. ASISTENCIA FINANCIERA A EMPRESAS PÚBLICAS Y ENTE BINACIONAL | L85: 5 | M85: 1011701 | N85: 5 | O85: - | P85: 11 | Q85: 5 | R85: 5 | S85: 7 | T85: 753 | U85: 3 | V85: 8 | W85: 96 | X85: 2 | Y85: SIN P3 | Z85: - | AA85: LA MATANZA - MORÓN | AB85: LA MATANZA - MORÓN | AC85: LA MATANZA - MORÓN | AD85: 01/01/2010 - 01/08/2010 | AE85: 2010-12-31 | AF85: NOTA 6-NOTA 8-NOTA 9 | AG85: NOTA 6-NOTA 8-NOTA 9 | AH85: 0 | AI85: NOTA 6-NOTA 8-NOTA 9 | AJ85: -5040.2429 | AK85: 0 | AL85: 0 | AM85: 0 | AN85: 0 | AO85: 0 | AQ85: - | AR85: - | AS85: - | AT85: FINALIZADO | AU85: 1 | AV85: 1 | AW85: -
B86: 3702 | C86: 4. ACUMAR | D86: 06. PLAN SANITARIO DE EMERGENCIA | E86: FOTÓMETROS | F86: ADQUISICIÓN DE DOS FOTOMETROS PARA LA LECTURA DE HEMOGLOBINA, MICROCUBETAS Y LANCETAS PARA PUNCION DIGITAL | G86: 1 | H86: ACUMAR | I86: - | J86: ACUMAR | K86: PLAN SANITARIO DE EMERGENCIA | L86: - | M86: - | N86: - | O86: - | P86: - | Q86: - | R86: - | S86: - | T86: - | U86: - | V86: - | W86: - | X86: 1 | Y86: - | Z86: ACUMAR | AA86: CUENCA MATANZA RIACHUELO | AB86: - | AC86: - | AD86: 2011-11-16 | AE86: - | AF86: 33560 | AG86: 0 | AH86: 0 | AI86: 33560 | AJ86: 94000 | AK86: 0 | AL86: 0 | AM86: - | AN86: 0 | AO86: - | AQ86: - | AR86: - | AS86: - | AT86: - | AU86: - | AV86: - | AW86: -
B87: 3703 | C87: 4. ACUMAR | D87: 06. PLAN SANITARIO DE EMERGENCIA | E87: ANALIZADORES DE PLOMO EN SANGRE | F87: ADQUISICIÓN DE DOS ANALIZADORES DE PLOMO EN SANGRE PORTABLES Y 85 KITS DE REACTIVOS | G87: 1 | H87: ACUMAR | I87: - | J87: ACUMAR | K87: PLAN SANITARIO DE EMERGENCIA | L87: - | M87: - | N87: - | O87: - | P87: - | Q87: - | R87: - | S87: - | T87: - | U87: - | V87: - | W87: - | X87: 1 | Y87: - | Z87: ACUMAR | AA87: CUENCA MATANZA RIACHUELO | AB87: - | AC87: - | AD87: 2011-10-31 | AE87: - | AF87: 302033.9 | AG87: 0 | AH87: 0 | AI87: 302033.9 | AJ87: 0 | AK87: 0 | AL87: 0 | AM87: - | AN87: 0 | AO87: - | AQ87: - | AR87: - | AS87: - | AT87: - | AU87: - | AV87: - | AW87: -
B88: 5483 | C88: 1. ESTADO NACIONAL | D88: 09. EXPANSIÓN DE LA RED DE AGUA POTABLE Y SANEAMIENTO DE CLOACAS | E88: SISTEMA RIACHUELO | F88: ESTACION ELEVADORA DE ENTRADA - SISTEMA RIACHUELO OBRA CIVIL | G88: 2 | H88: 91. OBLIGACIONES DEL TESORO | I88: 356 | J88: AYSA | K88: 95. ASISTENCIA FINANCIERA A EMPRESAS PÚBLICAS Y ENTE BINACIONAL | L88: 5 | M88: 1161610 | N88: 77 | O88: - | P88: 22 Y RECURSOS PROPIOS | Q88: 5 | R88: 5 | S88: 7 | T88: 753 | U88: 3 | V88: 8 | W88: 2 | X88: 2 | Y88: RC004 | Z88: - | AA88: AVELLANEDA | AB88: DOCK SUD | AC88: LAS ESTACIONES DE BOMBEO Y LA PLANTA DE PRETRATAMIENTO SE UBICARÁN EN EL PREDIO DE 450M X 350M DE RELLENO SOBRE LA COSTA DEL RÍO DE LA PLATA EN LA ZONA POR EN LA PORTUARIA EN LAS PROXIMIDADES DE LA ESCOLLERA DE PROPANEROS PARTIDO DE AVELLANEDA. | AD88: 2015-06-15 | AE88: Año 2023 | AF88: 158750246 | AG88: 4597088320 | AH88: 473325414.1 | AI88: 5229163980 | AJ88: -31452142.88 | AK88: 620609499.6 | AL88: 852731226.3 | AM88: -298816648.5 | AN88: -298816648.5 | AO88: 11393156.44 | AP88: =AN88+AO88 -> -287423492 | AQ88: -287423492 | AR88: 0 | AS88: X | AT88: En ejecución | AU88: 0.5924489655 | AV88: 0.5678828093 | AW88: -
B89: 5484 | C89: 1. ESTADO NACIONAL | D89: 09. EXPANSIÓN DE LA RED DE AGUA POTABLE Y SANEAMIENTO DE CLOACAS | E89: SISTEMA RIACHUELO | F89: ESTACION DE ENTRADA - SISTEMA RIACHUELO OBRA ELECTROMECANICA | G89: 2 | H89: 91. OBLIGACIONES DEL TESORO | I89: 356 | J89: AYSA | K89: 95. ASISTENCIA FINANCIERA A EMPRESAS PÚBLICAS Y ENTE BINACIONAL | L89: 5 | M89: 1161611 | N89: 77 | O89: - | P89: 22 Y RECURSOS PROPIOS | Q89: 5 | R89: 5 | S89: 7 | T89: 753 | U89: 3 | V89: 8 | W89: 2 | X89: 2 | Y89: RC004 | Z89: - | AA89: AVELLANEDA | AB89: DOCK SUD | AC89: LAS ESTACIONES DE BOMBEO Y LA PLANTA DE PRETRATAMIENTO SE UBICARÁN EN EL PREDIO DE 450M X 350M DE RELLENO SOBRE LA COSTA DEL RÍO DE LA PLATA EN LA ZONA POR EN LA PORTUARIA EN LAS PROXIMIDADES DE LA ESCOLLERA DE PROPANEROS PARTIDO DE AVELLANEDA. | AD89: 2015-06-15 | AE89: Año 2023 | AF89: 286488703 | AG89: 8926206370 | AH89: 854186923.2 | AI89: 1.0066882e+10 | AJ89: 0 | AK89: 332106917.4 | AL89: 2101016517 | AM89: -859117480 | AN89: -859117480 | AO89: 22820059.14 | AP89: -836297420.8 | AQ89: -836297420.8 | AR89: 0 | AS89: X | AT89: En ejecución | AU89: 0.50938562 | AV89: 0.3286444414 | AW89: -
B90: 5931 | C90: 1. ESTADO NACIONAL | D90: 10. DESAGÜES PLUVIALES | E90: ARROYO DEL REY | F90: ESTACIÓN DE BOMBEO ARROYO DEL REY | G90: - | H90: 64. MINISTERIO DE OBRAS PÚBLICAS | I90: - | J90: SECRETARÍA DE INFRAESTRUCTURA Y POLÍTICA HÍDRICA | K90: EXTRAPRESUPUESTARIO - FFIH - FONDO FIDUCIARIO INFRAESTRUCTURA HÍDRICA | L90: - | M90: - | N90: - | O90: BUE197791 | P90: FFIH | Q90: - | R90: - | S90: - | T90: - | U90: - | V90: - | W90: - | X90: - | Y90: - | Z90: MUNICIPIO | AA90: LOMAS DE ZAMORA | AB90: ING. BUDGE | AC90: ARROYO DEL REY | AD90: 2015-01-12 | AE90: - | AF90: 146607448.9 | AG90: 247197527.7 | AH90: 0 | AI90: 393804976.6 | AJ90: 12898922 | AK90: 34447927.15 | AL90: 42078801.23 | AM90: 33493620.2 | AN90: 29072685.34 | AO90: 0 | AP90: 29072685.34 | AQ90: 29072685.34 | AR90: 4420934.86 | AS90: X | AT90: FINALIZADO | AU90: 0.99 | AV90: 0.9985 | AW90: -
B91: 5946 | C91: 1. ESTADO NACIONAL | D91: 09. EXPANSIÓN DE LA RED DE AGUA POTABLE Y SANEAMIENTO DE CLOACAS | E91: REDES CLOACALES ACCIONES COMPLEMENTARIAS | F91: SERVICIO DE INSPECCION DE OBRA EN REDES CLOACALES - COLECTORES CLOACALES - IMPULSIONES | G91: 2 | H91: 91. OBLIGACIONES DEL TESORO | I91: 356 | J91: AYSA | K91: 95. ASISTENCIA FINANCIERA A EMPRESAS PÚBLICAS Y ENTE BINACIONAL | L91: 5 | M91: 1560302 | N91: 77 | O91: - | P91: 22 Y RECURSOS PROPIOS | Q91: 5 | R91: 5 | S91: 7 | T91: 753 | U91: 3 | V91: 8 | W91: 2 | X91: 2 | Y91: VC70001 | Z91: - | AA91: CUENCA MATANZA RIACHUELO | AB91: VARIOS | AC91: SERVICIO DE INSPECCION DE OBRA EN REDES CLOACALES - COLECTORAS CLOACALES - IMPULSIONES A EJECUTARSE O EN EJECUCION DENTRO DE TODA EL AREA DE CONCESION DE AGUAS Y SANEAMIENTOS ARGENTINOS S.A. | AD91: 2015-08-01 | AE91: AÑO 2021 | AF91: 10851193.7 | AG91: -13887692.49 | AH91: 131109666 | AI91: 128073167.2 | AJ91: 35661976.27 | AK91: 23513815.3 | AL91: 0 | AM91: 0 | AN91: 0 | AO91: 0 | AP91: 0 | AQ91: 0 | AR91: 0 | AS91: X | AT91: Finalizado | AU91: 1 | AV91: 1 | AW91: POR SER INSPECCIÓN, AVANCE FÍSICO ES IGUAL QUE ECONÓMICO
B92: 5949 | C92: 1. ESTADO NACIONAL | D92: 09. EXPANSIÓN DE LA RED DE AGUA POTABLE Y SANEAMIENTO DE CLOACAS | E92: SISTEMA RIACHUELO | F92: SERVICIO DE APOYO A LA INSPECCION DE OBRA PARA SISTEMA RIACHUELO "LOTE 2" | G92: 2 | H92: 91. OBLIGACIONES DEL TESORO | I92: 356 | J92: AYSA | K92: 95. ASISTENCIA FINANCIERA A EMPRESAS PÚBLICAS Y ENTE BINACIONAL | L92: 5 | M92: 1561602 | N92: 77 | O92: - | P92: 22 Y RECURSOS PROPIOS | Q92: 5 | R92: 5 | S92: 7 | T92: 753 | U92: 3 | V92: 8 | W92: 2 | X92: 2 | Y92: SX70000 | Z92: - | AA92: AVELLANEDA | AB92: DOCK SUD | AC92: LAS ESTACIONES DE BOMBEO Y LA PLANTA DE PRETRATAMIENTO SE UBICARÁN EN EL PREDIO DE 450M X 350M DE RELLENO SOBRE LA COSTA DEL RÍO DE LA PLATA EN LA ZONA POR EN LA PORTUARIA EN LAS PROXIMIDADES DE LA ESCOLLERA DE PROPANEROS PARTIDO DE AVELLANEDA. | AD92: 2016-02-01 | AE92: PI reemplazado por 2179602 | AF92: 17436705 | AG92: 25123206.7 | AH92: 97577636.69 | AI92: 140137548.4 | AJ92: 9254203.807 | AK92: 32997581.45 | AL92: 58653033.39 | AM92: 3821215.695 | AN92: 3821215.695 | AO92: -3821215.695 | AP92: 0 | AQ92: 0 | AR92: 0 | AS92: X | AT92: Proyecto reemplazado | AU92: 1 | AV92: 1 | AW92: POR SER INSPECCIÓN, AVANCE FÍSICO ES IGUAL QUE ECONÓMICO. PI REEMPLAZADO POR 2179602
B93: 6458 | C93: 1. ESTADO NACIONAL | D93: 09. EXPANSIÓN DE LA RED DE AGUA POTABLE Y SANEAMIENTO DE CLOACAS | E93: REDES CLOACALES LOMAS DE ZAMORA | F93: RED PRIMARIA CLOACAL - COLECTOR BUDGE | G93: 2 | H93: 91. OBLIGACIONES DEL TESORO | I93: 356 | J93: AYSA | K93: 95. ASISTENCIA FINANCIERA A EMPRESAS PÚBLICAS Y ENTE BINACIONAL | L93: 5 | M93: 1660301 | N93: 77 | O93: - | P93: 22 Y RECURSOS PROPIOS | Q93: 5 | R93: 5 | S93: 7 | T93: 753 | U93: 3 | V93: 8 | W93: 2 | X93: 2 | Y93: SC70023 | Z93: - | AA93: LOMAS DE ZAMORA | AB93: ING. BUDGE | AC93: EL COLECTOR BUDGE INICIARÁ SU RECORRIDO CON UN DN1000 POR LA CALLE ESPRONCEDA ESQUINA AYOLAS, CONTINUANDO POR ESTA ÚLTIMA HASTA COSQUÍN, GIRA Y CONTINÚA HASTA NECOL PARA SEGUIR POR ÉSTA HASTA EMPALMAR CON EL COLECTOR FIORITO. | AD93: 2016-09-09 | AE93: 2021-12-28 | AF93: 121000000 | AG93: 1243078977 | AH93: 126394076.2 | AI93: 1490473053 | AJ93: 50992491.32 | AK93: 107829226.2 | AL93: 950885556.3 | AM93: 252107615.1 | AN93: 231613012.8 | AO93: 19518668.89 | AP93: 251131681.6 | AQ93: 251131681.6 | AR93: 0 | AS93: X | AT93: Finalizado | AU93: 1 | AV93: 1 | AW93: -
B94: 6488 | C94: 1. ESTADO NACIONAL | D94: 09. EXPANSIÓN DE LA RED DE AGUA POTABLE Y SANEAMIENTO DE CLOACAS | E94: OBRA CLOACAS LOMAS DE ZAMORA | F94: RED SECUNDARIA CLOACAL BUDGE. PARTIDO DE LOMAS DE ZAMORA | G94: 2 | H94: 91. OBLIGACIONES DEL TESORO | I94: 356 | J94: AYSA | K94: 95. ASISTENCIA FINANCIERA A EMPRESAS PÚBLICAS Y ENTE BINACIONAL | L94: 5 | M94: 1660408 | N94: 77 | O94: - | P94: 22 Y RECURSOS PROPIOS | Q94: 5 | R94: 5 | S94: 7 | T94: 753 | U94: 3 | V94: 8 | W94: 2 | X94: 2 | Y94: SC592000 | Z94: - | AA94: LOMAS DE ZAMORA | AB94: LOMAS DE ZAMORA | AC94: EL SECTOR DE LA RED SECUNDARIA SE ENCUENTRA DELIMITADO POR LAS SIGUIENTES CALLES: CANADÁ, RICARDO PALMA, CAMPANA, ANTONIO MACHADO, BARADERO, CLAUDIO DE ALAS, CALLE DE LA RIBERA SUR Y CAMINO DEL PUENTE DE LA NORIA. | AD94: 2018-05-01 | AE94: 2021-11-10 | AF94: 173844769.2 | AG94: 977405417.5 | AH94: 115485593.7 | AI94: 1266735780 | AJ94: 235925520 | AK94: 145225893.4 | AL94: 478943831.9 | AM94: 381466346.5 | AN94: 357084778.5 | AO94: 119127.0652 | AP94: 357203905.6 | AQ94: 357203905.6 | AR94: 0 | AS94: X | AT94: Finalizado | AU94: 1 | AV94: 1 | AW94: -
B95: 6490 | C95: 1. ESTADO NACIONAL | D95: 09. EXPANSIÓN DE LA RED DE AGUA POTABLE Y SANEAMIENTO DE CLOACAS | E95: REDES DE AGUA LA MATANZA | F95: RED PRIMARIA DE AGUA - VINCULACIÓN ACUEDUCTO CON BATERÍA LAS NIEVES - E II | G95: 2 | H95: 91. OBLIGACIONES DEL TESORO | I95: 356 | J95: AYSA | K95: 95. ASISTENCIA FINANCIERA A EMPRESAS PÚBLICAS Y ENTE BINACIONAL | L95: 5 | M95: 1660005 | N95: 77 | O95: - | P95: 22 Y RECURSOS PROPIOS | Q95: 5 | R95: 5 | S95: 7 | T95: 753 | U95: 3 | V95: 8 | W95: 2 | X95: 2 | Y95: OA681 | Z95: - | AA95: LA MATANZA | AB95: GONZÁLEZ CATÁN | AC95: LA TRAZA DE LA CAÑERÍA DE IMPULSIÓN CONSTA DE LOS SIGUIENTES TRAMOS: CALLE ACHUPALLAS ENTRE BAVIO Y EL JAZMÍN, CALLE CARAFFA ENTRE V. NUÑEZ DE BALBOA Y ACHUPALLAS, CALLE EL JAZMÍN ENTRE ACHUPALLAS Y TOAY, CALLE TOAY ENTRE MARIANO ARIAS Y ARMONÍA, CALLE ARMONÍA ENTRE TOAY Y JUAN B. JUSTO, CALLE ICALMA ENTRE ARMONÍA Y FEDERICO BÁEZ, CALLE FEDERICO BÁEZ ENTRE LA BASTILLA E ICALMA, CALLE MAESTRA CONCEPCIÓN VALLE ENTRE FEDERICO BÁEZ Y V. NUÑEZ DE BALBOA, CALLE V. NUÑEZ DE BALBOA ENTRE MAESTRA CONCEPCIÓN VALLE Y URDANETA, CALLE URDANETA ENTRE V. NUÑEZ DE BALBOA Y CONONEL CONDE, CALLE ZINNY ENTRE FEDERICO BÁEZ Y V. NUÑEZ DE BALBOA Y CALLE BASTILLA ENTRE FEDERICO BÁEZ Y V. NUÑEZ DE BALBOA. | AD95: 2016-11-22 | AE95: 2021-11-12 | AF95: 45450546.14 | AG95: 17803052.08 | AH95: 68113977.38 | AI95: 131367575.6 | AJ95: 0 | AK95: 0 | AL95: 67537245.55 | AM95: 16189220.39 | AN95: 16189220.39 | AO95: 0 | AP95: 16189220.39 | AQ95: 16189220.39 | AR95: 0 | AS95: X | AT95: Finalizado | AU95: 1 | AV95: 1 | AW95: -
B96: 6594 | C96: 1. ESTADO NACIONAL | D96: 09. EXPANSIÓN DE LA RED DE AGUA POTABLE Y SANEAMIENTO DE CLOACAS | E96: REDES DE AGUA ESTEBAN ECHEVERRÍA | F96: RED SECUNDARIA DE AGUA MONTE GRANDE III - RESTO I (1660107) | G96: 2 | H96: 91. OBLIGACIONES DEL TESORO | I96: 356 | J96: AYSA | K96: 95. ASISTENCIA FINANCIERA A EMPRESAS PÚBLICAS Y ENTE BINACIONAL | L96: 5 | M96: 1660107 | N96: 77 | O96: - | P96: 22 Y RECURSOS PROPIOS | Q96: 5 | R96: 5 | S96: 7 | T96: 753 | U96: 3 | V96: 8 | W96: 2 | X96: 2 | Y96: SA700590 | Z96: - | AA96: ESTEBAN ECHEVERRÍA | AB96: MONTE GRANDE | AC96: LAS OBRAS DE LA RED SECUNDARIA DE PROVISIÓN DE AGUA POTABLE EN LA LOCALIDAD DE MONTE GRANDE, PARTIDO DE ESTEBAN ECHEVERRÍA, LA ZONA ES LA DELIMITADA POR LAS CALLES AV. RAMON SANTAMARINA, AV. ENRIQUE SANTAMARINA, (RUTA PROVINCIAL N°205), GENERAL PAZ, INTENDENTE ITALIANI, CARLOS PELEGRINI, CORNELIO SAAVEDRA, CRITÓBAL COLÓN, ANDRES BERASAIN, PEDRO FARINIA Y PEDRO DREYER. | AD96: 2017-02-02 | AE96: 2018-10-31 | AF96: 40611812.42 | AG96: 7768090.614 | AH96: 2123323.587 | AI96: 50503226.62 | AJ96: 9061565.757 | AK96: -262218.6039 | AL96: 2889208.101 | AM96: 0 | AN96: 0 | AO96: 3386694.446 | AP96: 3386694.446 | AQ96: 3386694.446 | AR96: 0 | AS96: X | AT96: Finalizado | AU96: 1 | AV96: 1 | AW96: -
B97: 6611 | C97: 1. ESTADO NACIONAL | D97: 09. EXPANSIÓN DE LA RED DE AGUA POTABLE Y SANEAMIENTO DE CLOACAS | E97: SISTEMA CLOACAS EZEIZA | F97: RED SECUNDARIA CLOACAL EZEIZA - RESTO 1 (PARCIAL) | G97: 2 | H97: 91. OBLIGACIONES DEL TESORO | I97: 356 | J97: AYSA | K97: 95. ASISTENCIA FINANCIERA A EMPRESAS PÚBLICAS Y ENTE BINACIONAL | L97: 5 | M97: 1660437 | N97: 77 | O97: - | P97: 22 Y RECURSOS PROPIOS | Q97: 5 | R97: 5 | S97: 7 | T97: 753 | U97: 3 | V97: 8 | W97: 2 | X97: 2 | Y97: SC700410 | Z97: - | AA97: EZEIZA | AB97: EZEIZA | AC97: EL SECTOR DE PROYECTO SE ENCUENTRA DELIMITADO POR LAS SIGUIENTES CALLES: FRENCH, SALTA, GRANADEROS, CASEROS, HUMBERTO 1°, CASTELLI, MALVINAS ARGENTINAS, FLORENCIO VARELA, HUMBERTO 1°, DORREGO. | AD97: 2018-05-01 | AE97: 2021-06-25 | AF97: 76672365.63 | AG97: 216065858.4 | AH97: 14346007.9 | AI97: 307084232 | AJ97: 14826599.49 | AK97: 71736683.83 | AL97: 203186029.7 | AM97: 2890012.291 | AN97: 2890012.291 | AO97: 0 | AP97: 2890012.291 | AQ97: 2890012.291 | AR97: 0 | AS97: X | AT97: Finalizado | AU97: 1 | AV97: 1 | AW97: -
B98: 6854 | C98: 1. ESTADO NACIONAL | D98: 09. EXPANSIÓN DE LA RED DE AGUA POTABLE Y SANEAMIENTO DE CLOACAS | E98: REDES CLOACALES VILLA 21-24 | F98: SANEAMIENTO AGUA Y CLOACAS-BARRIOS TRES ROSAS, SAN BLAS (VILLA 21/24) | G98: 2 | H98: 64. MINISTERIO DE OBRAS PÚBLICAS | I98: 364 | J98: MINISTERIO DE OBRAS PUBLICAS | K98: 44. UNIDAD DE COORDINACIÓN GENERAL DEL PROYECTO BIRF 7706-AR | L98: - | M98: 7 | N98: 0 | O98: 51 | P98: 11 | Q98: 4 | R98: 2 | S98: 2 | T98: - | U98: 4 | V98: 4 | W98: 2 | X98: 1 | Y98: - | Z98: UCGP | AA98: CABA | AB98: COMUNA 4 | AC98: SISTEMA DE AGUA, CLOACAS Y PLUVIALES | AD98: 2017-07-14 | AE98: 2021-09-15 | AF98: 291257107.8 | AG98: 26667932.19 | AH98: 0 | AI98: 317925040 | AJ98: 0 | AK98: 0 | AL98: 0 | AM98: 100000000 | AN98: 0 | AO98: 96130463 | AP98: 96130463 | AQ98: 96130463 | AR98: 100000000 | AS98: X | AT98: - | AU98: 0.9885 | AV98: 1 | AW98: PAGO DEL FONDO DE REPARO
B99: 3920 | C99: 1. ESTADO NACIONAL | D99: 09. EXPANSIÓN DE LA RED DE AGUA POTABLE Y SANEAMIENTO DE CLOACAS | E99: PLANTA DE TRATAMIENTO DE BARROS SUDOESTE | F99: PLANTA DE TRATAMIENTO DE BARROS SUDOESTE OBRA ELECTROMECÁNICA | G99: 2 | H99: 64. MINISTERIO DE OBRAS PÚBLICAS | I99: 364 | J99: AYSA | K99: 44. UNIDAD DE COORDINACIÓN GENERAL DEL PROYECTO BIRF 7706-AR | L99: - | M99: 1379I06 | N99: 2 | O99: - | P99: 22 | Q99: 5 | R99: 1 | S99: 9 | T99: 2117 | U99: 3 | V99: 8 | W99: 96 | X99: 2 | Y99: OC4022 | Z99: - | AA99: LA MATANZA | AB99: PARTIDO DE LA MATANZA | AC99: ALDO BONZI EN A:M: JANER Y PALPA, | AD99: - | AE99: - | AF99: - | AG99: - | AH99: 0 | AI99: - | AJ99: 162011589.6 | AK99: 428786386.5 | AL99: 0 | AM99: 0 | AN99: 0 | AO99: 0 | AQ99: - | AR99: - | AS99: - | AT99: - | AU99: - | AV99: - | AW99: -
B100: 3994 | C100: 3. CABA | D100: 06. PLAN SANITARIO DE EMERGENCIA | E100: CAMPAÑA DE PREVENCIÓN | F100: CAMPAÑAS DE PREVENCIÓN Y MITIGACIÓN DE RIESGO. CAPACITACIONES Y DISTRIBUCIÓN DE FOLLETERÍA CON PERSONAL PROPIO | G100: 2 | H100: 26. MINISTERIO DE JUSTICIA Y SEGURIDAD | I100: - | J100: 0. MINISTERIO DE JUSTICIA Y SEGURIDAD | K100: 53. PLANIFICACIÓN Y CONTROL DEFENSA CIVIL | L100: 0. PLANIFICACIÓN Y CONTROL DEFENSA CIVIL | M100: 0. PLANIFICACIÓN Y CONTROL DEFENSA CIVIL | N100: 60. ACUMAR | O100: 0. ACUMAR | P100: 11 | Q100: 3 | R100: 5 | S100: 3 | T100: 0 | U100: 2 | V100: 2 | W100: 4 | X100: 1 | Y100: PLANIFICACIÓN Y CONTROL DEFENSA CIVIL | Z100: 153. DIRECCIÓN GENERAL DE DEFENSA CIVIL | AA100: CABA | AB100: 4 | AC100: COMUNA 4 | AD100: - | AE100: - | AF100: 0 | AG100: 0 | AH100: 0 | AI100: 0 | AJ100: 0 | AK100: 0 | AL100: 0 | AM100: - | AN100: - | AO100: - | AQ100: - | AR100: - | AS100: - | AT100: - | AU100: - | AV100: - | AW100: -
B101: 4004 | C101: 3. CABA | D101: 06. PLAN SANITARIO DE EMERGENCIA | E101: CAMPAÑA DE PREVENCIÓN | F101: CAMPAÑAS DE PREVENCIÓN Y MITIGACIÓN DE RIESGO. CAPACITACIONES Y DISTRIBUCIÓN DE FOLLETERÍA CON PERSONAL PROPIO | G101: 2 | H101: 26. MINISTERIO DE JUSTICIA Y SEGURIDAD | I101: - | J101: 0. MINISTERIO DE JUSTICIA Y SEGURIDAD | K101: 53. PLANIFICACIÓN Y CONTROL DEFENSA CIVIL | L101: 0. PLANIFICACIÓN Y CONTROL DEFENSA CIVIL | M101: 0. PLANIFICACIÓN Y CONTROL DEFENSA CIVIL | N101: 60. ACUMAR | O101: 0. ACUMAR | P101: 11 | Q101: 3 | R101: 5 | S101: 3 | T101: 0 | U101: 2 | V101: 2 | W101: 8 | X101: 1 | Y101: PLANIFICACIÓN Y CONTROL DEFENSA CIVIL | Z101: 153. DIRECCIÓN GENERAL DE DEFENSA CIVIL | AA101: CABA | AB101: 8 | AC101: COMUNA 8 | AD101: - | AE101: - | AF101: 0 | AG101: 0 | AH101: 0 | AI101: 0 | AJ101: 0 | AK101: 0 | AL101: 0 | AM101: - | AN101: - | AO101: - | AQ101: - | AR101: - | AS101: - | AT101: - | AU101: - | AV101: - | AW101: -
B102: 4014 | C102: 3. CABA | D102: 06. PLAN SANITARIO DE EMERGENCIA | E102: CAMPAÑA DE PREVENCIÓN | F102: CAMPAÑAS DE PREVENCIÓN Y MITIGACIÓN DE RIESGO. CAPACITACIONES Y DISTRIBUCIÓN DE FOLLETERÍA CON PERSONAL PROPIO | G102: 2 | H102: 26. MINISTERIO DE JUSTICIA Y SEGURIDAD | I102: - | J102: 0. MINISTERIO DE JUSTICIA Y SEGURIDAD | K102: 53. PLANIFICACIÓN Y CONTROL DEFENSA CIVIL | L102: 0. PLANIFICACIÓN Y CONTROL DEFENSA CIVIL | M102: 0. PLANIFICACIÓN Y CONTROL DEFENSA CIVIL | N102: 60. ACUMAR | O102: 0. ACUMAR | P102: 11 | Q102: 3 | R102: 5 | S102: 3 | T102: 0 | U102: 2 | V102: 2 | W102: 9 | X102: 1 | Y102: PLANIFICACIÓN Y CONTROL DEFENSA CIVIL | Z102: 153. DIRECCIÓN GENERAL DE DEFENSA CIVIL | AA102: CABA | AB102: 9 | AC102: COMUNA 9 | AD102: - | AE102: - | AF102: 0 | AG102: 0 | AH102: 0 | AI102: 0 | AJ102: 0 | AK102: 0 | AL102: 0 | AM102: - | AN102: - | AO102: - | AQ102: - | AR102: - | AS102: - | AT102: - | AU102: - | AV102: - | AW102: -
B103: 4273 | C103: 3. CABA | D103: 07. MONITOREO DE LA CALIDAD DE AGUA, SEDIMENTOS Y AIRE | E103: ANÁLISIS AMBIENTALES | F103: GESTIÓN AMBIENTAL BORDE COSTERO | G103: 2 | H103: 35. MINISTERIO DE AMBIENTE Y ESPACIO PÚBLICO | I103: - | J103: 933. AGENCIA DE PROTECCIÓN AMBIENTAL | K103: 93. ESTRATEGIAS AMBIENTALES | L103: 0. ESTRATEGIAS AMBIENTALES | M103: 0. ESTRATEGIAS AMBIENTALES | N103: 11. GESTIÓN AMBIENTAL BORDE COSTERO | O103: 0. GESTIÓN AMBIENTAL BORDE COSTERO | P103: 11 | Q103: 3 | R103: 5 | S103: 2 | T103: 0 | U103: 4 | V103: 4 | W103: 8 | X103: 1 | Y103: ESTRATEGIAS AMBIENTALES | Z103: 8939. DIRECCIÓN GENERAL ESTRATEGIAS AMBIENTALES | AA103: CABA | AB103: 8 | AC103: COMUNA 8 | AD103: - | AE103: - | AF103: 0 | AG103: 0 | AH103: 0 | AI103: 0 | AJ103: 542664 | AK103: 0 | AL103: 0 | AM103: - | AN103: - | AO103: - | AQ103: - | AR103: - | AS103: - | AT103: - | AU103: - | AV103: - | AW103: -
B104: 4376 | C104: 3. CABA | D104: 11. CONTAMINACIÓN DE ORIGEN INDUSTRIAL | E104: EVALUACIONES AMBIENTALES | F104: EL PROGRAMA BUENOS AIRES PRODUCE MÁS LIMPIO PROPONE, DESDE UN PUNTO DE VISTA AMBIENTAL, UNA GESTIÓN INSTITUCIONAL DE CARÁCTER INTEGRAL, ENTENDIENDO ESTE CONCEPTO COMO EL COMPROMISO Y LA PARTICIPACIÓN CONJUNTA DE ACTORES PÚBLICOS Y PRIVADOS. PARA ELLO, INVOLUCRA EN LA TOMA DE DECISIONES TANTO A LAS AUTORIDADES DEL GOBIERNO DE LA CIUDAD AUTÓNOMA DE BUENOS AIRES, COMO A LAS EMPRESAS Y SUS ENTIDADES REPRESENTATIVAS Y LAS ORGANIZACIONES CIVILES QUE SE ADHIERAN. | G104: 2 | H104: 35. MINISTERIO DE AMBIENTE Y ESPACIO PÚBLICO | I104: - | J104: 933. AGENCIA DE PROTECCIÓN AMBIENTAL | K104: 96. BUENOS AIRES PRODUCE MAS LIMPIO (P+L) | L104: 96. BUENOS AIRES PRODUCE MAS LIMPIO (P+L) | M104: 0. PROGRAMA BUENOS AIRES PRODUCE MÁS LIMPIO (P+L) | N104: 60. AUTORIDAD CUENCA MATANZA RIACHUELO | O104: 0. BUENOS AIRES PRODUCE MAS LIMPIO (P+L) | P104: 12 | Q104: 3 | R104: 5 | S104: 2 | T104: 0 | U104: 4 | V104: 4 | W104: 8 | X104: 1 | Y104: ACTIVIDAD QUE TIENE COMO OBJETIVO ESTRATÉGICO SE PLANTEA PROMOVER LA ADOPCIÓN DE TECNOLOGÍAS, PROCESOS, PRODUCTOS Y SERVICIOS QUE PERMITAN ARMONIZAR DE MANERA EFICIENTE EL CRECIMIENTO ECONÓMICO, SOCIAL Y LA PROTECCIÓN AMBIENTAL DE LA CIUDAD DE BUENOS AIRES. | Z104: 8939. DIRECCIÓN GENERAL ESTRATEGIAS AMBIENTALES | AA104: CABA | AB104: 8 | AC104: COMUNA 8 | AD104: - | AE104: - | AF104: 0 | AG104: 0 | AH104: 0 | AI104: 0 | AJ104: 0 | AK104: 0 | AL104: 0 | AM104: - | AN104: - | AO104: - | AQ104: - | AR104: - | AS104: - | AT104: - | AU104: - | AV104: - | AW104: -
B105: 4377 | C105: 3. CABA | D105: 11. CONTAMINACIÓN DE ORIGEN INDUSTRIAL | E105: EVALUACIONES AMBIENTALES | F105: EL PROGRAMA BUENOS AIRES PRODUCE MÁS LIMPIO PROPONE, DESDE UN PUNTO DE VISTA AMBIENTAL, UNA GESTIÓN INSTITUCIONAL DE CARÁCTER INTEGRAL, ENTENDIENDO ESTE CONCEPTO COMO EL COMPROMISO Y LA PARTICIPACIÓN CONJUNTA DE ACTORES PÚBLICOS Y PRIVADOS. PARA ELLO, INVOLUCRA EN LA TOMA DE DECISIONES TANTO A LAS AUTORIDADES DEL GOBIERNO DE LA CIUDAD AUTÓNOMA DE BUENOS AIRES, COMO A LAS EMPRESAS Y SUS ENTIDADES REPRESENTATIVAS Y LAS ORGANIZACIONES CIVILES QUE SE ADHIERAN. | G105: 2 | H105: 35. MINISTERIO DE AMBIENTE Y ESPACIO PÚBLICO | I105: - | J105: 933. AGENCIA DE PROTECCIÓN AMBIENTAL | K105: 96. BUENOS AIRES PRODUCE MAS LIMPIO (P+L) | L105: 96. BUENOS AIRES PRODUCE MAS LIMPIO (P+L) | M105: 0. PROGRAMA BUENOS AIRES PRODUCE MÁS LIMPIO (P+L) | N105: 60. AUTORIDAD CUENCA MATANZA RIACHUELO | O105: 0. BUENOS AIRES PRODUCE MAS LIMPIO (P+L) | P105: 11 | Q105: 3 | R105: 5 | S105: 3 | T105: 0 | U105: 4 | V105: 4 | W105: 8 | X105: 1 | Y105: ACTIVIDAD QUE TIENE COMO OBJETIVO ESTRATÉGICO SE PLANTEA PROMOVER LA ADOPCIÓN DE TECNOLOGÍAS, PROCESOS, PRODUCTOS Y SERVICIOS QUE PERMITAN ARMONIZAR DE MANERA EFICIENTE EL CRECIMIENTO ECONÓMICO, SOCIAL Y LA PROTECCIÓN AMBIENTAL DE LA CIUDAD DE BUENOS AIRES. | Z105: 8939. DIRECCIÓN GENERAL ESTRATEGIAS AMBIENTALES | AA105: CABA | AB105: 8 | AC105: COMUNA 8 | AD105: - | AE105: - | AF105: 0 | AG105: 0 | AH105: 0 | AI105: 0 | AJ105: 558794.7 | AK105: 0 | AL105: 0 | AM105: - | AN105: - | AO105: - | AQ105: - | AR105: - | AS105: - | AT105: - | AU105: - | AV105: - | AW105: -
B106: 4378 | C106: 3. CABA | D106: 11. CONTAMINACIÓN DE ORIGEN INDUSTRIAL | E106: EVALUACIONES AMBIENTALES | F106: EL PROGRAMA BUENOS AIRES PRODUCE MÁS LIMPIO PROPONE, DESDE UN PUNTO DE VISTA AMBIENTAL, UNA GESTIÓN INSTITUCIONAL DE CARÁCTER INTEGRAL, ENTENDIENDO ESTE CONCEPTO COMO EL COMPROMISO Y LA PARTICIPACIÓN CONJUNTA DE ACTORES PÚBLICOS Y PRIVADOS. PARA ELLO, INVOLUCRA EN LA TOMA DE DECISIONES TANTO A LAS AUTORIDADES DEL GOBIERNO DE LA CIUDAD AUTÓNOMA DE BUENOS AIRES, COMO A LAS EMPRESAS Y SUS ENTIDADES REPRESENTATIVAS Y LAS ORGANIZACIONES CIVILES QUE SE ADHIERAN. | G106: 2 | H106: 35. MINISTERIO DE AMBIENTE Y ESPACIO PÚBLICO | I106: - | J106: 933. AGENCIA DE PROTECCIÓN AMBIENTAL | K106: 96. BUENOS AIRES PRODUCE MAS LIMPIO (P+L) | L106: 96. BUENOS AIRES PRODUCE MAS LIMPIO (P+L) | M106: 0. PROGRAMA BUENOS AIRES PRODUCE MÁS LIMPIO (P+L) | N106: 60. AUTORIDAD CUENCA MATANZA RIACHUELO | O106: 0. BUENOS AIRES PRODUCE MAS LIMPIO (P+L) | P106: 11 | Q106: 2 | R106: 2 | S106: 2 | T106: 0 | U106: 4 | V106: 4 | W106: 8 | X106: 1 | Y106: ACTIVIDAD QUE TIENE COMO OBJETIVO ESTRATÉGICO SE PLANTEA PROMOVER LA ADOPCIÓN DE TECNOLOGÍAS, PROCESOS, PRODUCTOS Y SERVICIOS QUE PERMITAN ARMONIZAR DE MANERA EFICIENTE EL CRECIMIENTO ECONÓMICO, SOCIAL Y LA PROTECCIÓN AMBIENTAL DE LA CIUDAD DE BUENOS AIRES. | Z106: 8939. DIRECCIÓN GENERAL ESTRATEGIAS AMBIENTALES | AA106: CABA | AB106: 8 | AC106: COMUNA 8 | AD106: - | AE106: - | AF106: 0 | AG106: 0 | AH106: 0 | AI106: 0 | AJ106: 20000 | AK106: 0 | AL106: 0 | AM106: - | AN106: - | AO106: - | AQ106: - | AR106: - | AS106: - | AT106: - | AU106: - | AV106: - | AW106: -
B107: 4381 | C107: 3. CABA | D107: 11. CONTAMINACIÓN DE ORIGEN INDUSTRIAL | E107: EVALUACIONES AMBIENTALES | F107: EL PROGRAMA BUENOS AIRES PRODUCE MÁS LIMPIO PROPONE, DESDE UN PUNTO DE VISTA AMBIENTAL, UNA GESTIÓN INSTITUCIONAL DE CARÁCTER INTEGRAL, ENTENDIENDO ESTE CONCEPTO COMO EL COMPROMISO Y LA PARTICIPACIÓN CONJUNTA DE ACTORES PÚBLICOS Y PRIVADOS. PARA ELLO, INVOLUCRA EN LA TOMA DE DECISIONES TANTO A LAS AUTORIDADES DEL GOBIERNO DE LA CIUDAD AUTÓNOMA DE BUENOS AIRES, COMO A LAS EMPRESAS Y SUS ENTIDADES REPRESENTATIVAS Y LAS ORGANIZACIONES CIVILES QUE SE ADHIERAN. | G107: 2 | H107: 35. MINISTERIO DE AMBIENTE Y ESPACIO PÚBLICO | I107: - | J107: 933. AGENCIA DE PROTECCIÓN AMBIENTAL | K107: 96. BUENOS AIRES PRODUCE MAS LIMPIO (P+L) | L107: 96. BUENOS AIRES PRODUCE MAS LIMPIO (P+L) | M107: 0. PROGRAMA BUENOS AIRES PRODUCE MÁS LIMPIO (P+L) | N107: 60. AUTORIDAD CUENCA MATANZA RIACHUELO | O107: 0. BUENOS AIRES PRODUCE MAS LIMPIO (P+L) | P107: 12 | Q107: 3 | R107: 9 | S107: 6 | T107: 0 | U107: 4 | V107: 4 | W107: 4 | X107: 1 | Y107: ACTIVIDAD QUE TIENE COMO OBJETIVO ESTRATÉGICO SE PLANTEA PROMOVER LA ADOPCIÓN DE TECNOLOGÍAS, PROCESOS, PRODUCTOS Y SERVICIOS QUE PERMITAN ARMONIZAR DE MANERA EFICIENTE EL CRECIMIENTO ECONÓMICO, SOCIAL Y LA PROTECCIÓN AMBIENTAL DE LA CIUDAD DE BUENOS AIRES. | Z107: 8940. DIRECCIÓN GENERAL POLITICA Y DE ESTRATEGIA AMBIENTAL | AA107: CABA | AB107: 4 | AC107: COMUNA 4 | AD107: - | AE107: - | AF107: 0 | AG107: 0 | AH107: 0 | AI107: 0 | AJ107: 0 | AK107: 0 | AL107: 0 | AM107: - | AN107: - | AO107: - | AQ107: - | AR107: - | AS107: - | AT107: - | AU107: - | AV107: - | AW107: -
B108: 4382 | C108: 3. CABA | D108: 11. CONTAMINACIÓN DE ORIGEN INDUSTRIAL | E108: EVALUACIONES AMBIENTALES | F108: EL PROGRAMA BUENOS AIRES PRODUCE MÁS LIMPIO PROPONE, DESDE UN PUNTO DE VISTA AMBIENTAL, UNA GESTIÓN INSTITUCIONAL DE CARÁCTER INTEGRAL, ENTENDIENDO ESTE CONCEPTO COMO EL COMPROMISO Y LA PARTICIPACIÓN CONJUNTA DE ACTORES PÚBLICOS Y PRIVADOS. PARA ELLO, INVOLUCRA EN LA TOMA DE DECISIONES TANTO A LAS AUTORIDADES DEL GOBIERNO DE LA CIUDAD AUTÓNOMA DE BUENOS AIRES, COMO A LAS EMPRESAS Y SUS ENTIDADES REPRESENTATIVAS Y LAS ORGANIZACIONES CIVILES QUE SE ADHIERAN. | G108: 2 | H108: 35. MINISTERIO DE AMBIENTE Y ESPACIO PÚBLICO | I108: - | J108: 933. AGENCIA DE PROTECCIÓN AMBIENTAL | K108: 96. BUENOS AIRES PRODUCE MAS LIMPIO (P+L) | L108: 96. BUENOS AIRES PRODUCE MAS LIMPIO (P+L) | M108: 0. PROGRAMA BUENOS AIRES PRODUCE MÁS LIMPIO (P+L) | N108: 60. AUTORIDAD CUENCA MATANZA RIACHUELO | O108: 0. BUENOS AIRES PRODUCE MAS LIMPIO (P+L) | P108: 12 | Q108: 3 | R108: 9 | S108: 6 | T108: 0 | U108: 4 | V108: 4 | W108: 9 | X108: 1 | Y108: ACTIVIDAD QUE TIENE COMO OBJETIVO ESTRATÉGICO SE PLANTEA PROMOVER LA ADOPCIÓN DE TECNOLOGÍAS, PROCESOS, PRODUCTOS Y SERVICIOS QUE PERMITAN ARMONIZAR DE MANERA EFICIENTE EL CRECIMIENTO ECONÓMICO, SOCIAL Y LA PROTECCIÓN AMBIENTAL DE LA CIUDAD DE BUENOS AIRES. | Z108: 8940. DIRECCIÓN GENERAL POLITICA Y DE ESTRATEGIA AMBIENTAL | AA108: CABA | AB108: 9 | AC108: COMUNA 9 | AD108: - | AE108: - | AF108: 0 | AG108: 0 | AH108: 0 | AI108: 0 | AJ108: 233102 | AK108: 0 | AL108: 0 | AM108: - | AN108: - | AO108: - | AQ108: - | AR108: - | AS108: - | AT108: - | AU108: - | AV108: - | AW108: -
B109: 4383 | C109: 3. CABA | D109: 11. CONTAMINACIÓN DE ORIGEN INDUSTRIAL | E109: EVALUACIONES AMBIENTALES | F109: EL PROGRAMA BUENOS AIRES PRODUCE MÁS LIMPIO PROPONE, DESDE UN PUNTO DE VISTA AMBIENTAL, UNA GESTIÓN INSTITUCIONAL DE CARÁCTER INTEGRAL, ENTENDIENDO ESTE CONCEPTO COMO EL COMPROMISO Y LA PARTICIPACIÓN CONJUNTA DE ACTORES PÚBLICOS Y PRIVADOS. PARA ELLO, INVOLUCRA EN LA TOMA DE DECISIONES TANTO A LAS AUTORIDADES DEL GOBIERNO DE LA CIUDAD AUTÓNOMA DE BUENOS AIRES, COMO A LAS EMPRESAS Y SUS ENTIDADES REPRESENTATIVAS Y LAS ORGANIZACIONES CIVILES QUE SE ADHIERAN. | G109: 2 | H109: 35. MINISTERIO DE AMBIENTE Y ESPACIO PÚBLICO | I109: - | J109: 933. AGENCIA DE PROTECCIÓN AMBIENTAL | K109: 96. BUENOS AIRES PRODUCE MAS LIMPIO (P+L) | L109: 96. BUENOS AIRES PRODUCE MAS LIMPIO (P+L) | M109: 0. PROGRAMA BUENOS AIRES PRODUCE MÁS LIMPIO (P+L) | N109: 60. AUTORIDAD CUENCA MATANZA RIACHUELO | O109: 0. BUENOS AIRES PRODUCE MAS LIMPIO (P+L) | P109: 11 | Q109: 3 | R109: 9 | S109: 6 | T109: 0 | U109: 4 | V109: 4 | W109: 7 | X109: 1 | Y109: ACTIVIDAD QUE TIENE COMO OBJETIVO ESTRATÉGICO SE PLANTEA PROMOVER LA ADOPCIÓN DE TECNOLOGÍAS, PROCESOS, PRODUCTOS Y SERVICIOS QUE PERMITAN ARMONIZAR DE MANERA EFICIENTE EL CRECIMIENTO ECONÓMICO, SOCIAL Y LA PROTECCIÓN AMBIENTAL DE LA CIUDAD DE BUENOS AIRES. | Z109: 8940. DIRECCIÓN GENERAL POLITICA Y DE ESTRATEGIA AMBIENTAL | AA109: CABA | AB109: 7 | AC109: COMUNA 7 | AD109: - | AE109: - | AF109: 0 | AG109: 0 | AH109: 0 | AI109: 0 | AJ109: 3980 | AK109: 0 | AL109: 0 | AM109: - | AN109: - | AO109: - | AQ109: - | AR109: - | AS109: - | AT109: - | AU109: - | AV109: - | AW109: -
B110: 4384 | C110: 3. CABA | D110: 11. CONTAMINACIÓN DE ORIGEN INDUSTRIAL | E110: EVALUACIONES AMBIENTALES | F110: EL PROGRAMA BUENOS AIRES PRODUCE MÁS LIMPIO PROPONE, DESDE UN PUNTO DE VISTA AMBIENTAL, UNA GESTIÓN INSTITUCIONAL DE CARÁCTER INTEGRAL, ENTENDIENDO ESTE CONCEPTO COMO EL COMPROMISO Y LA PARTICIPACIÓN CONJUNTA DE ACTORES PÚBLICOS Y PRIVADOS. PARA ELLO, INVOLUCRA EN LA TOMA DE DECISIONES TANTO A LAS AUTORIDADES DEL GOBIERNO DE LA CIUDAD AUTÓNOMA DE BUENOS AIRES, COMO A LAS EMPRESAS Y SUS ENTIDADES REPRESENTATIVAS Y LAS ORGANIZACIONES CIVILES QUE SE ADHIERAN. | G110: 2 | H110: 35. MINISTERIO DE AMBIENTE Y ESPACIO PÚBLICO | I110: - | J110: 933. AGENCIA DE PROTECCIÓN AMBIENTAL | K110: 96. BUENOS AIRES PRODUCE MAS LIMPIO (P+L) | L110: 96. BUENOS AIRES PRODUCE MAS LIMPIO (P+L) | M110: 0. PROGRAMA BUENOS AIRES PRODUCE MÁS LIMPIO (P+L) | N110: 60. AUTORIDAD CUENCA MATANZA RIACHUELO | O110: 0. BUENOS AIRES PRODUCE MAS LIMPIO (P+L) | P110: 11 | Q110: 3 | R110: 9 | S110: 6 | T110: 0 | U110: 4 | V110: 4 | W110: 8 | X110: 1 | Y110: ACTIVIDAD QUE TIENE COMO OBJETIVO ESTRATÉGICO SE PLANTEA PROMOVER LA ADOPCIÓN DE TECNOLOGÍAS, PROCESOS, PRODUCTOS Y SERVICIOS QUE PERMITAN ARMONIZAR DE MANERA EFICIENTE EL CRECIMIENTO ECONÓMICO, SOCIAL Y LA PROTECCIÓN AMBIENTAL DE LA CIUDAD DE BUENOS AIRES. | Z110: 8940. DIRECCIÓN GENERAL POLITICA Y DE ESTRATEGIA AMBIENTAL | AA110: CABA | AB110: 8 | AC110: COMUNA 8 | AD110: - | AE110: - | AF110: 0 | AG110: 0 | AH110: 0 | AI110: 0 | AJ110: 70000 | AK110: 0 | AL110: 0 | AM110: - | AN110: - | AO110: - | AQ110: - | AR110: - | AS110: - | AT110: - | AU110: - | AV110: - | AW110: -
B111: 6857 | C111: 1. ESTADO NACIONAL | D111: 09. EXPANSIÓN DE LA RED DE AGUA POTABLE Y SANEAMIENTO DE CLOACAS | E111: PLANTA DE TRATAMIENTO PIC LANÚS | F111: CONSTRUCCIÓN PLANTA DE TRATAMIENTO EFLUENTES LÍQUIDOS INDUSTRIALES PIC LANÚS | G111: 2 | H111: 64. MINISTERIO DE OBRAS PÚBLICAS | I111: 364 | J111: MINISTERIO DE OBRAS PUBLICAS | K111: 44. UNIDAD DE COORDINACIÓN GENERAL DEL PROYECTO BIRF 7706-AR | L111: - | M111: 6 | N111: - | O111: 51 | P111: 22 | Q111: 4 | R111: 2 | S111: 2 | T111: - | U111: 4 | V111: 4 | W111: 6 | X111: 1 | Y111: 51 | Z111: UCGP | AA111: LANÚS | AB111: - | AC111: GENERAL OLAZABAL Y JUAN IGNACIO RUCCI | AD111: 2018-11-28 | AE111: 2023-03-31 | AF111: 243363446.4 | AG111: 0 | AH111: 0 | AI111: 0 | AJ111: 181702593.2 | AK111: 706501660.8 | AL111: 2276605904 | AM111: 2312257593 | AN111: 523346860.3 | AO111: 1255161698 | AP111: =AN111+AO111 -> 1778508558 | AQ111: 1778508558 | AR111: 1005880512 | AS111: X | AT111: EN EJECUCIÓN | AU111: 0.9 | AV111: 0.947 | AW111: -
B112: 4634 | C112: 1. ESTADO NACIONAL | D112: 09. EXPANSIÓN DE LA RED DE AGUA POTABLE Y SANEAMIENTO DE CLOACAS | E112: REDES CLOACALES LANÚS | F112: RENOVACIÓN DE RED CLOACAL ARMENIA - TERMINACIÓN | G112: 2 | H112: 91. OBLIGACIONES DEL TESORO | I112: 356 | J112: AYSA | K112: 95. ASISTENCIA FINANCIERA A EMPRESAS PÚBLICAS Y ENTE BINACIONAL | L112: 5 | M112: 1362603 | N112: 77 | O112: - | P112: 22 Y RECURSOS PROPIOS | Q112: 5 | R112: 5 | S112: 7 | T112: 753 | U112: 3 | V112: 8 | W112: 2 | X112: 2 | Y112: SC618 / SC70203 | Z112: - | AA112: LANÚS | AB112: VALENTÍN ALSINA | AC112: LA RENOVACIÓN SE HARÁ EFECTIVA EN CALLE ARMENIA ENTRE TUYUTI Y REPUBLICA ARGENTINA | AD112: 2016-12-05 | AE112: 2018-04-08 | AF112: 13794447.94 | AG112: 13956152.33 | AH112: 1522551.18 | AI112: 29273151.45 | AJ112: 6611299.858 | AK112: 0 | AL112: 0 | AM112: 0 | AN112: 0 | AO112: 0 | AQ112: - | AR112: - | AS112: - | AT112: FINALIZADO | AU112: 1 | AV112: 1 | AW112: REEMPLAZA A LA SC618. .
B113: 4904 | C113: 4. ACUMAR | D113: 11. CONTAMINACIÓN DE ORIGEN INDUSTRIAL | E113: INSPECCIONES | F113: ADQUISICION DE RODAMINA Y CINTAS DE MEDICION DE PH | G113: 1 | H113: ACUMAR | I113: - | J113: ACUMAR | K113: CONTROL INDUSTRIAL | L113: - | M113: - | N113: - | O113: - | P113: - | Q113: 2 | R113: 9 | S113: 9 | T113: - | U113: - | V113: - | W113: - | X113: 1 | Y113: - | Z113: DICROM INGENIERIA S.A. | AA113: CUENCA MATANZA RIACHUELO | AB113: - | AC113: - | AD113: - | AE113: - | AF113: 0 | AG113: 0 | AH113: 0 | AI113: 0 | AJ113: 0 | AK113: 0 | AL113: 0 | AM113: - | AN113: 0 | AO113: - | AQ113: 0 | AR113: - | AS113: - | AT113: - | AU113: - | AV113: - | AW113: PROYECTO 165
B114: 6858 | C114: 1. ESTADO NACIONAL | D114: 09. EXPANSIÓN DE LA RED DE AGUA POTABLE Y SANEAMIENTO DE CLOACAS | E114: REDES CLOACALES VILLA 21-24 | F114: SANEAMIENTO AGUA Y CLOACAS-BARRIOS TRES ROSAS, SAN BLAS (VILLA 21/24) | G114: 2 | H114: 64. MINISTERIO DE OBRAS PÚBLICAS | I114: 364 | J114: MINISTERIO DE OBRAS PUBLICAS | K114: 44. UNIDAD DE COORDINACIÓN GENERAL DEL PROYECTO BIRF 7706-AR | L114: - | M114: 7 | N114: 0 | O114: 51 | P114: 22 | Q114: 4 | R114: 2 | S114: 2 | T114: - | U114: 4 | V114: 4 | W114: 2 | X114: 1 | Y114: 51 | Z114: UCGP | AA114: CABA | AB114: COMUNA 4 | AC114: SISTEMA DE AGUA, CLOACAS Y PLUVIALES | AD114: 2017-07-14 | AE114: 2021-09-15 | AF114: 291257107.8 | AG114: 79124050.46 | AH114: 0 | AI114: 370381158.3 | AJ114: 390668069.8 | AK114: 616108204 | AL114: 413422436.5 | AM114: 10622731 | AN114: 622730.94 | AO114: 34281394.06 | AP114: =AN114+AO114 -> 34904125 | AQ114: 34904125 | AR114: 0 | AS114: X | AT114: FINALIZADO | AU114: 0.9885 | AV114: 1 | AW114: -
B115: 4930 | C115: 4. ACUMAR | D115: 07. MONITOREO DE LA CALIDAD DE AGUA, SEDIMENTOS Y AIRE | E115: MONITOREO DE CALIDAD DE AGUA Y SEDIMENTOS | F115: ANTICIPO CONVENIO ESPECIFICO COMPLEMENTARIO N° 3 2012-2014 FCNYM-ACUMAR "PROGRAMA DE MONITOREO INTEGRADO DE CALIDAD DE AGUA SUPERFICIAL Y SEDIMENTOS DE LA CMR Y DE LA FRANJA COSTERA SUR DEL RIO DE LA PLATA Y SISTEMATIZACION DE LA INFORMACION GENERADA | G115: 1 | H115: ACUMAR | I115: - | J115: ACUMAR | K115: MONITOREO DE CALIDAD DE AGUA, SEDIMENTOS Y AIRE | L115: - | M115: - | N115: - | O115: - | P115: - | Q115: 5 | R115: 6 | S115: 1 | T115: - | U115: - | V115: - | W115: - | X115: 1 | Y115: - | Z115: UNIVERSIDAD NACIONAL DE LA PLATA | AA115: CUENCA MATANZA RIACHUELO | AB115: - | AC115: - | AD115: 2013-11-19 | AE115: 2014-11-19 | AF115: 985844.4 | AG115: 0 | AH115: 0 | AI115: 985844.4 | AJ115: 0 | AK115: 0 | AL115: 0 | AM115: - | AN115: 0 | AO115: - | AQ115: - | AR115: - | AS115: - | AT115: - | AU115: - | AV115: - | AW115: PROYECTO 160
B116: 5099 | C116: 3. CABA | D116: 06. PLAN SANITARIO DE EMERGENCIA | E116: CAMPAÑA DE PREVENCIÓN | F116: CAMPAÑAS DE PREVENCIÓN Y MITIGACIÓN DE RIESGO. CAPACITACIONES Y DISTRIBUCIÓN DE FOLLETERÍA CON PERSONAL PROPIO | G116: 2 | H116: 26. MINISTERIO DE JUSTICIA Y SEGURIDAD | I116: - | J116: 0. MINISTERIO DE JUSTICIA Y SEGURIDAD | K116: 53. PLANIFICACIÓN Y CONTROL DEFENSA CIVIL | L116: 0. PLANIFICACIÓN Y CONTROL DEFENSA CIVIL | M116: 0. PLANIFICACIÓN Y CONTROL DEFENSA CIVIL | N116: 60. ACUMAR | O116: 0. ACUMAR | P116: 11 | Q116: 3 | R116: 5 | S116: 3 | T116: 0 | U116: 2 | V116: 2 | W116: 7 | X116: 1 | Y116: PLANIFICACIÓN Y CONTROL DEFENSA CIVIL | Z116: 153. DIRECCIÓN GENERAL DE DEFENSA CIVIL | AA116: CABA | AB116: 7 | AC116: COMUNA 7 | AD116: - | AE116: - | AF116: 0 | AG116: 0 | AH116: 0 | AI116: 0 | AJ116: 0 | AK116: 0 | AL116: 0 | AM116: - | AN116: - | AO116: - | AQ116: - | AR116: - | AS116: - | AT116: - | AU116: - | AV116: - | AW116: -
B117: 5124 | C117: 3. CABA | D117: 10. DESAGÜES PLUVIALES | E117: ESTACIONES BOMBEO BARRACAS | F117: OPERACION Y PRESERVACION OBRAS BOMBAS BARRACAS | G117: 2 | H117: 35. MINISTERIO DE AMBIENTE Y ESPACIO PÚBLICO | I117: - | J117: 0. MINISTERIO DE AMBIENTE Y ESPACIO PÚBLICO | K117: 79. MANTENIMIENTO RED PLUVIAL | L117: 0. MANTENIMIENTO DE LA RED PLUVIAL | M117: 60. A.CU.MAR - MEJORAMIENTO DEL SISTEMA PLUVIAL | N117: 0. A.CU.MAR - MEJORAMIENTO DEL SISTEMA PLUVIAL | O117: 51. OPERACION Y PRESERVACION OBRAS BOMBAS BARRACAS | P117: 11 | Q117: 4 | R117: 2 | S117: 2 | T117: 0 | U117: 3 | V117: 8 | W117: 4 | X117: 1 | Y117: MANTENIMIENTO DE LA RED PLUVIAL | Z117: 2504. DIRECCIÓN GENERAL SISTEMA PLUVIAL | AA117: CABA | AB117: 4 | AC117: COMUNA 4 | AD117: - | AE117: - | AF117: 0 | AG117: 0 | AH117: 0 | AI117: 0 | AJ117: 0 | AK117: 0 | AL117: 0 | AM117: - | AN117: - | AO117: - | AQ117: - | AR117: - | AS117: - | AT117: - | AU117: - | AV117: - | AW117: -
B118: 6860 | C118: 1. ESTADO NACIONAL | D118: 09. EXPANSIÓN DE LA RED DE AGUA POTABLE Y SANEAMIENTO DE CLOACAS | E118: SISTEMA RIACHUELO | F118: TRANSFERENCIAS A AYSA PARA GASTOS DE CAPITAL (OBRAS SISTEMA RIACHUELO) | G118: 2 | H118: 64. MINISTERIO DE OBRAS PÚBLICAS | I118: 364 | J118: MINISTERIO DE OBRAS PUBLICAS | K118: 44. UNIDAD DE COORDINACIÓN GENERAL DEL PROYECTO BIRF 7706-AR | L118: - | M118: - | N118: 78 | O118: - | P118: 22 | Q118: 5 | R118: 5 | S118: 7 | T118: 753 | U118: 4 | V118: 4 | W118: 2 | X118: 1 | Y118: - | Z118: AYSA | AA118: CUENCA MATANZA RIACHUELO | AB118: - | AC118: - | AD118: - | AE118: - | AF118: 0 | AG118: 0 | AH118: 0 | AI118: 0 | AJ118: 0 | AK118: 0 | AL118: 0 | AM118: 5910941152 | AN118: 0 | AO118: 0 | AP118: =AN118+AO118 -> 0 | AQ118: 0 | AR118: 250000000 | AS118: X | AT118: EN EJECUCIÓN | AU118: - | AV118: - | AW118: CORRESPONDE AL FINANCIAMIENTO ADICIONAL BIRF 9008-AR
B119: 7291 | C119: 1. ESTADO NACIONAL | D119: 09. EXPANSIÓN DE LA RED DE AGUA POTABLE Y SANEAMIENTO DE CLOACAS | E119: REDES DE AGUA LA MATANZA | F119: CISTERNA PLANTA VIRREY DEL PINO - OBRA CIVIL (1760503) | G119: 2 | H119: 91. OBLIGACIONES DEL TESORO | I119: 356 | J119: AYSA | K119: 95. ASISTENCIA FINANCIERA A EMPRESAS PÚBLICAS Y ENTE BINACIONAL | L119: 5 | M119: 1760503 | N119: 77 | O119: - | P119: 22 Y RECURSOS PROPIOS | Q119: 5 | R119: 5 | S119: 7 | T119: 753 | U119: 3 | V119: 8 | W119: 2 | X119: 2 | Y119: OA701111 | Z119: - | AA119: LA MATANZA | AB119: VIRREY DEL PINO | AC119: LA PLANTA POTABILIZADORA POR ÓSMOSIS INVERSA VIRREY DEL PINO SE ENCUENTRA EN LA CIUDAD DE VIRREY DEL PINO, PARTIDO DE LA MATANZA, SOBRE LA CALLE MARIANO FRAGUEIRO AL 5290. | AD119: 2018-04-19 | AE119: 2021-03-23 | AF119: 73782096.94 | AG119: 156424917.3 | AH119: 36165532.45 | AI119: 266372546.7 | AJ119: 125022274 | AK119: 84540978.59 | AL119: 40783970.71 | AM119: 71196.7388 | AN119: 71196.7388 | AO119: 0 | AP119: =AN119+AO119 -> 71196.7388 | AQ119: 71196.7388 | AR119: 0 | AS119: X | AT119: Finalizado | AU119: 1 | AV119: 1 | AW119: -
B120: 7292 | C120: 1. ESTADO NACIONAL | D120: 09. EXPANSIÓN DE LA RED DE AGUA POTABLE Y SANEAMIENTO DE CLOACAS | E120: SISTEMA VIRREY DEL PINO - LA MATANZA | F120: CISTERNA PLANTA VIRREY DEL PINO - OBRA ELECTRO (1760504) | G120: 2 | H120: 91. OBLIGACIONES DEL TESORO | I120: 356 | J120: AYSA | K120: 95. ASISTENCIA FINANCIERA A EMPRESAS PÚBLICAS Y ENTE BINACIONAL | L120: 5 | M120: 1760504 | N120: 77 | O120: - | P120: 22 Y RECURSOS PROPIOS | Q120: 5 | R120: 5 | S120: 7 | T120: 753 | U120: 3 | V120: 8 | W120: 2 | X120: 2 | Y120: OA701112 | Z120: - | AA120: LA MATANZA | AB120: VIRREY DEL PINO | AC120: LA PLANTA POTABILIZADORA POR ÓSMOSIS INVERSA VIRREY DEL PINO SE ENCUENTRA EN LA CIUDAD DE VIRREY DEL PINO, PARTIDO DE LA MATANZA, SOBRE LA CALLE MARIANO FRAGUEIRO AL 5290. | AD120: 2018-04-19 | AE120: 2021-03-23 | AF120: 44576473.06 | AG120: 114344166.8 | AH120: 13023412.48 | AI120: 171944052.3 | AJ120: 45977973.75 | AK120: 68921036.15 | AL120: 40928929.58 | AM120: 19589.9605 | AN120: 19589.9605 | AO120: 0 | AP120: =AN120+AO120 -> 19589.9605 | AQ120: 19589.9605 | AR120: 0 | AS120: X | AT120: Finalizado | AU120: 1 | AV120: 1 | AW120: -
B121: 7295 | C121: 1. ESTADO NACIONAL | D121: 09. EXPANSIÓN DE LA RED DE AGUA POTABLE Y SANEAMIENTO DE CLOACAS | E121: OBRA CLOACAS AVELLANEDA | F121: RED SECUNDARIA CLOACAL SARMIENTO - 1° ETAPA. | G121: 2 | H121: 91. OBLIGACIONES DEL TESORO | I121: 356 | J121: AYSA | K121: 95. ASISTENCIA FINANCIERA A EMPRESAS PÚBLICAS Y ENTE BINACIONAL | L121: 5 | M121: 1760418 | N121: 77 | O121: - | P121: 22 Y RECURSOS PROPIOS | Q121: 5 | R121: 5 | S121: 7 | T121: 753 | U121: 3 | V121: 8 | W121: 2 | X121: 2 | Y121: SC702050 | Z121: - | AA121: AVELLANEDA | AB121: GERLI | AC121: EL SECTOR DE PROYECTO SE ENCUENTRA DELIMITADO POR LAS SIGUIENTES CALLES: CAMPICHUELO, LACARRA, CANGALLO, REP DEL LIBANO, CARABELAS, DONOVAN, SERNA, ANGACO, HEREDIA, TRES SARGENTOS, LARRALDE, PITÁGORAS, BASAVILBASO, CASACUBERTA,CÓRDOBA. | AD121: 2022-02-14 | AE121: Año 2023 | AF121: 410226302.2 | AG121: 463371839.8 | AH121: 20511315.11 | AI121: 894109457 | AJ121: 0 | AK121: 0 | AL121: 230375.772 | AM121: 87810359.04 | AN121: 4273754.921 | AO121: 80365495.77 | AP121: =AN121+AO121 -> 84639250.69 | AQ121: 84639250.69 | AR121: 614781786.7 | AS121: X | AT121: En ejecución | AU121: 0.09588739061 | AV121: 0.1042 | AW121: -
B122: 5176 | C122: 3. CABA | D122: 08. URBANIZACIÓN DE VILLAS Y ASENTAMIENTOS URBANOS | E122: DISTRIBUCIÓN DE AGUA | F122: SERVICIO DE ALQUILER DE CAMIONES ATMOSFERICOS, HIDROCINETICOS, CAMIONES CISTERNA PARA LA DISTRIBUCIÓN DE AGUA POTABLE Y MAQUINARIAS VARIAS. | G122: 2 | H122: 45. MINISTERIO DE HABITAT DESARROLLO HUMANO | I122: - | J122: 9470. UNIDAD DE GESTIÓN INTERVENCIÓN SOCIAL | K122: 16. INTERVECIÓN SOCIAL EN VILLAS DE EMERGENCIA Y NHT | L122: 0. INTERVECIÓN SOCIAL EN VILLAS DE EMERGENCIA Y NHT | M122: 0. INTERVECIÓN SOCIAL EN VILLAS DE EMERGENCIA Y NHT | N122: 60. ACUMAR | O122: 0. ACUMAR | P122: 11 | Q122: 3 | R122: 2 | S122: 2 | T122: 0 | U122: 3 | V122: 7 | W122: 8 | X122: 1 | Y122: SERVICIOS DE NECESIDAD PRIMARIA | Z122: 9470. UNIDAD DE GESTIÓN INTERVENCIÓN SOCIAL | AA122: CABA | AB122: 8 | AC122: COMUNA 8 | AD122: - | AE122: - | AF122: 0 | AG122: 0 | AH122: 0 | AI122: 0 | AJ122: 378225440.9 | AK122: 0 | AL122: 0 | AM122: - | AN122: - | AO122: - | AQ122: - | AR122: - | AS122: - | AT122: - | AU122: - | AV122: - | AW122: -
B123: 5183 | C123: 3. CABA | D123: 08. URBANIZACIÓN DE VILLAS Y ASENTAMIENTOS URBANOS | E123: COMPLEJO LUZURIAGA | F123: CONSTRUCCIÓN DE VIVIENDAS PARA LOS RESIDENTES DE LOS ASENTAMIENTOS Y VILLAS LOCALIZADAS EN LAS MÁRGENES DE LA CUENCA MATANZA-RIACHUELO | G123: 2 | H123: 21. JEFATURA DE GABINETE DE MINISTROS | I123: - | J123: 219. INSTITUTO PARA LA VIVIENDA | K123: 109. VIVIENDAS CON AHORRO PREVIO | L123: 0. VIVIENDAS CON AHORRO PREVIO | M123: 60. ACUMAR | N123: 0. ACUMAR | O123: 52. LUZURIAGA N° 835 | P123: 11 | Q123: 3 | R123: 9 | S123: 9 | T123: 0 | U123: 3 | V123: 7 | W123: 4 | X123: 1 | Y123: CONSTRUCCIÓN DE VIVIENDAS | Z123: 290. INSTITUTO DE LA VIVIENDA LEY N° 1.251 | AA123: CABA | AB123: 4 | AC123: LUZURIAGA N° 835 | AD123: - | AE123: - | AF123: 0 | AG123: 0 | AH123: 0 | AI123: 0 | AJ123: 0 | AK123: 216000 | AL123: 0 | AM123: - | AN123: - | AO123: - | AQ123: - | AR123: - | AS123: - | AT123: - | AU123: - | AV123: - | AW123: -
B124: 5184 | C124: 3. CABA | D124: 08. URBANIZACIÓN DE VILLAS Y ASENTAMIENTOS URBANOS | E124: COMPLEJO LACARRA | F124: CONSTRUCCIÓN DE VIVIENDAS PARA LOS RESIDENTES DE LOS ASENTAMIENTOS Y VILLAS LOCALIZADAS EN LAS MÁRGENES DE LA CUENCA MATANZA-RIACHUELO | G124: 2 | H124: 21. JEFATURA DE GABINETE DE MINISTROS | I124: - | J124: 219. INSTITUTO PARA LA VIVIENDA | K124: 109. VIVIENDAS CON AHORRO PREVIO | L124: 0. VIVIENDAS CON AHORRO PREVIO | M124: 60. ACUMAR | N124: 0. ACUMAR | O124: 51. LACARRA N° 2.049 (EX PEDRO CHUTRO) | P124: 12 | Q124: 4 | R124: 2 | S124: 1 | T124: 0 | U124: 3 | V124: 7 | W124: 9 | X124: 1 | Y124: CONSTRUCCIÓN DE VIVIENDAS | Z124: 290. INSTITUTO DE LA VIVIENDA LEY N° 1.251 | AA124: CABA | AB124: 9 | AC124: LACARRA 2049 | AD124: 2016-07-25 | AE124: - | AF124: 6814178.09 | AG124: 28238126.1 | AH124: 35052304.19 | AI124: 6814178.09 | AJ124: 6391614.39 | AK124: 0 | AL124: 0 | AM124: - | AN124: - | AO124: - | AQ124: - | AR124: - | AS124: - | AT124: - | AU124: - | AV124: - | AW124: -
B125: 5186 | C125: 3. CABA | D125: 08. URBANIZACIÓN DE VILLAS Y ASENTAMIENTOS URBANOS | E125: COMPLEJO OSVALDO CRUZ | F125: CONSTRUCCIÓN DE VIVIENDAS PARA LOS RESIDENTES DE LOS ASENTAMIENTOS Y VILLAS LOCALIZADAS EN LAS MÁRGENES DE LA CUENCA MATANZA-RIACHUELO | G125: 2 | H125: 21. JEFATURA DE GABINETE DE MINISTROS | I125: - | J125: 219. INSTITUTO PARA LA VIVIENDA | K125: 109. VIVIENDAS CON AHORRO PREVIO | L125: 0. VIVIENDAS CON AHORRO PREVIO | M125: 60. ACUMAR | N125: 0. ACUMAR | O125: 64. OSVALDO CRUZ Y LUNA | P125: 12 | Q125: 4 | R125: 2 | S125: 1 | T125: 0 | U125: 3 | V125: 7 | W125: 7 | X125: - | Y125: CONSTRUCCIÓN DE VIVIENDAS | Z125: 290. INSTITUTO DE LA VIVIENDA LEY N° 1.251 | AA125: CABA | AB125: 4 | AC125: OSVALDO CRUZ 3351/99 | AD125: - | AE125: - | AF125: 0 | AG125: 0 | AH125: 0 | AI125: 0 | AJ125: 18766344.63 | AK125: 16866659.63 | AL125: 0 | AM125: - | AN125: - | AO125: - | AQ125: - | AR125: - | AS125: - | AT125: - | AU125: - | AV125: - | AW125: -
B126: 7302 | C126: 1. ESTADO NACIONAL | D126: 09. EXPANSIÓN DE LA RED DE AGUA POTABLE Y SANEAMIENTO DE CLOACAS | E126: REDES CLOACALES LOMAS DE ZAMORA | F126: RED SECUNDARIA CLOACAL LA SALADA NORTE (1760401) | G126: 2 | H126: 91. OBLIGACIONES DEL TESORO | I126: 356 | J126: AYSA | K126: 95. ASISTENCIA FINANCIERA A EMPRESAS PÚBLICAS Y ENTE BINACIONAL | L126: 5 | M126: 1760401 | N126: 77 | O126: - | P126: 22 Y RECURSOS PROPIOS | Q126: 5 | R126: 5 | S126: 7 | T126: 753 | U126: 3 | V126: 8 | W126: 2 | X126: 2 | Y126: SC657000 | Z126: - | AA126: LOMAS DE ZAMORA | AB126: VILLA ALBERTINA | AC126: EL ÁREA A SERVIR ES DE APROXIMADAMENTE 0.67 KM2, UBICADA EN EL PARTIDO DE LOMAS DE ZAMORA. EL SECTOR DE PROYECTO SE ENCUENTRA DELIMITADO POR LAS SIGUIENTES CALLES: CAMINO DE LA RIVERA SUD, EVARISTO CARRIEGO, CAMPANA, ARROYO DEL REY, NECOL, FALUCHO, CANADA, RICARDO PALMA, CAMPANA, CLAUDIO DE ALAS. | AD126: 2018-01-01 | AE126: 2021-12-28 | AF126: 61508904.05 | AG126: 153239101.6 | AH126: 15056352.13 | AI126: 229804357.8 | AJ126: 56931387.21 | AK126: 34856728.09 | AL126: 77479047.33 | AM126: 49959117.37 | AN126: 5655534.857 | AO126: 41702751.35 | AP126: =AN126+AO126 -> 47358286.21 | AQ126: 47358286.21 | AR126: 0 | AS126: X | AT126: Finalizado | AU126: 1 | AV126: 1 | AW126: -
B127: 5209 | C127: 3. CABA | D127: 08. URBANIZACIÓN DE VILLAS Y ASENTAMIENTOS URBANOS | E127: COMPLEJO RIBERA IGUAZÚ | F127: CONSTRUCCIÓN DE VIVIENDAS PARA LOS RESIDENTES DE LOS ASENTAMIENTOS Y VILLAS LOCALIZADAS EN LAS MÁRGENES DE LA CUENCA MATANZA-RIACHUELO.BENEFICIARIOS: MUNDO GRUA | G127: 2 | H127: 21. JEFATURA DE GABINETE DE MINISTROS | I127: - | J127: 219. INSTITUTO PARA LA VIVIENDA | K127: 109. VIVIENDAS CON AHORRO PREVIO | L127: 0. VIVIENDAS CON AHORRO PREVIO | M127: 60. ACUMAR | N127: 0. ACUMAR | O127: 56. BARRIO RIBERA IGUAZÚ | P127: 12 | Q127: 4 | R127: 2 | S127: 1 | T127: 0 | U127: 3 | V127: 7 | W127: 4 | X127: ESPECÍFICA | Y127: CONSTRUCCIÓN DE VIVIENDAS | Z127: 290. INSTITUTO DE LA VIVIENDA LEY N° 1.251 | AA127: CABA | AB127: 4 | AC127: IGUAZÚ N° 1.835 CD 06/14 | AD127: 2015-08-01 | AE127: - | AF127: 48116847.03 | AG127: 0 | AH127: 48116847.03 | AI127: 113374682 | AJ127: 42050804 | AK127: 0 | AL127: 0 | AM127: - | AN127: - | AO127: - | AQ127: - | AR127: - | AS127: - | AT127: - | AU127: - | AV127: - | AW127: -
B128: 5243 | C128: 1. ESTADO NACIONAL | D128: 09. EXPANSIÓN DE LA RED DE AGUA POTABLE Y SANEAMIENTO DE CLOACAS | E128: REDES CLOACALES LA MATANZA | F128: READECUACION COLECTOR E IMPULSION DE ESTACION LAFERRERE CENTRO | G128: 2 | H128: 91. OBLIGACIONES DEL TESORO | I128: 356 | J128: AYSA | K128: 95. ASISTENCIA FINANCIERA A EMPRESAS PÚBLICAS Y ENTE BINACIONAL | L128: 5 | M128: 1460306 | N128: 77 | O128: - | P128: 22 Y RECURSOS PROPIOS | Q128: 5 | R128: 5 | S128: 7 | T128: 753 | U128: 3 | V128: 8 | W128: 2 | X128: 2 | Y128: OC70017 | Z128: - | AA128: LA MATANZA | AB128: LAFERRERE | AC128: LA TRAZA DEL COLECTOR CLOACAL INICIA SU RECORRIDO EN BOCA DE REGISTRO EXISTENTE UBICADA EN LA INTERSECCIÓN DE LAS CALLES AMÉRICO VESPUCIO Y JAMACARÚ, CONTINUA POR JAMACARÚ HASTA E. SÁENZ, POR E. SÁENZ HASTA V. BOSCH Y POR V. BOSCH HASTA V. HUGO. | AD128: 2017-05-04 | AE128: 2018-09-12 | AF128: 24692871.7 | AG128: 18017289.93 | AH128: 1572112.944 | AI128: 44282274.57 | AJ128: 1236154.658 | AK128: 0 | AL128: 0 | AM128: 0 | AN128: 0 | AO128: 0 | AQ128: - | AR128: - | AS128: - | AT128: FINALIZADO | AU128: 1 | AV128: 1 | AW128: -
B129: 5265 | C129: 1. ESTADO NACIONAL | D129: 09. EXPANSIÓN DE LA RED DE AGUA POTABLE Y SANEAMIENTO DE CLOACAS | E129: ESTACIÓN DE BOMBEO CLOACAL LAFERRERE | F129: NUEVA ESTACIÓN DE BOMBEO CLOACAL LAFERRERE CENTRO - OBRA CIVIL | G129: 2 | H129: 91. OBLIGACIONES DEL TESORO | I129: 356 | J129: AYSA | K129: 95. ASISTENCIA FINANCIERA A EMPRESAS PÚBLICAS Y ENTE BINACIONAL | L129: 5 | M129: 1460304 | N129: 77 | O129: - | P129: 22 Y RECURSOS PROPIOS | Q129: 5 | R129: 5 | S129: 7 | T129: 753 | U129: 3 | V129: 8 | W129: 2 | X129: 2 | Y129: OC700071 | Z129: - | AA129: LA MATANZA | AB129: LAFERRERE | AC129: LA ESTACIÓN DE BOMBEO DE ENCUENTRA SOBRE LA CALLE VENTURA BOSCH ENTRE JUAN CRUZ VARELA Y EDUARDO SAENZ. | AD129: 2017-03-01 | AE129: 2018-08-31 | AF129: 11827381.91 | AG129: 3230937.846 | AH129: 1151503.389 | AI129: 16209823.14 | AJ129: 1136438.437 | AK129: 0 | AL129: 0 | AM129: 0 | AN129: 0 | AO129: 0 | AQ129: - | AR129: - | AS129: - | AT129: FINALIZADO | AU129: 1 | AV129: 1 | AW129: -
B130: 5268 | C130: 1. ESTADO NACIONAL | D130: 09. EXPANSIÓN DE LA RED DE AGUA POTABLE Y SANEAMIENTO DE CLOACAS | E130: ESTACIÓN DE BOMBEO CLOACAL CABA | F130: ESTACIÓN DE BOMBEO CLOACAL COCA COLA - FEMSA - OBRA CIVIL | G130: 2 | H130: 91. OBLIGACIONES DEL TESORO | I130: 356 | J130: AYSA | K130: 95. ASISTENCIA FINANCIERA A EMPRESAS PÚBLICAS Y ENTE BINACIONAL | L130: 5 | M130: 1460311 | N130: 77 | O130: - | P130: 22 Y RECURSOS PROPIOS | Q130: 5 | R130: 5 | S130: 7 | T130: 753 | U130: 3 | V130: 8 | W130: 2 | X130: 2 | Y130: CC700001 | Z130: - | AA130: CABA | AB130: BARRACAS | AC130: LA IMPLANTACIÓN DE LA ESTACIÓN DE BOMBEO EN EL PREDIO PRIVADO DE LA EMPRESA COCA COLA –FEMSA, UBICADA EN LA INTERSECCIÓN DE LAS CALLES CACHI Y AV. AMANCIO ALCORTA. | AD130: 2015-05-19 | AE130: 2019-01-04 | AF130: 3698575.104 | AG130: 6200370.874 | AH130: 2510738.953 | AI130: 12409684.93 | AJ130: 51018.8756 | AK130: 0 | AL130: 0 | AM130: 0 | AN130: 0 | AO130: 0 | AQ130: - | AR130: - | AS130: - | AT130: FINALIZADO | AU130: 1 | AV130: 1 | AW130: -
B131: 5269 | C131: 1. ESTADO NACIONAL | D131: 09. EXPANSIÓN DE LA RED DE AGUA POTABLE Y SANEAMIENTO DE CLOACAS | E131: ESTACIÓN DE BOMBEO CLOACAL CABA | F131: ESTACIÓN DE BOMBEO CLOACAL COCA COLA - FEMSA - OBRA ELECTRO | G131: 2 | H131: 91. OBLIGACIONES DEL TESORO | I131: 356 | J131: AYSA | K131: 95. ASISTENCIA FINANCIERA A EMPRESAS PÚBLICAS Y ENTE BINACIONAL | L131: 5 | M131: 1460312 | N131: 77 | O131: - | P131: 22 Y RECURSOS PROPIOS | Q131: 5 | R131: 5 | S131: 7 | T131: 753 | U131: 3 | V131: 8 | W131: 2 | X131: 2 | Y131: CC700002 | Z131: - | AA131: CABA | AB131: BARRACAS | AC131: LA IMPLANTACIÓN DE LA ESTACIÓN DE BOMBEO EN EL PREDIO PRIVADO DE LA EMPRESA COCA COLA –FEMSA, UBICADA EN LA INTERSECCIÓN DE LAS CALLES CACHI Y AV. AMANCIO ALCORTA. | AD131: 2015-05-19 | AE131: 2019-01-04 | AF131: 6697679.834 | AG131: 3452034.616 | AH131: 352449.2108 | AI131: 10502163.66 | AJ131: 33285.5996 | AK131: 0 | AL131: 0 | AM131: 0 | AN131: 0 | AO131: 0 | AQ131: - | AR131: - | AS131: - | AT131: FINALIZADO | AU131: 1 | AV131: 0.9995 | AW131: -
B132: 5270 | C132: 1. ESTADO NACIONAL | D132: 09. EXPANSIÓN DE LA RED DE AGUA POTABLE Y SANEAMIENTO DE CLOACAS | E132: REDES CLOACALES CABA | F132: RED PRIMARIA CLOACAL - IMPULSIÓN COCA COLA - FEMSA | G132: 2 | H132: 91. OBLIGACIONES DEL TESORO | I132: 356 | J132: AYSA | K132: 95. ASISTENCIA FINANCIERA A EMPRESAS PÚBLICAS Y ENTE BINACIONAL | L132: 5 | M132: 1460310 | N132: 77 | O132: - | P132: 22 Y RECURSOS PROPIOS | Q132: 5 | R132: 5 | S132: 7 | T132: 753 | U132: 3 | V132: 8 | W132: 2 | X132: 2 | Y132: CC70001 | Z132: - | AA132: CABA | AB132: BARRACAS | AC132: LA IMPULSIÓN INICIARÁ SU TRAZA EN LA INTERSECCIÓN DE LAS CALLES AV. AMANCIO ALCORTA Y CACHI, RECORRIENDO LAS CALLES CACHI, SANTO DOMINGO Y DIÓGENES TABORDA, DESCARGARAMDO FINALMENTE EN LA SEGUNDA CLOACA MÁXIMA EN UNA BOCA DE REGISTRO EXISTENTE EN LA CALLE DIÓGENES TABORDA INTERSECCIÓN CON EL RIACHUELO. | AD132: 2016-02-18 | AE132: 2018-09-20 | AF132: 6716121.638 | AG132: 6317235.643 | AH132: 434685.8656 | AI132: 13468043.15 | AJ132: 2052076.643 | AK132: 0 | AL132: 0 | AM132: 0 | AN132: 0 | AO132: 0 | AQ132: - | AR132: - | AS132: - | AT132: FINALIZADO | AU132: 1 | AV132: 1 | AW132: -
B133: 5278 | C133: 1. ESTADO NACIONAL | D133: 09. EXPANSIÓN DE LA RED DE AGUA POTABLE Y SANEAMIENTO DE CLOACAS | E133: REDES CLOACALES FIORITO | F133: RED PRIMARIA CLOACAL - COLECTOR FIORITO Y ENTRADA A PLANTA FIORITO | G133: 2 | H133: 91. OBLIGACIONES DEL TESORO | I133: 356 | J133: AYSA | K133: 95. ASISTENCIA FINANCIERA A EMPRESAS PÚBLICAS Y ENTE BINACIONAL | L133: 5 | M133: 1460303 | N133: 77 | O133: - | P133: 22 Y RECURSOS PROPIOS | Q133: 5 | R133: 5 | S133: 7 | T133: 753 | U133: 3 | V133: 8 | W133: 2 | X133: 2 | Y133: SC627 | Z133: - | AA133: LOMAS DE ZAMORA | AB133: VILLA FIORITO | AC133: EL COLECTOR FIORITO INICIARÁ SU RECORRIDO CON UN DN 1500 MM POR LA CALLE GASPAR NÚÑEZ DE ARCE ESQUINA EJÉRCITO DE LOS ANDES HASTA LA CALLE AUSTRALIA, CONTINUANDO POR ÉSTA HASTA LA CALLE MIRO, ALLÍ DOBLA Y SEGUIRÁ HASTA FIGUEREDO DONDE DOBLA Y CONTINÚA POR FIGUEREDO HASTA LA MITAD DE CUADRA ENTRE LAS CALLES PÍO BAROJA Y BENITO P. GALDOS DONDE ESTÁ PREVISTA LA ENTRADA A LA PLANTA FIORITO. EL COLECTOR DENOMINADO “ENTRADA A PLANTA FIORITO” INICIARÁ SI RECORRIDO SOBRE LA CALLE FIGUEREDO ENTRE LAS CALLES PÍO BAROJA Y BENITO P. GALDOS E INGRESARÁ AL PREDIO DESTINADO A LA PLANTA FIORITO. | AD133: 2014-12-01 | AE133: 2018-03-16 | AF133: 207365246.2 | AG133: 264830903.9 | AH133: 11232764.52 | AI133: 483428914.6 | AJ133: 3266.516 | AK133: 0 | AL133: 0 | AM133: 0 | AN133: 0 | AO133: 0 | AQ133: - | AR133: - | AS133: - | AT133: FINALIZADO | AU133: 1 | AV133: 1 | AW133: -
B134: 5290 | C134: 1. ESTADO NACIONAL | D134: 09. EXPANSIÓN DE LA RED DE AGUA POTABLE Y SANEAMIENTO DE CLOACAS | E134: OBRA PRETRATAMIENTO SIST. BERAZATEGUI | F134: EQUIPOS | G134: 2 | H134: 91. OBLIGACIONES DEL TESORO | I134: 356 | J134: AYSA | K134: 95. ASISTENCIA FINANCIERA A EMPRESAS PÚBLICAS Y ENTE BINACIONAL | L134: 5 | M134: 1355901 | N134: 5 | O134: - | P134: 11 | Q134: 5 | R134: 5 | S134: 7 | T134: 753 | U134: 3 | V134: 8 | W134: 96 | X134: 2 | Y134: SIN P3 | Z134: - | AA134: BERAZATEGUI | AB134: BERAZATEGUI | AC134: PLANTA PRETRATAMIENTO BERAZATEGUI - CALLE 14 Y EL RÍO DE LA PLATA - BERAZATEGUI | AD134: 2014-01-02 | AE134: 2015-12-31 | AF134: 2420000 | AG134: 0 | AH134: -440017.468 | AI134: 1979982.532 | AJ134: -48726.7 | AK134: 0 | AL134: 0 | AM134: 0 | AN134: 0 | AO134: 0 | AQ134: - | AR134: - | AS134: - | AT134: FINALIZADO | AU134: 1.012607333 | AV134: 1 | AW134: -
B135: 5294 | C135: 1. ESTADO NACIONAL | D135: 09. EXPANSIÓN DE LA RED DE AGUA POTABLE Y SANEAMIENTO DE CLOACAS | E135: PLANTA POTABILIZADORA EZEIZA | F135: PLANTA DE TRATAMIENTO DE AGUA CON REMOCION DE ARSENICO POR ADSORCION BATERIA EZEIZA. O. CIVIL | G135: 2 | H135: 64. MINISTERIO DE OBRAS PÚBLICAS | I135: 364 | J135: AYSA | K135: 94. ASISTENCIA FINANCIERA A EMPRESAS PÚBLICAS Y ENTE BINACIONAL | L135: - | M135: 1360C05 | N135: 11 | O135: - | P135: 22 | Q135: 5 | R135: 5 | S135: 7 | T135: 753 | U135: 3 | V135: 8 | W135: 6 | X135: 2 | Y135: SAE00910 | Z135: - | AA135: EZEIZA | AB135: EZEIZA | AC135: CALLE MAIPÚ, E/ EDUARDO GUTIÉRREZ (FFCCGB) Y LAS HERAS | AD135: 2014-08-11 | AE135: 2017-12-10 | AF135: 16369933.84 | AG135: 9216425.9 | AH135: 0 | AI135: 25586359.74 | AJ135: 2045196.32 | AK135: 0 | AL135: 32697.27 | AM135: 0 | AN135: 0 | AO135: 0 | AQ135: - | AR135: - | AS135: - | AT135: FINALIZADO | AU135: 1 | AV135: 1 | AW135: REEMPLAZA PROYECTO 1160C12. MONTO VIGENTE Y GRADO DE AVANCE ECONÓMICO, SE CONSIDERAN SOLO PARTIDAS CONTRACTUALES
B136: 5295 | C136: 1. ESTADO NACIONAL | D136: 09. EXPANSIÓN DE LA RED DE AGUA POTABLE Y SANEAMIENTO DE CLOACAS | E136: PLANTA POTABILIZADORA EZEIZA | F136: PLANTA DE TRATAMIENTO DE AGUA CON REMOCION DE ARSENICO POR ADSORCION BATERIA EZEIZA. O. CIVIL | G136: 2 | H136: 91. OBLIGACIONES DEL TESORO | I136: 356 | J136: AYSA | K136: 95. ASISTENCIA FINANCIERA A EMPRESAS PÚBLICAS Y ENTE BINACIONAL | L136: 5 | M136: 1360C05 | N136: 77 | O136: - | P136: 22 Y RECURSOS PROPIOS | Q136: 5 | R136: 5 | S136: 7 | T136: 753 | U136: 3 | V136: 8 | W136: 2 | X136: 2 | Y136: SAE00910 | Z136: - | AA136: EZEIZA | AB136: EZEIZA | AC136: CALLE MAIPÚ, E/ EDUARDO GUTIÉRREZ (FFCCGB) Y LAS HERAS | AD136: 2014-08-11 | AE136: 2017-12-10 | AF136: 3437686.106 | AG136: 1935449.44 | AH136: 0 | AI136: 5373135.546 | AJ136: 429491.2272 | AK136: 0 | AL136: 6866.4267 | AM136: 0 | AN136: 0 | AO136: 0 | AQ136: - | AR136: - | AS136: - | AT136: FINALIZADO | AU136: 1 | AV136: 1 | AW136: REEMPLAZA PROYECTO 1160C12. MONTO VIGENTE Y GRADO DE AVANCE ECONÓMICO, SE CONSIDERAN SOLO PARTIDAS CONTRACTUALES.
B137: 5296 | C137: 1. ESTADO NACIONAL | D137: 09. EXPANSIÓN DE LA RED DE AGUA POTABLE Y SANEAMIENTO DE CLOACAS | E137: SISTEMA AGUA EZEIZA | F137: PLANTA DE TRATAMIENTO DE AGUA CON REMOCION DE ARSENICO POR ADSORCION BATERIA EZEIZA. O. CIVIL | G137: 2 | H137: 91. OBLIGACIONES DEL TESORO | I137: 356 | J137: AYSA | K137: 95. ASISTENCIA FINANCIERA A EMPRESAS PÚBLICAS Y ENTE BINACIONAL | L137: 5 | M137: 1360C05 | N137: 77 | O137: - | P137: 22 Y RECURSOS PROPIOS | Q137: 5 | R137: 5 | S137: 7 | T137: 753 | U137: 3 | V137: 8 | W137: 2 | X137: 2 | Y137: SAE00910 | Z137: - | AA137: EZEIZA | AB137: EZEIZA | AC137: CALLE MAIPÚ, E/ EDUARDO GUTIÉRREZ (FFCCGB) Y LAS HERAS | AD137: 2014-08-11 | AE137: 2017-12-10 | AF137: 245549.01 | AG137: 28712825.07 | AH137: 0 | AI137: 28958374.08 | AJ137: 0 | AK137: 0 | AL137: 1086287.446 | AM137: 0 | AN137: 0 | AO137: 0 | AQ137: - | AR137: - | AS137: - | AT137: FINALIZADO | AU137: 1 | AV137: 1 | AW137: REEMPLAZA PROYECTO 1160C12. MONTO VIGENTE Y GRADO DE AVANCE ECONÓMICO, SE CONSIDERAN SOLO PARTIDAS CONTRACTUALES.
B138: 5297 | C138: 1. ESTADO NACIONAL | D138: 09. EXPANSIÓN DE LA RED DE AGUA POTABLE Y SANEAMIENTO DE CLOACAS | E138: PLANTA POTABILIZADORA EZEIZA | F138: PLANTA DE TRATAMIENTO DE AGUA CON REMOCION DE ARSENICO POR ADSORCION BATERIA EZEIZA. O. ELECTROMECANICA | G138: 2 | H138: 64. MINISTERIO DE OBRAS PÚBLICAS | I138: 364 | J138: AYSA | K138: 94. ASISTENCIA FINANCIERA A EMPRESAS PÚBLICAS Y ENTE BINACIONAL | L138: - | M138: 1360C06 | N138: 11 | O138: - | P138: 22 | Q138: 5 | R138: 5 | S138: 7 | T138: 753 | U138: 3 | V138: 8 | W138: 6 | X138: 2 | Y138: SAE00920 | Z138: - | AA138: EZEIZA | AB138: EZEIZA | AC138: CALLE MAIPÚ, E/ EDUARDO GUTIÉRREZ (FFCCGB) Y LAS HERAS | AD138: 2014-08-11 | AE138: 2017-12-10 | AF138: 33857043.95 | AG138: 18840428.76 | AH138: 0 | AI138: 52697472.71 | AJ138: 5546750.61 | AK138: 12289601.83 | AL138: 0 | AM138: 0 | AN138: 0 | AO138: 0 | AQ138: - | AR138: - | AS138: - | AT138: FINALIZADO | AU138: 1 | AV138: 1 | AW138: REEMPLAZA PROYECTO 1160C12. MONTO VIGENTE Y GRADO DE AVANCE ECONÓMICO, SE CONSIDERAN SOLO PARTIDAS CONTRACTUALES. EL DEVENGADO 2020 FUE CONTABILIZADO EN F22 PERO CORRESPONDE FINANCIAMIENTO F11. LOS CARGOS SE RECLASIFICARÁN EN 2021 CON CARGO A AÑOS ANTERIORES.
B139: 5298 | C139: 1. ESTADO NACIONAL | D139: 09. EXPANSIÓN DE LA RED DE AGUA POTABLE Y SANEAMIENTO DE CLOACAS | E139: PLANTA POTABILIZADORA EZEIZA | F139: PLANTA DE TRATAMIENTO DE AGUA CON REMOCION DE ARSENICO POR ADSORCION BATERIA EZEIZA. O. ELECTROMECANICA | G139: 2 | H139: 91. OBLIGACIONES DEL TESORO | I139: 356 | J139: AYSA | K139: 95. ASISTENCIA FINANCIERA A EMPRESAS PÚBLICAS Y ENTE BINACIONAL | L139: 5 | M139: 1360C06 | N139: 77 | O139: - | P139: 22 Y RECURSOS PROPIOS | Q139: 5 | R139: 5 | S139: 7 | T139: 753 | U139: 3 | V139: 8 | W139: 2 | X139: 2 | Y139: SAE00920 | Z139: - | AA139: EZEIZA | AB139: EZEIZA | AC139: CALLE MAIPÚ, E/ EDUARDO GUTIÉRREZ (FFCCGB) Y LAS HERAS | AD139: 2014-08-11 | AE139: 2017-12-10 | AF139: 7109979.23 | AG139: 3956490.04 | AH139: 0 | AI139: 11066469.27 | AJ139: 1164817.628 | AK139: 2580816.384 | AL139: 0 | AM139: 0 | AN139: 0 | AO139: 0 | AQ139: - | AR139: - | AS139: - | AT139: FINALIZADO | AU139: 1 | AV139: 1 | AW139: REEMPLAZA PROYECTO 1160C12. MONTO VIGENTE Y GRADO DE AVANCE ECONÓMICO, SE CONSIDERAN SOLO PARTIDAS CONTRACTUALES.
B140: 5299 | C140: 1. ESTADO NACIONAL | D140: 09. EXPANSIÓN DE LA RED DE AGUA POTABLE Y SANEAMIENTO DE CLOACAS | E140: SISTEMA AGUA EZEIZA | F140: PLANTA DE TRATAMIENTO DE AGUA CON REMOCION DE ARSENICO POR ADSORCION BATERIA EZEIZA. O. ELECTROMECANICA | G140: 2 | H140: 91. OBLIGACIONES DEL TESORO | I140: 356 | J140: AYSA | K140: 95. ASISTENCIA FINANCIERA A EMPRESAS PÚBLICAS Y ENTE BINACIONAL | L140: 5 | M140: 1360C06 | N140: 77 | O140: - | P140: 22 Y RECURSOS PROPIOS | Q140: 5 | R140: 5 | S140: 7 | T140: 753 | U140: 3 | V140: 8 | W140: 2 | X140: 2 | Y140: SAE00920 | Z140: - | AA140: EZEIZA | AB140: EZEIZA | AC140: CALLE MAIPÚ, E/ EDUARDO GUTIÉRREZ (FFCCGB) Y LAS HERAS | AD140: 2014-08-11 | AE140: 2017-12-10 | AF140: 507855.66 | AG140: 149126182.7 | AH140: 0 | AI140: 149634038.3 | AJ140: 0 | AK140: 0 | AL140: 5773618.322 | AM140: 0 | AN140: 0 | AO140: 0 | AQ140: - | AR140: - | AS140: - | AT140: FINALIZADO | AU140: 1 | AV140: 1 | AW140: REEMPLAZA PROYECTO 1160C12. MONTO VIGENTE Y GRADO DE AVANCE ECONÓMICO, SE CONSIDERAN SOLO PARTIDAS CONTRACTUALES.
B141: 5300 | C141: 1. ESTADO NACIONAL | D141: 09. EXPANSIÓN DE LA RED DE AGUA POTABLE Y SANEAMIENTO DE CLOACAS | E141: REDES DE AGUA LA MATANZA | F141: PLAN AYSA A+T D.R OESTE - LA MATANZA | G141: 2 | H141: 91. OBLIGACIONES DEL TESORO | I141: 356 | J141: AYSA | K141: 95. ASISTENCIA FINANCIERA A EMPRESAS PÚBLICAS Y ENTE BINACIONAL | L141: 5 | M141: 1448408 | N141: 77 | O141: - | P141: 22 Y RECURSOS PROPIOS | Q141: 5 | R141: 5 | S141: 7 | T141: 753 | U141: 3 | V141: 8 | W141: 2 | X141: 2 | Y141: SIN P3 | Z141: - | AA141: LA MATANZA | AB141: LA MATANZA | AC141: SAN CAYETANO M4 - VINC POZOS LMO77-LMO65-LMO88 | AD141: 2014-09-20 | AE141: 2019-06-30 | AF141: 32206050.68 | AG141: 330547 | AH141: 5134943.993 | AI141: 37671541.67 | AJ141: 40837.5 | AK141: 0 | AL141: 0 | AM141: 0 | AN141: 0 | AO141: 0 | AQ141: - | AR141: - | AS141: - | AT141: FINALIZADO | AU141: 1 | AV141: 1 | AW141: -
B142: 5364 | C142: 3. CABA | D142: 12. LIMPIEZA DE MÁRGENES Y CAMINO DE SIRGA | E142: CAMINO DE SIRGA CABA | F142: COSSERVACIÓN DE LA SEÑALIZACIÓN LUMINOSA DE LA CUENCA, CONSIDERANDO LAS DE MAYOR CERCANIA CON EL RIACHUELO Y QUE FAVORECEN A COORDINAR EL TRANSITO EN LA ZONA. | G142: 2 | H142: 30. MINISTERIO DE DESARROLLO URBANO Y TRANSPORTE | I142: - | J142: 0. MINISTERIO DE DESARROLLO URBANO Y TRANSPORTE | K142: 92. SEÑALIZACIÓN LUMINOSA | L142: 0. SEÑALIZACIÓN LUMINOSA | M142: 60. A.CU.MAR - CENTRO DE CONTROL CENTRALIZADO DE TRANSITO | N142: 0. A.CU.MAR - CENTRO DE CONTROL CENTRALIZADO DE TRANSITO | O142: 51. CONSERVACION FUNCIONAMIENTO DE SEÑALES LUMINOSA | P142: 11 | Q142: 4 | R142: 2 | S142: 2 | T142: 0 | U142: 4 | V142: 3 | W142: 9 | X142: 1 | Y142: CONSERVACIÓN DE LA SEÑALIZACIÓN LUMINOSA | Z142: 324. DIRECCIÓN GENERAL DE TRÁNSITO | AA142: CABA | AB142: 9 Y 10 | AC142: COMUNA 9-10 | AD142: 2012-02-01 | AE142: 2017-02-28 | AF142: 6247172.94 | AG142: 0 | AH142: 0 | AI142: 6247172.94 | AJ142: 24037862.95 | AK142: 18980400.54 | AL142: 0 | AM142: - | AN142: - | AO142: - | AQ142: - | AR142: - | AS142: - | AT142: - | AU142: - | AV142: - | AW142: -
B143: 7303 | C143: 1. ESTADO NACIONAL | D143: 09. EXPANSIÓN DE LA RED DE AGUA POTABLE Y SANEAMIENTO DE CLOACAS | E143: SISTEMA CLOACAS LOMAS DE ZAMORA | F143: RED SECUNDARIA CLOACAL LA SALADA SUR (1860405) | G143: 2 | H143: 91. OBLIGACIONES DEL TESORO | I143: 356 | J143: AYSA | K143: 95. ASISTENCIA FINANCIERA A EMPRESAS PÚBLICAS Y ENTE BINACIONAL | L143: 5 | M143: 1860405 | N143: 5 | O143: - | P143: 11 | Q143: 5 | R143: 5 | S143: 7 | T143: 753 | U143: 3 | V143: 8 | W143: 96 | X143: 2 | Y143: SC70116 | Z143: - | AA143: LOMAS DE ZAMORA | AB143: VILLA ALBERTINA | AC143: INCLUYE LA SC658. TODAVÍA SE ENCUENTRA EN PROYECTO EN ELABORACIÓN. | AD143: 2020-07-01 | AE143: Año 2023 | AF143: 235809381.1 | AG143: 1066584543 | AH143: 93508208.85 | AI143: 1395902133 | AJ143: 38704.512 | AK143: 139970793.3 | AL143: 519620368.8 | AM143: 523046505.1 | AN143: 132232646.8 | AO143: 382245225.7 | AP143: =AN143+AO143 -> 514477872.5 | AQ143: 514477872.5 | AR143: 19133642.82 | AS143: X | AT143: En ejecución | AU143: 0.8411103556 | AV143: 0.9033 | AW143: INCLUYE LA SC658. EL NÚMERO DE PROYECTO 1760403 ES REEMPLAZADO POR EL 1860405
B144: 5390 | C144: 3. CABA | D144: 03. FORTALECIMIENTO INSTITUCIONAL | E144: INSTITUCIONAL CABA | F144: UNIDAD DE PROYECTOS ESPECIALES CUMAR ES RESPONSABLE DE ARTICULAR CON LAS DIVERSAS ÁREAS DEL GCBA LAS ACCIONES DESARROLLADAS EN LAS COMUNAS N° 4, 7, 8 Y 9 EN POS DEL SANEAMIENTO DE LA CUENCA MATANZA-RIACHUELO | G144: 2 | H144: 28. MINISTERIO DE GOBIERNO | I144: - | J144: 0. MINISTERIO DE GOBIERNO | K144: 77. UNIDAD PROYECTOS ESPECIALES CUENCA MATANZA-RIACHUELO | L144: 0. UNIDAD PROYECTOS ESPECIALES CUENCA MATANZA-RIACHUELO | M144: 0. UNIDAD PROYECTOS ESPECIALES CUENCA MATANZA-RIACHUELO | N144: 60. COORDINACIÓN CUMAR CABA | O144: 0. COORDINACIÓN CUMAR CABA | P144: 11 | Q144: 3 | R144: 5 | S144: 3 | T144: 0 | U144: 3 | V144: 2 | W144: 1 | X144: 1 | Y144: ACCIONES DE COORDINACIÓN INTERMINISTERIAL | Z144: 5013. UNIDAD PROYECTOS ESPECIALES CUENCA MATANZA-RIACHUELO | AA144: CABA | AB144: 4, 7, 8 Y 9 | AC144: COMUNA 4, 7, 8 Y 9 | AD144: - | AE144: - | AF144: - | AG144: - | AH144: - | AI144: - | AJ144: 278920 | AK144: 19000000 | AL144: 0 | AM144: - | AN144: - | AO144: - | AQ144: - | AR144: - | AS144: - | AT144: - | AU144: - | AV144: - | AW144: -
B145: 7307 | C145: 1. ESTADO NACIONAL | D145: 09. EXPANSIÓN DE LA RED DE AGUA POTABLE Y SANEAMIENTO DE CLOACAS | E145: REDES CLOACALES FIORITO | F145: PRIMARIAS A PLANTA FIORITO 2° ETAPA - FASE A (1760313) | G145: 2 | H145: 91. OBLIGACIONES DEL TESORO | I145: 356 | J145: AYSA | K145: 95. ASISTENCIA FINANCIERA A EMPRESAS PÚBLICAS Y ENTE BINACIONAL | L145: 5 | M145: 1760313 | N145: 77 | O145: - | P145: 22 Y RECURSOS PROPIOS | Q145: 5 | R145: 5 | S145: 7 | T145: 753 | U145: 3 | V145: 8 | W145: 2 | X145: 2 | Y145: SC701300 | Z145: - | AA145: LOMAS DE ZAMORA | AB145: VILLA ALBERTINA | AC145: LA TRAZA DE LA RED PRIMARIA ES LA SIGUIENTE: AYOLAS ENTRE JOSPE DE APRONCEDA Y FALUCHO; LIMAY ENTRE FALUCHO E INT. J B TAVANO; INT. J B TAVANO ENTRE LIMAY E IGUAZÚ; IGUAZÚ ENTRE INT. J B TAVANO Y HOMERO Y HOMERO ENTRE IGUAZÚ E IGNACIO ZULOAGA. | AD145: 2018-04-01 | AE145: 2022-02-23 | AF145: 177179859.9 | AG145: 589841183.9 | AH145: 17600688.29 | AI145: 784621732.1 | AJ145: 4309585.174 | AK145: 27357190.29 | AL145: 431341139.7 | AM145: 271418831.8 | AN145: 299020610.1 | AO145: -26577700.82 | AP145: =AN145+AO145 -> 272442909.3 | AQ145: 272442909.3 | AR145: 0 | AS145: X | AT145: Finalizado | AU145: 1 | AV145: 1 | AW145: -
B146: 5426 | C146: 4. ACUMAR | D146: 03. FORTALECIMIENTO INSTITUCIONAL | E146: INSTITUCIONAL ACUMAR | F146: PUBLICIDAD Y PROPAGANDA | G146: 1 | H146: ACUMAR | I146: - | J146: ACUMAR | K146: FORTALECIMIENTO INSTITUCIONAL | L146: - | M146: - | N146: - | O146: - | P146: - | Q146: 3 | R146: 6 | S146: 1 | T146: - | U146: - | V146: - | W146: - | X146: - | Y146: - | Z146: ACUMAR | AA146: CUENCA MATANZA RIACHUELO | AB146: - | AC146: - | AD146: - | AE146: - | AF146: 0 | AG146: 0 | AH146: 0 | AI146: 0 | AJ146: 648342.17 | AK146: 18228 | AL146: 276954 | AM146: - | AN146: 0 | AO146: - | AQ146: - | AR146: - | AS146: - | AT146: - | AU146: - | AV146: - | AW146: -
B147: 7358 | C147: 1. ESTADO NACIONAL | D147: 09. EXPANSIÓN DE LA RED DE AGUA POTABLE Y SANEAMIENTO DE CLOACAS | E147: REDES CLOACALES ESTEBAN ECHEVERRÍA | F147: RED PRIMARIA CLOACAL COLECTOR BARRIO LINDO | G147: 2 | H147: 91. OBLIGACIONES DEL TESORO | I147: 356 | J147: AYSA | K147: 95. ASISTENCIA FINANCIERA A EMPRESAS PÚBLICAS Y ENTE BINACIONAL | L147: 5 | M147: 1760322 | N147: 77 | O147: - | P147: 22 Y RECURSOS PROPIOS | Q147: 5 | R147: 5 | S147: 7 | T147: 753 | U147: 3 | V147: 8 | W147: 2 | X147: 2 | Y147: VC70003 | Z147: - | AA147: ESTEBAN ECHEVERRÍA | AB147: MONTE GRANDE | AC147: LA TRAZA DEL COLECTOR COMIENZA EN LA INTERSECCIÓN DE CALLES TALA Y MACEDONIO RODRÍGUEZ CON UN DN315, SIGUE POR MACEDONIO RODRÍGUEZ, CONTINÚA POR FLORIDA HASTA GIRAR EN AV. FITZ ROY CON UN DN600, Y CONTINUAR POR ÉSTA HASTA GUSTAVO HOERTH, Y CONTINÚA HASTA GRAL. ALVEAR, GIRA Y SIGUE HASTA GHERSI, DOBLA Y CONTINÚA POR GHERSI HASTA RIVADAVIA, DONDE DOBLA Y EMPALMA CON LA BOCA DE REGISTRO EXISTENTE PERTENECIENTE A LA ESTACIÓN DE BOMBEO “ALTOS II | AD147: 2018-03-01 | AE147: 2019-08-31 | AF147: 21383440.58 | AG147: 27211107.77 | AH147: 1549229.395 | AI147: 50143777.74 | AJ147: 42743772.01 | AK147: -1289645.406 | AL147: 687134.5459 | AM147: 43493.208 | AN147: 43493.208 | AO147: 0 | AP147: =AN147+AO147 -> 43493.208 | AQ147: 43493.208 | AR147: 0 | AS147: X | AT147: Finalizado | AU147: 0.9999999999 | AV147: 1 | AW147: EN 2019, EL PROYECTO RECIBIÓ FINANCIAMIENTO DEL CONVENIO VIVIENDA
B148: 7706 | C148: 1. ESTADO NACIONAL | D148: 10. DESAGÜES PLUVIALES | E148: ALIVIADOR COLÓN | F148: CONDUCTO ALIVIADOR CALLE COLÓN - MUNICIPALIDAD DE ESTEBAN ECHEVERRÍA | G148: - | H148: 64. MINISTERIO DE OBRAS PÚBLICAS | I148: - | J148: SECRETARÍA DE INFRAESTRUCTURA Y POLÍTICA HÍDRICA | K148: EXTRAPRESUPUESTARIO - FFIH - FONDO FIDUCIARIO INFRAESTRUCTURA HÍDRICA | L148: - | M148: - | N148: - | O148: BUE203940 | P148: FFIH | Q148: - | R148: - | S148: - | T148: - | U148: - | V148: - | W148: - | X148: - | Y148: - | Z148: MUNICIPIO | AA148: ESTEBAN ECHEVERRÍA | AB148: ESTEBAN ECHEVERRÍA | AC148: CALLE CRISTOBAL COLON Y LAS VÍAS DEL EX FCGR | AD148: 2017-11-24 | AE148: - | AF148: 169853295.8 | AG148: 154609619.6 | AH148: 0 | AI148: 324462915.5 | AJ148: 24868176.8 | AK148: 0 | AL148: 86687935.12 | AM148: 125479603.3 | AN148: 0 | AO148: 79731974.9 | AP148: =AN148+AO148 -> 79731974.9 | AQ148: 79731974.9 | AR148: 105470379.5 | AS148: X | AT148: EN EJECUCIÓN | AU148: 0.8568 | AV148: 0.9838 | AW148: -
B149: 5457 | C149: 1. ESTADO NACIONAL | D149: 04. ORDENAMIENTO AMBIENTAL DEL TERRITORIO | E149: AUTOPISTA PTE. PERÓN | F149: CAMINO DEL BUEN AYRE TRAMO I - SECCION ACCESO OESTE - ACCESO A Bº 20 DE JUNIO (PONTEVEDRA - PROG 25,55) | G149: 2 | H149: 604. DIRECCIÓN NACIONAL DE VIALIDAD | I149: 604 | J149: DIRECCION NACIONAL DE VIALIDAD | K149: 42. CONSTRUCCIÓN DE AUTOPISTAS Y AUTOVÍAS | L149: 10 | M149: 3 | N149: 0 | O149: 51 | P149: 15 | Q149: 6 | R149: 8 | S149: 7 | T149: 0 | U149: 4 | V149: 3 | W149: 6 | X149: 1 | Y149: - | Z149: - | AA149: EZEIZA - LA MATANZA - MERLO - PRESIDENTE PERÓN - SAN VICENTE | AB149: EZEIZA - LA MATANZA - MERLO - PRESIDENTE PERÓN - SAN VICENTE | AC149: CAMINO DEL BUEN AYRE | AD149: 2010-03-10 | AE149: 2023-09-10 | AF149: 483287977 | AG149: 1042465716 | AH149: 1.460134891e+10 | AI149: 1.612710261e+10 | AJ149: 40295499.6 | AK149: 0 | AL149: 0 | AM149: - | AN149: 0 | AO149: 0 | AQ149: 0 | AR149: 0 | AS149: - | AT149: EN EJECUCIÓN | AU149: 0.4493 | AV149: 0.766658783 | AW149: ACTIVIDAD INTERNA DB1. LINEA AGREGADA POR CAMBIO DE FUENTE/INCISO. PARTIDA Y PRESUPUESTO INICIAL GLOBAL.
B150: 5458 | C150: 1. ESTADO NACIONAL | D150: 04. ORDENAMIENTO AMBIENTAL DEL TERRITORIO | E150: AUTOPISTA PTE. PERÓN | F150: CAMINO DEL BUEN AYRE TRAMO II - SECCION ACCESO A Bº 20 DE JUNIO - RUTA PROV.Nº58- PROG. KM53,980) | G150: 2 | H150: 604. DIRECCIÓN NACIONAL DE VIALIDAD | I150: 604 | J150: DIRECCION NACIONAL DE VIALIDAD | K150: 42. CONSTRUCCIÓN DE AUTOPISTAS Y AUTOVÍAS | L150: 10 | M150: 3 | N150: 0 | O150: 51 | P150: 15 | Q150: 6 | R150: 8 | S150: 7 | T150: 0 | U150: 4 | V150: 3 | W150: 6 | X150: 1 | Y150: - | Z150: - | AA150: EZEIZA - LA MATANZA - MERLO - PRESIDENTE PERÓN - SAN VICENTE | AB150: EZEIZA - LA MATANZA - MERLO - PRESIDENTE PERÓN - SAN VICENTE | AC150: CAMINO DEL BUEN AYRE | AD150: 2010-03-11 | AE150: 2023-03-11 | AF150: 555060595 | AG150: 594674868 | AH150: 1.706098777e+10 | AI150: 1.821072323e+10 | AJ150: 399697894.2 | AK150: 0 | AL150: 0 | AM150: - | AN150: 0 | AO150: 0 | AQ150: 0 | AR150: 0 | AS150: - | AT150: EN EJECUCIÓN | AU150: 0.7723 | AV150: 0.8994891644 | AW150: ACTIVIDAD INTERNA DB3. LINEA AGREGADA POR CAMBIO DE FUENTE/INCISO. PARTIDA Y PRESUPUESTO INICIAL GLOBAL.
B151: 5459 | C151: 1. ESTADO NACIONAL | D151: 04. ORDENAMIENTO AMBIENTAL DEL TERRITORIO | E151: AUTOPISTA PTE. PERÓN | F151: CAMINO DEL BUEN AYRE TRAMO III - SECCION RUTA PROV.Nº58- RUTA PROV.Nº53 (PROG. KM 72,60) | G151: 2 | H151: 604. DIRECCIÓN NACIONAL DE VIALIDAD | I151: 604 | J151: DIRECCION NACIONAL DE VIALIDAD | K151: 42. CONSTRUCCIÓN DE AUTOPISTAS Y AUTOVÍAS | L151: 10 | M151: 3 | N151: 0 | O151: 51 | P151: 15 | Q151: 6 | R151: 8 | S151: 7 | T151: 0 | U151: 4 | V151: 3 | W151: 6 | X151: 1 | Y151: - | Z151: - | AA151: EZEIZA - LA MATANZA - MERLO - PRESIDENTE PERÓN - SAN VICENTE | AB151: EZEIZA - LA MATANZA - MERLO - PRESIDENTE PERÓN - SAN VICENTE | AC151: CAMINO DEL BUEN AYRE | AD151: 2010-03-11 | AE151: 2022-12-08 | AF151: 318183735 | AG151: 181332702 | AH151: 8122124811 | AI151: 8621641248 | AJ151: 40821639.86 | AK151: 0 | AL151: 0 | AM151: - | AN151: 0 | AO151: 0 | AQ151: 0 | AR151: 0 | AS151: - | AT151: EN EJECUCIÓN | AU151: 0.5846 | AV151: 0.8052853942 | AW151: ACTIVIDAD INTERNA DB2. LINEA AGREGADA POR CAMBIO DE FUENTE/INCISO. PARTIDA Y PRESUPUESTO INICIAL GLOBAL.
B152: 5464 | C152: 1. ESTADO NACIONAL | D152: 04. ORDENAMIENTO AMBIENTAL DEL TERRITORIO | E152: TRANSBORDADOR NICOLÁS AVELLANEDA | F152: REMOCION DEL GASODUCTO EN EL PUENTE TRANSBORADADOR "NICOLAS AVELLANEDA" TR.: AVELLANEDA - CABA. PCIA. DE BS. AS.- ACUMAR | G152: 2 | H152: 604. DIRECCIÓN NACIONAL DE VIALIDAD | I152: 604 | J152: DIRECCION NACIONAL DE VIALIDAD | K152: 22. CONSTRUCCIONES | L152: 4 | M152: 1 | N152: 0 | O152: 51 | P152: 15 | Q152: 4 | R152: 2 | S152: 2 | T152: 0 | U152: 4 | V152: 3 | W152: 6 | X152: 1 | Y152: - | Z152: - | AA152: AVELLANEDA-CABA | AB152: AVELLANEDA-CABA | AC152: AVELLANEDA-CABA | AD152: 2014-01-03 | AE152: 2015-05-20 | AF152: 29382258.82 | AG152: 3684738.14 | AH152: 9492933.38 | AI152: 42559930.34 | AJ152: 0 | AK152: 0 | AL152: 0 | AM152: - | AN152: 0 | AO152: 0 | AQ152: 0 | AR152: 0 | AS152: - | AT152: FINALIZADA SIN RP | AU152: 1 | AV152: 1 | AW152: OBRA FINALIZADA. ACTIVIDAD INTERNA 0IT.
B153: 5473 | C153: 1. ESTADO NACIONAL | D153: 09. EXPANSIÓN DE LA RED DE AGUA POTABLE Y SANEAMIENTO DE CLOACAS | E153: PLANTA DE TRATAMIENTO DE BARROS SUDOESTE | F153: SERVICIOS DE INSPECCIÓN DE OBRA PLANTA DE BARROS EN ESTABLECIMIENTO SUDOESTE (OC402) | G153: 2 | H153: 91. OBLIGACIONES DEL TESORO | I153: 356 | J153: AYSA | K153: 95. ASISTENCIA FINANCIERA A EMPRESAS PÚBLICAS Y ENTE BINACIONAL | L153: 5 | M153: 1461603 | N153: 77 | O153: - | P153: 22 Y RECURSOS PROPIOS | Q153: 5 | R153: 5 | S153: 7 | T153: 753 | U153: 3 | V153: 8 | W153: 2 | X153: 2 | Y153: OX70001 | Z153: - | AA153: LA MATANZA | AB153: VILLA CELINA | AC153: LA PLANTA SUDOESTE SE ENCUENTRA EN A. M. JANER Y PALPA, ALDO BONZI, PARTIDO DE LA MATANZA. | AD153: 2015-07-01 | AE153: AÑO 2021 | AF153: 11796962.76 | AG153: 50336990.95 | AH153: 0 | AI153: 62133953.71 | AJ153: 2561558.166 | AK153: 0 | AL153: 0 | AM153: 0 | AN153: 0 | AO153: 0 | AQ153: - | AR153: - | AS153: - | AT153: FINALIZADO | AU153: 1 | AV153: 1 | AW153: POR SER INSPECCIÓN AVANCE FÍSICO = ECONÓMICO.
B154: 5475 | C154: 1. ESTADO NACIONAL | D154: 09. EXPANSIÓN DE LA RED DE AGUA POTABLE Y SANEAMIENTO DE CLOACAS | E154: REDES CLOACALES LANÚS | F154: RED SECUNDARIA CLOACAL INTERNACIONAL SUR | G154: 2 | H154: 91. OBLIGACIONES DEL TESORO | I154: 356 | J154: AYSA | K154: 95. ASISTENCIA FINANCIERA A EMPRESAS PÚBLICAS Y ENTE BINACIONAL | L154: 5 | M154: 1460409 | N154: 77 | O154: - | P154: 22 Y RECURSOS PROPIOS | Q154: 5 | R154: 5 | S154: 7 | T154: 753 | U154: 3 | V154: 8 | W154: 2 | X154: 2 | Y154: SC670 | Z154: - | AA154: LANÚS | AB154: LANÚS | AC154: EL ÁREA QUE ABARCA LA RED SECUNDARIA ESTÁ COMPRENDIDA POR LAS SIGUIENTES CALLES: URQUIZA, REPÚBLICA DEL LÍBANO, CALLE CONTIGUA A LAS VÍAS DEL FFCC EX ROCA Y PELLEGRINI. | AD154: 2015-10-19 | AE154: 2017-12-20 | AF154: 139030447.8 | AG154: 130337203.6 | AH154: 8035694.886 | AI154: 277403346.2 | AJ154: 154918.9862 | AK154: 0 | AL154: 0 | AM154: 0 | AN154: 0 | AO154: 0 | AQ154: - | AR154: - | AS154: - | AT154: FINALIZADO | AU154: 1 | AV154: 1 | AW154: -
B155: 5476 | C155: 1. ESTADO NACIONAL | D155: 09. EXPANSIÓN DE LA RED DE AGUA POTABLE Y SANEAMIENTO DE CLOACAS | E155: REDES CLOACALES ACCIONES COMPLEMENTARIAS | F155: TRABAJOS COMPLEMENTARIOS PARA INTERVENCION EN ESTACIONES DE BOMBEO Y VALVULAS REGULADORAS | G155: 2 | H155: 91. OBLIGACIONES DEL TESORO | I155: 356 | J155: AYSA | K155: 95. ASISTENCIA FINANCIERA A EMPRESAS PÚBLICAS Y ENTE BINACIONAL | L155: 5 | M155: 1560301 | N155: 77 | O155: - | P155: 22 Y RECURSOS PROPIOS | Q155: 5 | R155: 5 | S155: 7 | T155: 753 | U155: 3 | V155: 8 | W155: 2 | X155: 2 | Y155: VX70003 | Z155: - | AA155: AVELLANEDA - LOMAS DE ZAMORA - TIGRE | AB155: VARIOS | AC155: LAS PRINCIPALES OBRAS SE DESARROLLARÁN EN: • EBC RECONQUISTA 1 UBICADA SOBRE LA CALLE CALLAO E/CARRIEGO Y SEGUROLA, PARTIDO DE TIGRE. • EBC AVELLANEDA OESTE UBICADA SOBRE LA CALLE SUSPISICHE N°519 E/SOLIER Y CORDERO, PARTIDO DE AVELLANEDA. • CÁMARA REGULADORA 9 DE ABRIL UBICADA EN POTOSI, E/ ARANA GOIRI Y BUSTOS, PARTIDO DE LOMAS DE ZAMORA. | AD155: 2016-11-01 | AE155: 2020-10-01 | AF155: 42780536.21 | AG155: 48736209.35 | AH155: 19445209.33 | AI155: 110961954.9 | AJ155: 16918794.25 | AK155: 20572710.46 | AL155: 13794244.44 | AM155: 0 | AN155: 0 | AO155: 0 | AQ155: - | AR155: - | AS155: - | AT155: FINALIZADO | AU155: 1 | AV155: 1 | AW155: LA OBRA FINALIZÓ EN OCTUBRE 2020, SIN EMBARGO DURANTE 2021 SE APROBARON REDETERMINACIONES NUEVAS (5TA A 11VA). LA REDETERMINACIÓN NRO 5 SE APROBÓ EN JUNIO POR LO CUAL SE HABÍA PRESUPUESTADO 8 MILLONES; EL RESTO SE APROBARON EN AGOSTO 2021 (6TA A 11VA), NO PUDIÉNDOSE REVISIONAR EL PRESUPUESTO GENERANDO EL DESVIÓ PRESUPUESTARIO.
B156: 5477 | C156: 1. ESTADO NACIONAL | D156: 09. EXPANSIÓN DE LA RED DE AGUA POTABLE Y SANEAMIENTO DE CLOACAS | E156: AGUA RED PRIMARIA | F156: TRABAJOS COMPLEMENTARIOS PARA OBRAS DE REDES DE LA DIRECCIÓN DE PROGRAMACIÓN Y EJECUCIÓN DE OBRAS | G156: 2 | H156: 91. OBLIGACIONES DEL TESORO | I156: 356 | J156: AYSA | K156: 95. ASISTENCIA FINANCIERA A EMPRESAS PÚBLICAS Y ENTE BINACIONAL | L156: 5 | M156: 1460010 | N156: 77 | O156: 0 | P156: 22 y Recursos Propios | Q156: 5 | R156: 5 | S156: 7 | T156: 753 | U156: 3 | V156: 8 | W156: 2 | X156: 2 | Y156: VX70004 | Z156: - | AA156: VARIOS | AB156: VARIOS | AC156: VARIOS | AD156: 2016-07-22 | AE156: 2018-04-19 | AF156: 14886436.01 | AG156: 20216104.21 | AH156: 1216402.453 | AI156: 36318942.67 | AJ156: 0 | AK156: 22029.3084 | AL156: 1715989.052 | AM156: 0 | AN156: 0 | AO156: 0 | AQ156: - | AR156: - | AS156: - | AT156: FINALIZADO | AU156: 1 | AV156: 1 | AW156: -
B157: 7746 | C157: 1. ESTADO NACIONAL | D157: 09. EXPANSIÓN DE LA RED DE AGUA POTABLE Y SANEAMIENTO DE CLOACAS | E157: PLANTA POTABILIZADORA GENERAL BELGRANO | F157: AMPLIACION EST. GRAL BELGRANO O.CIVIL | G157: 2 | H157: 91. OBLIGACIONES DEL TESORO | I157: 356 | J157: AYSA | K157: 95. ASISTENCIA FINANCIERA A EMPRESAS PÚBLICAS Y ENTE BINACIONAL | L157: 5 | M157: 1767C05 | N157: 77 | O157: - | P157: 22 Y RECURSOS PROPIOS | Q157: 5 | R157: 5 | S157: 7 | T157: 753 | U157: 3 | V157: 8 | W157: 2 | X157: 2 | Y157: SA851010 | Z157: - | AA157: QUILMES | AB157: BERNAL | AC157: AV. CASEROS 269 | AD157: 2017-10-03 | AE157: 2022-11-04 | AF157: 282079955.4 | AG157: 1048865398 | AH157: 0 | AI157: 1330945354 | AJ157: 8565571.366 | AK157: 29777210.35 | AL157: 361713502 | AM157: 313447500.2 | AN157: 40431835.88 | AO157: 444546608.3 | AP157: =AN157+AO157 -> 484978444.2 | AQ157: 484978444.2 | AR157: 5847310151 | AS157: X | AT157: En ejecución | AU157: 0.4344 | AV157: 0.4536 | AW157: EL MONTO VIGENTE CONSIDERA SOLO PARTIDAS CONTRACTUALES. EL AVANCE FÍSICO Y ECONÓMICO ENGLOBA EL TOTAL DE LA OBRA CIVIL Y ELECTROMECÁNICA, SEGÚN INFORME DE LA GERENCIA DEL SISTEMA DE AGUA SUR
B158: 7747 | C158: 1. ESTADO NACIONAL | D158: 09. EXPANSIÓN DE LA RED DE AGUA POTABLE Y SANEAMIENTO DE CLOACAS | E158: PLANTA POTABILIZADORA GENERAL BELGRANO | F158: AMPLIACION EST. GRAL BELGRANO O.CIVIL | G158: 2 | H158: 91. OBLIGACIONES DEL TESORO | I158: 356 | J158: AYSA | K158: 95. ASISTENCIA FINANCIERA A EMPRESAS PÚBLICAS Y ENTE BINACIONAL | L158: 5 | M158: 1767C05 | N158: 77 | O158: - | P158: 22 Y RECURSOS PROPIOS | Q158: 5 | R158: 5 | S158: 7 | T158: 753 | U158: 3 | V158: 8 | W158: 2 | X158: 2 | Y158: SA851010 | Z158: - | AA158: QUILMES | AB158: BERNAL | AC158: AV. CASEROS 269 | AD158: 2017-10-03 | AE158: 2022-11-04 | AF158: 271017996.3 | AG158: 1007733422 | AH158: 0 | AI158: 1278751418 | AJ158: 133557449 | AK158: 197945543.6 | AL158: 300400120.3 | AM158: 389249141.9 | AN158: 94169321.94 | AO158: 150584989.6 | AP158: 244754311.6 | AQ158: 244754311.6 | AR158: 168353235.1 | AS158: X | AT158: En ejecución | AU158: 0.4344 | AV158: 0.4536 | AW158: EL MONTO VIGENTE CONSIDERA SOLO PARTIDAS CONTRACTUALES. EL AVANCE FÍSICO Y ECONÓMICO ENGLOBA EL TOTAL DE LA OBRA CIVIL Y ELECTROMECÁNICA, SEGÚN INFORME DE LA GERENCIA DEL SISTEMA DE AGUA SUR
B159: 7748 | C159: 1. ESTADO NACIONAL | D159: 09. EXPANSIÓN DE LA RED DE AGUA POTABLE Y SANEAMIENTO DE CLOACAS | E159: PLANTA POTABILIZADORA GENERAL BELGRANO | F159: AMPLIACION EST. GRAL BELGRANO O.CIVIL | G159: 2 | H159: 64. MINISTERIO DE OBRAS PÚBLICAS | I159: 364 | J159: AYSA | K159: 94. ASISTENCIA FINANCIERA A EMPRESAS PÚBLICAS Y ENTE BINACIONAL | L159: - | M159: 1767C05 | N159: 14 | O159: - | P159: 22 | Q159: 5 | R159: 5 | S159: 7 | T159: 753 | U159: 3 | V159: 8 | W159: 6 | X159: 2 | Y159: SA851010 | Z159: - | AA159: QUILMES | AB159: BERNAL | AC159: AV. CASEROS 269 | AD159: 2017-10-03 | AE159: 2022-11-04 | AF159: 1290561887 | AG159: 4798730580 | AH159: 0 | AI159: 6089292468 | AJ159: 635987852.5 | AK159: 942597826.5 | AL159: 1430476763 | AM159: 1099161273 | AN159: 448425342.6 | AO159: 717071379.2 | AP159: 1165496722 | AQ159: 1165496722 | AR159: 801682071.9 | AS159: X | AT159: En ejecución | AU159: 0.4344 | AV159: 0.4536 | AW159: EL MONTO VIGENTE CONSIDERA SOLO PARTIDAS CONTRACTUALES. EL AVANCE FÍSICO Y ECONÓMICO ENGLOBA EL TOTAL DE LA OBRA CIVIL Y ELECTROMECÁNICA, SEGÚN INFORME DE LA GERENCIA DEL SISTEMA DE AGUA SUR
B160: 7749 | C160: 1. ESTADO NACIONAL | D160: 09. EXPANSIÓN DE LA RED DE AGUA POTABLE Y SANEAMIENTO DE CLOACAS | E160: PLANTA POTABILIZADORA GENERAL BELGRANO | F160: AMPLIACION EST. GRAL BELGRANO O. ELECTROMECANICA | G160: 2 | H160: 91. OBLIGACIONES DEL TESORO | I160: 356 | J160: AYSA | K160: 95. ASISTENCIA FINANCIERA A EMPRESAS PÚBLICAS Y ENTE BINACIONAL | L160: 5 | M160: 1767C06 | N160: 77 | O160: - | P160: 22 Y RECURSOS PROPIOS | Q160: 5 | R160: 5 | S160: 7 | T160: 753 | U160: 3 | V160: 8 | W160: 2 | X160: 2 | Y160: SA851020 | Z160: - | AA160: QUILMES | AB160: BERNAL | AC160: AV. CASEROS 269 | AD160: 2017-10-03 | AE160: 2022-11-04 | AF160: 135863097.9 | AG160: 9145284.773 | AH160: 0 | AI160: 145008382.7 | AJ160: 9653.1501 | AK160: 73729.7407 | AL160: 116497.9409 | AM160: 117784607.6 | AN160: 35032205.79 | AO160: 89021589.44 | AP160: 124053795.2 | AQ160: 124053795.2 | AR160: 3322986385 | AS160: X | AT160: En ejecución | AU160: 0.4344 | AV160: 0.4536 | AW160: EL MONTO VIGENTE CONSIDERA SOLO PARTIDAS CONTRACTUALES. EL AVANCE FÍSICO Y ECONÓMICO ENGLOBA EL TOTAL DE LA OBRA CIVIL Y ELECTROMECÁNICA, SEGÚN INFORME DE LA GERENCIA DEL SISTEMA DE AGUA SUR
B161: 7750 | C161: 1. ESTADO NACIONAL | D161: 09. EXPANSIÓN DE LA RED DE AGUA POTABLE Y SANEAMIENTO DE CLOACAS | E161: PLANTA POTABILIZADORA GENERAL BELGRANO | F161: AMPLIACION EST. GRAL BELGRANO O. ELECTROMECANICA | G161: 2 | H161: 91. OBLIGACIONES DEL TESORO | I161: 356 | J161: AYSA | K161: 95. ASISTENCIA FINANCIERA A EMPRESAS PÚBLICAS Y ENTE BINACIONAL | L161: 5 | M161: 1767C06 | N161: 77 | O161: - | P161: 22 Y RECURSOS PROPIOS | Q161: 5 | R161: 5 | S161: 7 | T161: 753 | U161: 3 | V161: 8 | W161: 2 | X161: 2 | Y161: SA851020 | Z161: - | AA161: QUILMES | AB161: BERNAL | AC161: AV. CASEROS 269 | AD161: 2017-10-03 | AE161: 2022-11-04 | AF161: 130535133.3 | AG161: 8786646.158 | AH161: 0 | AI161: 139321779.5 | AJ161: 6553166.187 | AK161: 24648665.54 | AL161: 2697122.179 | AM161: 540618677.6 | AN161: 10659466.89 | AO161: 54259780.06 | AP161: 64919246.95 | AQ161: 64919246.95 | AR161: 80441999.36 | AS161: X | AT161: En ejecución | AU161: 0.4344 | AV161: 0.4536 | AW161: EL MONTO VIGENTE CONSIDERA SOLO PARTIDAS CONTRACTUALES. EL AVANCE FÍSICO Y ECONÓMICO ENGLOBA EL TOTAL DE LA OBRA CIVIL Y ELECTROMECÁNICA, SEGÚN INFORME DE LA GERENCIA DEL SISTEMA DE AGUA SUR
B162: 7751 | C162: 1. ESTADO NACIONAL | D162: 09. EXPANSIÓN DE LA RED DE AGUA POTABLE Y SANEAMIENTO DE CLOACAS | E162: PLANTA POTABILIZADORA GENERAL BELGRANO | F162: AMPLIACION EST. GRAL BELGRANO O. ELECTROMECANICA | G162: 2 | H162: 64. MINISTERIO DE OBRAS PÚBLICAS | I162: 364 | J162: AYSA | K162: 94. ASISTENCIA FINANCIERA A EMPRESAS PÚBLICAS Y ENTE BINACIONAL | L162: - | M162: 1767C06 | N162: 14 | O162: - | P162: 22 | Q162: 5 | R162: 5 | S162: 7 | T162: 753 | U162: 3 | V162: 8 | W162: 6 | X162: 2 | Y162: SA851020 | Z162: - | AA162: QUILMES | AB162: BERNAL | AC162: AV. CASEROS 269 | AD162: 2017-10-03 | AE162: 2022-11-04 | AF162: 621595872.9 | AG162: 41841172.18 | AH162: 0 | AI162: 663437045 | AJ162: 31205553.27 | AK162: 117374597.8 | AL162: 12843438.95 | AM162: 1412142102 | AN162: 50759366.15 | AO162: 258379905 | AP162: 309139271.2 | AQ162: 309139271.2 | AR162: 383057139.8 | AS162: X | AT162: En ejecución | AU162: 0.4344 | AV162: 0.4536 | AW162: EL MONTO VIGENTE CONSIDERA SOLO PARTIDAS CONTRACTUALES. EL AVANCE FÍSICO Y ECONÓMICO ENGLOBA EL TOTAL DE LA OBRA CIVIL Y ELECTROMECÁNICA, SEGÚN INFORME DE LA GERENCIA DEL SISTEMA DE AGUA SUR
B163: 5526 | C163: 4. ACUMAR | D163: 03. FORTALECIMIENTO INSTITUCIONAL | E163: INSTITUCIONAL ACUMAR | F163: SERVICIOS COMERCIALES Y FINANCIEROS | G163: 1 | H163: ACUMAR | I163: - | J163: ACUMAR | K163: FORTALECIMIENTO INSTITUCIONAL | L163: - | M163: - | N163: - | O163: - | P163: - | Q163: 3 | R163: 5 | S163: 5 | T163: - | U163: - | V163: - | W163: - | X163: - | Y163: - | Z163: ACUMAR | AA163: CUENCA MATANZA RIACHUELO | AB163: - | AC163: - | AD163: - | AE163: - | AF163: 0 | AG163: 0 | AH163: 0 | AI163: 0 | AJ163: 220081 | AK163: 23341287.2 | AL163: 65221878.9 | AM163: 0 | AN163: - | AO163: - | AQ163: - | AR163: - | AS163: - | AT163: - | AU163: - | AV163: - | AW163: -
B164: 5554 | C164: 4. ACUMAR | D164: 03. FORTALECIMIENTO INSTITUCIONAL | E164: - | F164: 94848469/2019 -CONVALIDACIÓN CATERING Y VIANDAS COPCUENCAS- POLA 1281 S.R.L. | G164: 1 | H164: ACUMAR | I164: - | J164: ACUMAR | K164: SISTEMA DE INFORMACION | L164: - | M164: - | N164: - | O164: - | P164: - | Q164: - | R164: - | S164: - | T164: - | U164: - | V164: - | W164: - | X164: - | Y164: - | Z164: POLA 1281 S.R.L. | AA164: CUENCA MATANZA RIACHUELO | AB164: - | AC164: - | AD164: - | AE164: - | AF164: 0 | AG164: 0 | AH164: 0 | AI164: 0 | AJ164: 0 | AK164: 0 | AL164: 0 | AM164: - | AN164: 0 | AO164: - | AQ164: - | AR164: - | AS164: - | AT164: - | AU164: - | AV164: - | AW164: -
B165: 5561 | C165: 1. ESTADO NACIONAL | D165: 08. URBANIZACIÓN DE VILLAS Y ASENTAMIENTOS URBANOS | E165: COMPLEJO BARRIO ALIANZA | F165: Bº ALIANZA - 440 VIVIENDAS SIN INFRA FRENTISTA | G165: 2 | H165: MINISTERIO DE DESARROLLO TERRITORIAL Y HÁBITAT | I165: 365 | J165: MINISTERIO DE DESARROLLO TERRITORIAL Y HABITAT | K165: 71. URBANIZACIÓN DE VILLAS Y ASENTAMIENTOS PRECARIOS. | L165: - | M165: - | N165: 77.VIVIENDAS NUEVAS EN LA CUENCA MATANZA RIACHUELO | O165: 666-15 | P165: 11 | Q165: 5 | R165: 8 | S165: 6 | T165: 0 | U165: - | V165: - | W165: - | X165: - | Y165: - | Z165: - | AA165: AVELLANEDA | AB165: - | AC165: - | AD165: - | AE165: - | AF165: 0 | AG165: 0 | AH165: 0 | AI165: 229702869 | AJ165: 0 | AK165: 20122936.42 | AL165: 0 | AM165: - | AN165: 0 | AO165: 0 | AQ165: 0 | AR165: 0 | AS165: - | AT165: EN EJECUCIÓN | AU165: 0.27 | AV165: 0.08 | AW165: -
B166: 5573 | C166: 1. ESTADO NACIONAL | D166: 08. URBANIZACIÓN DE VILLAS Y ASENTAMIENTOS URBANOS | E166: BARRIO 7 DE ENERO | F166: Bº 7 DE ENERO - 100 MEJORAMIENTOS | G166: 2 | H166: 64. MINISTERIO DE OBRAS PÚBLICAS | I166: 354 | J166: MINISTERIO DE DESARROLLO TERRITORIAL Y HABITAT | K166: 46. URBANIZACIÓN DE VILLAS Y ASENTAMIENTOS PRECARIOS. | L166: - | M166: - | N166: 77.VIVIENDAS NUEVAS EN LA CUENCA MATANZA RIACHUELO | O166: 2349558-16 | P166: 11 | Q166: 5 | R166: 8 | S166: 6 | T166: 0 | U166: - | V166: - | W166: - | X166: - | Y166: - | Z166: - | AA166: AVELLANEDA | AB166: - | AC166: - | AD166: - | AE166: - | AF166: 0 | AG166: 0 | AH166: 0 | AI166: 20460000 | AJ166: 0 | AK166: 0 | AL166: 0 | AM166: - | AN166: 0 | AO166: - | AQ166: - | AR166: - | AS166: - | AT166: - | AU166: - | AV166: 0 | AW166: -
B167: 5579 | C167: 1. ESTADO NACIONAL | D167: 08. URBANIZACIÓN DE VILLAS Y ASENTAMIENTOS URBANOS | E167: COMPLEJO BARRIO VILLA AZUL | F167: Bº VILLA AZUL - 22 VIV (EX 100) | G167: 2 | H167: 64. MINISTERIO DE OBRAS PÚBLICAS | I167: 354 | J167: MINISTERIO DE DESARROLLO TERRITORIAL Y HABITAT | K167: 46. URBANIZACIÓN DE VILLAS Y ASENTAMIENTOS PRECARIOS. | L167: - | M167: - | N167: 77.VIVIENDAS NUEVAS EN LA CUENCA MATANZA RIACHUELO | O167: 2093-15 | P167: 11 | Q167: 5 | R167: 8 | S167: 6 | T167: 0 | U167: - | V167: - | W167: - | X167: - | Y167: - | Z167: - | AA167: AVELLANEDA | AB167: - | AC167: - | AD167: - | AE167: - | AF167: 0 | AG167: 0 | AH167: 0 | AI167: 16015742.5 | AJ167: 9552085.41 | AK167: 0 | AL167: 0 | AM167: - | AN167: 0 | AO167: - | AQ167: - | AR167: - | AS167: - | AT167: - | AU167: - | AV167: 0 | AW167: -
B168: 5583 | C168: 1. ESTADO NACIONAL | D168: 08. URBANIZACIÓN DE VILLAS Y ASENTAMIENTOS URBANOS | E168: BARRIO ALIANZA | F168: Bº ALIANZA - INFRA FRENTISTA PARA 440 VIVIENDAS | G168: 2 | H168: 64. MINISTERIO DE OBRAS PÚBLICAS | I168: 354 | J168: MINISTERIO DE DESARROLLO TERRITORIAL Y HABITAT | K168: 46. URBANIZACIÓN DE VILLAS Y ASENTAMIENTOS PRECARIOS. | L168: - | M168: - | N168: 79. INFRAESTRUCTURA, NEXOS Y OBRAS COMPLEMENTARIAS EN LA CUENCA MATANZA RIACHUELO. | O168: 2727457-16 | P168: 11 | Q168: 5 | R168: 8 | S168: 6 | T168: 0 | U168: - | V168: - | W168: - | X168: - | Y168: - | Z168: - | AA168: AVELLANEDA | AB168: - | AC168: - | AD168: - | AE168: - | AF168: 0 | AG168: 0 | AH168: 0 | AI168: 31431873.01 | AJ168: 0 | AK168: 0 | AL168: 0 | AM168: - | AN168: 0 | AO168: - | AQ168: - | AR168: - | AS168: - | AT168: - | AU168: - | AV168: 0 | AW168: -
B169: 5605 | C169: 1. ESTADO NACIONAL | D169: 08. URBANIZACIÓN DE VILLAS Y ASENTAMIENTOS URBANOS | E169: COMPLEJO BARRIO MONTECARLO | F169: Bº MONTECARLO - AMPLIAC CONTR PARA 240 VIV | G169: 2 | H169: MINISTERIO DE DESARROLLO TERRITORIAL Y HÁBITAT | I169: 365 | J169: MINISTERIO DE DESARROLLO TERRITORIAL Y HABITAT | K169: 46. URBANIZACIÓN DE VILLAS Y ASENTAMIENTOS PRECARIOS. | L169: - | M169: - | N169: 79. INFRAESTRUCTURA, NEXOS Y OBRAS COMPLEMENTARIAS EN LA CUENCA MATANZA RIACHUELO. | O169: 667-15 | P169: 11 | Q169: 5 | R169: 8 | S169: 6 | T169: 0 | U169: - | V169: - | W169: - | X169: - | Y169: - | Z169: - | AA169: ESTEBAN ECHEVERRÍA | AB169: ESTEBAN ECHEVERRÍA | AC169: - | AD169: - | AE169: - | AF169: 0 | AG169: 0 | AH169: 0 | AI169: 2002833.9 | AJ169: 4613819.47 | AK169: 9609078.55 | AL169: 0 | AM169: - | AN169: 0 | AO169: 0 | AQ169: 0 | AR169: 0 | AS169: - | AT169: - | AU169: - | AV169: 0 | AW169: -
B170: 5607 | C170: 1. ESTADO NACIONAL | D170: 08. URBANIZACIÓN DE VILLAS Y ASENTAMIENTOS URBANOS | E170: ENTUBAMIENTO DEL ARROYO ORTEGA | F170: Bº MONTECARLO - ENTUBAMIENTO DE ARROYO ORTEGA | G170: 2 | H170: 64. MINISTERIO DE OBRAS PÚBLICAS | I170: 354 | J170: MINISTERIO DE DESARROLLO TERRITORIAL Y HABITAT | K170: 46. URBANIZACIÓN DE VILLAS Y ASENTAMIENTOS PRECARIOS. | L170: - | M170: - | N170: 79. INFRAESTRUCTURA, NEXOS Y OBRAS COMPLEMENTARIAS EN LA CUENCA MATANZA RIACHUELO. | O170: 1051-15 | P170: 11 | Q170: 5 | R170: 8 | S170: 6 | T170: 0 | U170: - | V170: - | W170: - | X170: - | Y170: - | Z170: - | AA170: ESTEBAN ECHEVERRÍA | AB170: - | AC170: - | AD170: - | AE170: - | AF170: 0 | AG170: 0 | AH170: 0 | AI170: 52570254.62 | AJ170: 12707214.98 | AK170: 0 | AL170: 0 | AM170: - | AN170: 0 | AO170: - | AQ170: - | AR170: - | AS170: - | AT170: - | AU170: - | AV170: 0 | AW170: -
B171: 5609 | C171: 1. ESTADO NACIONAL | D171: 08. URBANIZACIÓN DE VILLAS Y ASENTAMIENTOS URBANOS | E171: COMPLEJO BARRIO JUAN PABLO II | F171: Bº JUAN PABLO II - GRUPO I - 238 VIV MAS OBRAS COMPLEMENTARIAS | G171: 2 | H171: 64. MINISTERIO DE OBRAS PÚBLICAS | I171: 354 | J171: MINISTERIO DE DESARROLLO TERRITORIAL Y HABITAT | K171: 46. URBANIZACIÓN DE VILLAS Y ASENTAMIENTOS PRECARIOS. | L171: - | M171: - | N171: 77.VIVIENDAS NUEVAS EN LA CUENCA MATANZA RIACHUELO | O171: 259-15 | P171: 11 | Q171: 5 | R171: 8 | S171: 6 | T171: 0 | U171: - | V171: - | W171: - | X171: - | Y171: - | Z171: - | AA171: ESTEBAN ECHEVERRÍA | AB171: ESTEBAN ECHEVERRÍA | AC171: - | AD171: - | AE171: - | AF171: 0 | AG171: 0 | AH171: 0 | AI171: 144640633.4 | AJ171: 23350919.95 | AK171: 0 | AL171: 0 | AM171: - | AN171: 0 | AO171: - | AQ171: - | AR171: - | AS171: - | AT171: - | AU171: - | AV171: 0 | AW171: -
B172: 5610 | C172: 1. ESTADO NACIONAL | D172: 08. URBANIZACIÓN DE VILLAS Y ASENTAMIENTOS URBANOS | E172: COMPLEJO BARRIO JUAN PABLO II | F172: Bº JUAN PABLO II - GRUPO II - 308 VIV MAS OBRAS COMPLEMENTARIAS | G172: 2 | H172: 64. MINISTERIO DE OBRAS PÚBLICAS | I172: 354 | J172: MINISTERIO DE DESARROLLO TERRITORIAL Y HABITAT | K172: 46. URBANIZACIÓN DE VILLAS Y ASENTAMIENTOS PRECARIOS. | L172: - | M172: - | N172: 77.VIVIENDAS NUEVAS EN LA CUENCA MATANZA RIACHUELO | O172: 260/15 | P172: 11 | Q172: 5 | R172: 8 | S172: 6 | T172: 0 | U172: - | V172: - | W172: - | X172: - | Y172: - | Z172: - | AA172: ESTEBAN ECHEVERRÍA | AB172: ESTEBAN ECHEVERRÍA | AC172: - | AD172: - | AE172: - | AF172: 0 | AG172: 0 | AH172: 0 | AI172: 188653124.7 | AJ172: 20538269.23 | AK172: 0 | AL172: 0 | AM172: - | AN172: 0 | AO172: - | AQ172: - | AR172: - | AS172: - | AT172: - | AU172: - | AV172: 0 | AW172: -
B173: 5611 | C173: 1. ESTADO NACIONAL | D173: 08. URBANIZACIÓN DE VILLAS Y ASENTAMIENTOS URBANOS | E173: COMPLEJO BARRIO JUAN PABLO II | F173: Bº JUAN PABLO II - 238 VIV | G173: 2 | H173: 64. MINISTERIO DE OBRAS PÚBLICAS | I173: 354 | J173: MINISTERIO DE DESARROLLO TERRITORIAL Y HABITAT | K173: 46. URBANIZACIÓN DE VILLAS Y ASENTAMIENTOS PRECARIOS. | L173: - | M173: - | N173: 77.VIVIENDAS NUEVAS EN LA CUENCA MATANZA RIACHUELO | O173: 267-15 | P173: 11 | Q173: 5 | R173: 8 | S173: 6 | T173: 0 | U173: - | V173: - | W173: - | X173: - | Y173: - | Z173: - | AA173: ESTEBAN ECHEVERRÍA | AB173: ESTEBAN ECHEVERRÍA | AC173: - | AD173: - | AE173: - | AF173: 0 | AG173: 0 | AH173: 0 | AI173: 144928882.4 | AJ173: 40151684.24 | AK173: 0 | AL173: 0 | AM173: - | AN173: 0 | AO173: - | AQ173: - | AR173: - | AS173: - | AT173: - | AU173: - | AV173: 0 | AW173: -
B174: 5612 | C174: 1. ESTADO NACIONAL | D174: 08. URBANIZACIÓN DE VILLAS Y ASENTAMIENTOS URBANOS | E174: BARRIO JUAN PABLO II | F174: Bº JUAN PABLO II - INFRA PARA 784 VIV - PAVIMENTO, NEXOS DE AGUA Y CLOACA | G174: 2 | H174: 64. MINISTERIO DE OBRAS PÚBLICAS | I174: 354 | J174: MINISTERIO DE DESARROLLO TERRITORIAL Y HABITAT | K174: 46. URBANIZACIÓN DE VILLAS Y ASENTAMIENTOS PRECARIOS. | L174: - | M174: - | N174: 79. INFRAESTRUCTURA, NEXOS Y OBRAS COMPLEMENTARIAS EN LA CUENCA MATANZA RIACHUELO. | O174: 269-15 | P174: 11 | Q174: 5 | R174: 8 | S174: 6 | T174: 0 | U174: - | V174: - | W174: - | X174: - | Y174: - | Z174: - | AA174: ESTEBAN ECHEVERRÍA | AB174: - | AC174: - | AD174: - | AE174: - | AF174: 0 | AG174: 0 | AH174: 0 | AI174: 101979120.7 | AJ174: 0 | AK174: 0 | AL174: 0 | AM174: - | AN174: 0 | AO174: - | AQ174: - | AR174: - | AS174: - | AT174: - | AU174: - | AV174: 0 | AW174: -
B175: 5617 | C175: 1. ESTADO NACIONAL | D175: 08. URBANIZACIÓN DE VILLAS Y ASENTAMIENTOS URBANOS | E175: COMPLEJO BARRIO NESTOR KIRCHNER | F175: Bº NESTOR KIRCHNER II ETAPA 102 VIV | G175: 2 | H175: 64. MINISTERIO DE OBRAS PÚBLICAS | I175: 354 | J175: MINISTERIO DE DESARROLLO TERRITORIAL Y HABITAT | K175: 46. URBANIZACIÓN DE VILLAS Y ASENTAMIENTOS PRECARIOS. | L175: - | M175: - | N175: 77.VIVIENDAS NUEVAS EN LA CUENCA MATANZA RIACHUELO | O175: 668-15 | P175: 11 | Q175: 5 | R175: 8 | S175: 6 | T175: 0 | U175: - | V175: - | W175: - | X175: - | Y175: - | Z175: - | AA175: LANÚS | AB175: - | AC175: - | AD175: - | AE175: - | AF175: 0 | AG175: 0 | AH175: 0 | AI175: 62446444 | AJ175: 0 | AK175: 0 | AL175: 0 | AM175: - | AN175: 0 | AO175: - | AQ175: - | AR175: - | AS175: - | AT175: - | AU175: - | AV175: 0 | AW175: -
B176: 5620 | C176: 1. ESTADO NACIONAL | D176: 08. URBANIZACIÓN DE VILLAS Y ASENTAMIENTOS URBANOS | E176: COMPLEJO FFMM | F176: PREDIO FFMM INFRA PARA 198 VIV - ETAPA 3 | G176: 2 | H176: 64. MINISTERIO DE OBRAS PÚBLICAS | I176: 325 | J176: MINISTERIO DE DESARROLLO TERRITORIAL Y HABITAT | K176: 71. URBANIZACIÓN DE VILLAS Y ASENTAMIENTOS PRECARIOS. | L176: - | M176: - | N176: 79. INFRAESTRUCTURA, NEXOS Y OBRAS COMPLEMENTARIAS EN LA CUENCA MATANZA RIACHUELO. | O176: 424-15 | P176: 11 | Q176: 5 | R176: 8 | S176: 6 | T176: 0 | U176: - | V176: - | W176: - | X176: - | Y176: - | Z176: - | AA176: LANÚS | AB176: - | AC176: - | AD176: - | AE176: - | AF176: 0 | AG176: 0 | AH176: 0 | AI176: 17114516.36 | AJ176: 14763118.58 | AK176: 0 | AL176: 0 | AM176: - | AN176: 0 | AO176: - | AQ176: - | AR176: - | AS176: - | AT176: EN ANÁLISIS | AU176: 0.3 | AV176: 0.11 | AW176: -
B177: 5622 | C177: 1. ESTADO NACIONAL | D177: 08. URBANIZACIÓN DE VILLAS Y ASENTAMIENTOS URBANOS | E177: COMPLEJO FFMM | F177: PREDIO FFMM 157 VIV + INF - ETAPA 2 | G177: 2 | H177: 64. MINISTERIO DE OBRAS PÚBLICAS | I177: 354 | J177: MINISTERIO DE DESARROLLO TERRITORIAL Y HABITAT | K177: 46. URBANIZACIÓN DE VILLAS Y ASENTAMIENTOS PRECARIOS. | L177: - | M177: - | N177: 79. INFRAESTRUCTURA, NEXOS Y OBRAS COMPLEMENTARIAS EN LA CUENCA MATANZA RIACHUELO. | O177: 449-15 | P177: 11 | Q177: 5 | R177: 8 | S177: 6 | T177: 0 | U177: - | V177: - | W177: - | X177: - | Y177: - | Z177: - | AA177: LANÚS | AB177: - | AC177: - | AD177: - | AE177: - | AF177: 0 | AG177: 0 | AH177: 0 | AI177: 19979473.76 | AJ177: 146827097.4 | AK177: 0 | AL177: 0 | AM177: - | AN177: 0 | AO177: - | AQ177: - | AR177: - | AS177: - | AT177: - | AU177: - | AV177: 0 | AW177: -
B178: 5623 | C178: 1. ESTADO NACIONAL | D178: 08. URBANIZACIÓN DE VILLAS Y ASENTAMIENTOS URBANOS | E178: COMPLEJO BARRIO ACUBA | F178: BARRIO ACUBA 111 VIV + INF | G178: 2 | H178: 64. MINISTERIO DE OBRAS PÚBLICAS | I178: 354 | J178: MINISTERIO DE DESARROLLO TERRITORIAL Y HABITAT | K178: 46. URBANIZACIÓN DE VILLAS Y ASENTAMIENTOS PRECARIOS. | L178: - | M178: - | N178: 77.VIVIENDAS NUEVAS EN LA CUENCA MATANZA RIACHUELO | O178: 422-15 | P178: 11 | Q178: 5 | R178: 8 | S178: 6 | T178: 0 | U178: - | V178: - | W178: - | X178: - | Y178: - | Z178: - | AA178: LANÚS | AB178: - | AC178: - | AD178: - | AE178: - | AF178: 0 | AG178: 0 | AH178: 0 | AI178: 71092196 | AJ178: 52181260.6 | AK178: 0 | AL178: 0 | AM178: - | AN178: 0 | AO178: - | AQ178: - | AR178: - | AS178: - | AT178: - | AU178: - | AV178: 0 | AW178: -
B179: 5625 | C179: 1. ESTADO NACIONAL | D179: 08. URBANIZACIÓN DE VILLAS Y ASENTAMIENTOS URBANOS | E179: COMPLEJO BARRIO ACUBA | F179: BARRIO ACUBA 50 VIV + INF | G179: 2 | H179: 64. MINISTERIO DE OBRAS PÚBLICAS | I179: 325 | J179: MINISTERIO DE DESARROLLO TERRITORIAL Y HABITAT | K179: 71. URBANIZACIÓN DE VILLAS Y ASENTAMIENTOS PRECARIOS. | L179: - | M179: - | N179: 77.VIVIENDAS NUEVAS EN LA CUENCA MATANZA RIACHUELO | O179: 448-15 | P179: 11 | Q179: 5 | R179: 8 | S179: 6 | T179: 0 | U179: - | V179: - | W179: - | X179: - | Y179: - | Z179: - | AA179: LANÚS | AB179: - | AC179: - | AD179: - | AE179: - | AF179: 0 | AG179: 0 | AH179: 0 | AI179: 32429237 | AJ179: 25293151.98 | AK179: 0 | AL179: 0 | AM179: - | AN179: 0 | AO179: - | AQ179: - | AR179: - | AS179: - | AT179: EN ANÁLISIS | AU179: 0.21 | AV179: 0.05 | AW179: -
B180: 5630 | C180: 3. CABA | D180: 12. LIMPIEZA DE MÁRGENES Y CAMINO DE SIRGA | E180: CAMINO DE SIRGA CABA | F180: COSSERVACIÓN DE LA SEÑALIZACIÓN LUMINOSA DE LA CUENCA, CONSIDERANDO LAS DE MAYOR CERCANIA CON EL RIACHUELO Y QUE FAVORECEN A COORDINAR EL TRANSITO EN LA ZONA. | G180: 2 | H180: 30. MINISTERIO DE DESARROLLO URBANO Y TRANSPORTE | I180: - | J180: 0. MINISTERIO DE DESARROLLO URBANO Y TRANSPORTE | K180: 92. SEÑALIZACIÓN LUMINOSA | L180: 0. SEÑALIZACIÓN LUMINOSA | M180: 60. A.CU.MAR - CENTRO DE CONTROL CENTRALIZADO DE TRANSITO | N180: 0. A.CU.MAR - CENTRO DE CONTROL CENTRALIZADO DE TRANSITO | O180: 51. CONSERVACION FUNCIONAMIENTO DE SEÑALES LUMINOSA | P180: 11 | Q180: 4 | R180: 2 | S180: 2 | T180: 0 | U180: 4 | V180: 3 | W180: 4 | X180: 1 | Y180: CONSERVACIÓN DE LA SEÑALIZACIÓN LUMINOSA | Z180: 324. DIRECCIÓN GENERAL DE TRÁNSITO | AA180: CABA | AB180: 4 | AC180: COMUNA 4 | AD180: 2012-02-01 | AE180: 2017-02-28 | AF180: 13468923 | AG180: 0 | AH180: 0 | AI180: 13468923 | AJ180: 33219350.95 | AK180: 88038411.97 | AL180: 0 | AM180: - | AN180: - | AO180: - | AQ180: - | AR180: - | AS180: - | AT180: - | AU180: - | AV180: - | AW180: -
B181: 5634 | C181: 3. CABA | D181: 06. PLAN SANITARIO DE EMERGENCIA | E181: CAMPAÑA DE PREVENCIÓN | F181: CAMPAÑAS DE PREVENCIÓN Y MITIGACIÓN DE RIESGO. CAPACITACIONES Y DISTRIBUCIÓN DE FOLLETERÍA CON PERSONAL PROPIO | G181: 2 | H181: 26. MINISTERIO DE JUSTICIA Y SEGURIDAD | I181: - | J181: 0. MINISTERIO DE JUSTICIA Y SEGURIDAD | K181: 53. PLANIFICACIÓN Y CONTROL DEFENSA CIVIL | L181: 0. PLANIFICACIÓN Y CONTROL DEFENSA CIVIL | M181: 0. PLANIFICACIÓN Y CONTROL DEFENSA CIVIL | N181: 60. ACUMAR | O181: 0. ACUMAR | P181: 11 | Q181: 4 | R181: 3 | S181: 5 | T181: 0 | U181: 2 | V181: 2 | W181: 4 | X181: 1 | Y181: PLANIFICACIÓN Y CONTROL DEFENSA CIVIL | Z181: 153. DIRECCIÓN GENERAL DE DEFENSA CIVIL | AA181: CABA | AB181: 4 | AC181: COMUNA 4 | AD181: - | AE181: - | AF181: 0 | AG181: 0 | AH181: 0 | AI181: 0 | AJ181: 0 | AK181: 0 | AL181: 0 | AM181: - | AN181: - | AO181: - | AQ181: - | AR181: - | AS181: - | AT181: - | AU181: - | AV181: - | AW181: -
B182: 5635 | C182: 3. CABA | D182: 06. PLAN SANITARIO DE EMERGENCIA | E182: CAMPAÑA DE PREVENCIÓN | F182: CAMPAÑAS DE PREVENCIÓN Y MITIGACIÓN DE RIESGO. CAPACITACIONES Y DISTRIBUCIÓN DE FOLLETERÍA CON PERSONAL PROPIO | G182: 2 | H182: 26. MINISTERIO DE JUSTICIA Y SEGURIDAD | I182: - | J182: 0. MINISTERIO DE JUSTICIA Y SEGURIDAD | K182: 53. PLANIFICACIÓN Y CONTROL DEFENSA CIVIL | L182: 0. PLANIFICACIÓN Y CONTROL DEFENSA CIVIL | M182: 0. PLANIFICACIÓN Y CONTROL DEFENSA CIVIL | N182: 60. ACUMAR | O182: 0. ACUMAR | P182: 11 | Q182: 4 | R182: 3 | S182: 5 | T182: 0 | U182: 2 | V182: 2 | W182: 7 | X182: ESPECÍFICA | Y182: PLANIFICACIÓN Y CONTROL DEFENSA CIVIL | Z182: 153. DIRECCIÓN GENERAL DE DEFENSA CIVIL | AA182: CABA | AB182: 7 | AC182: COMUNA 7 | AD182: - | AE182: - | AF182: 0 | AG182: 0 | AH182: 0 | AI182: 0 | AJ182: 0 | AK182: 0 | AL182: 0 | AM182: - | AN182: - | AO182: - | AQ182: - | AR182: - | AS182: - | AT182: - | AU182: - | AV182: - | AW182: -
B183: 5636 | C183: 3. CABA | D183: 06. PLAN SANITARIO DE EMERGENCIA | E183: CAMPAÑA DE PREVENCIÓN | F183: CAMPAÑAS DE PREVENCIÓN Y MITIGACIÓN DE RIESGO. CAPACITACIONES Y DISTRIBUCIÓN DE FOLLETERÍA CON PERSONAL PROPIO | G183: 2 | H183: 26. MINISTERIO DE JUSTICIA Y SEGURIDAD | I183: - | J183: 0. MINISTERIO DE JUSTICIA Y SEGURIDAD | K183: 53. PLANIFICACIÓN Y CONTROL DEFENSA CIVIL | L183: 0. PLANIFICACIÓN Y CONTROL DEFENSA CIVIL | M183: 0. PLANIFICACIÓN Y CONTROL DEFENSA CIVIL | N183: 60. ACUMAR | O183: 0. ACUMAR | P183: 11 | Q183: 4 | R183: 3 | S183: 5 | T183: 0 | U183: 2 | V183: 2 | W183: 8 | X183: ESPECÍFICA | Y183: PLANIFICACIÓN Y CONTROL DEFENSA CIVIL | Z183: 153. DIRECCIÓN GENERAL DE DEFENSA CIVIL | AA183: CABA | AB183: 8 | AC183: COMUNA 8 | AD183: - | AE183: - | AF183: 0 | AG183: 0 | AH183: 0 | AI183: 0 | AJ183: 0 | AK183: 0 | AL183: 0 | AM183: - | AN183: - | AO183: - | AQ183: - | AR183: - | AS183: - | AT183: - | AU183: - | AV183: - | AW183: -
B184: 5637 | C184: 3. CABA | D184: 06. PLAN SANITARIO DE EMERGENCIA | E184: CAMPAÑA DE PREVENCIÓN | F184: CAMPAÑAS DE PREVENCIÓN Y MITIGACIÓN DE RIESGO. CAPACITACIONES Y DISTRIBUCIÓN DE FOLLETERÍA CON PERSONAL PROPIO | G184: 2 | H184: 26. MINISTERIO DE JUSTICIA Y SEGURIDAD | I184: - | J184: 0. MINISTERIO DE JUSTICIA Y SEGURIDAD | K184: 53. PLANIFICACIÓN Y CONTROL DEFENSA CIVIL | L184: 0. PLANIFICACIÓN Y CONTROL DEFENSA CIVIL | M184: 0. PLANIFICACIÓN Y CONTROL DEFENSA CIVIL | N184: 60. ACUMAR | O184: 0. ACUMAR | P184: 11 | Q184: 4 | R184: 3 | S184: 5 | T184: 0 | U184: 2 | V184: 2 | W184: 9 | X184: ESPECÍFICA | Y184: PLANIFICACIÓN Y CONTROL DEFENSA CIVIL | Z184: 153. DIRECCIÓN GENERAL DE DEFENSA CIVIL | AA184: CABA | AB184: 9 | AC184: COMUNA 9 | AD184: - | AE184: - | AF184: 0 | AG184: 0 | AH184: 0 | AI184: 0 | AJ184: 0 | AK184: 0 | AL184: 0 | AM184: - | AN184: - | AO184: - | AQ184: - | AR184: - | AS184: - | AT184: - | AU184: - | AV184: - | AW184: -
B185: 5713 | C185: 3. CABA | D185: 07. MONITOREO DE LA CALIDAD DE AGUA, SEDIMENTOS Y AIRE | E185: ANÁLISIS AMBIENTALES | F185: ANÁLISIS AMBIENTALES | G185: 2 | H185: 35. MINISTERIO DE AMBIENTE Y ESPACIO PÚBLICO | I185: - | J185: 933. AGENCIA DE PROTECCIÓN AMBIENTAL | K185: 95. LABORATORIO DE ANÁLISIS Y CALIDAD AMBIENTAL | L185: 0. LABORATORIO DE ANÁLISIS Y CALIDAD AMBIENTAL | M185: 0. LABORATORIO DE ANALISIS Y CALIDAD AMBIENTAL | N185: 60. AUTORIDAD CUENCA MATANZA RIACHUELO | O185: 0. AUTORIDAD CUENCA MATANZA RIACHUELO | P185: 11 | Q185: 2 | R185: 5 | S185: 9 | T185: 0 | U185: 4 | V185: 4 | W185: 8 | X185: 1 | Y185: LABORATORIO DE ANÁLISIS Y CALIDAD AMBIENTAL | Z185: 8934. DIRECCIÓN GENERAL DE CONTROL | AA185: CABA | AB185: 8 | AC185: COMUNA 8 | AD185: - | AE185: - | AF185: 0 | AG185: 0 | AH185: 0 | AI185: 0 | AJ185: 142283.72 | AK185: 0 | AL185: 0 | AM185: - | AN185: - | AO185: - | AQ185: - | AR185: - | AS185: - | AT185: - | AU185: - | AV185: - | AW185: -
B186: 5724 | C186: 3. CABA | D186: 07. MONITOREO DE LA CALIDAD DE AGUA, SEDIMENTOS Y AIRE | E186: ANÁLISIS AMBIENTALES | F186: ANÁLISIS AMBIENTALES | G186: 2 | H186: 35. MINISTERIO DE AMBIENTE Y ESPACIO PÚBLICO | I186: - | J186: 933. AGENCIA DE PROTECCIÓN AMBIENTAL | K186: 95. LABORATORIO DE ANÁLISIS Y CALIDAD AMBIENTAL | L186: 0. LABORATORIO DE ANÁLISIS Y CALIDAD AMBIENTAL | M186: 0. LABORATORIO DE ANALISIS Y CALIDAD AMBIENTAL | N186: 60. AUTORIDAD CUENCA MATANZA RIACHUELO | O186: 0. AUTORIDAD CUENCA MATANZA RIACHUELO | P186: 11 | Q186: 4 | R186: 3 | S186: 3 | T186: 0 | U186: 4 | V186: 4 | W186: 8 | X186: 1 | Y186: LABORATORIO DE ANÁLISIS Y CALIDAD AMBIENTAL | Z186: 8934. DIRECCIÓN GENERAL DE CONTROL | AA186: CABA | AB186: 8 | AC186: COMUNA 8 | AD186: - | AE186: - | AF186: 0 | AG186: 0 | AH186: 0 | AI186: 0 | AJ186: 671789 | AK186: 0 | AL186: 0 | AM186: - | AN186: - | AO186: - | AQ186: - | AR186: - | AS186: - | AT186: - | AU186: - | AV186: - | AW186: -
B187: 5784 | C187: 3. CABA | D187: 08. URBANIZACIÓN DE VILLAS Y ASENTAMIENTOS URBANOS | E187: COMPLEJO LUZURIAGA | F187: CONSTRUCCIÓN DE VIVIENDAS PARA LOS RESIDENTES DE LOS ASENTAMIENTOS Y VILLAS LOCALIZADAS EN LAS MÁRGENES DE LA CUENCA MATANZA-RIACHUELO | G187: 2 | H187: 21. JEFATURA DE GABINETE DE MINISTROS | I187: - | J187: 219. INSTITUTO PARA LA VIVIENDA | K187: 109. VIVIENDAS CON AHORRO PREVIO | L187: 0. VIVIENDAS CON AHORRO PREVIO | M187: 60. ACUMAR | N187: 0. ACUMAR | O187: 52. LUZURIAGA N° 835 | P187: 12 | Q187: 4 | R187: 2 | S187: 1 | T187: 0 | U187: 3 | V187: 7 | W187: 8 | X187: 1 | Y187: CONSTRUCCIÓN DE VIVIENDAS | Z187: 290. INSTITUTO DE LA VIVIENDA LEY N° 1.251 | AA187: CABA | AB187: 8 | AC187: LUZURIAGA N° 835 | AD187: 2008-01-01 | AE187: 2014-10-01 | AF187: 24205996.4 | AG187: 38438391.47 | AH187: 62644387.87 | AI187: 150000 | AJ187: 360000 | AK187: 216000 | AL187: 0 | AM187: - | AN187: - | AO187: - | AQ187: - | AR187: - | AS187: - | AT187: - | AU187: - | AV187: - | AW187: -
B188: 5788 | C188: 3. CABA | D188: 08. URBANIZACIÓN DE VILLAS Y ASENTAMIENTOS URBANOS | E188: COMPLEJO LACARRA | F188: MUDANZA DE VILLA 26 A COMPLEJO LACARRA | G188: 2 | H188: 21. JEFATURA DE GABINETE DE MINISTROS | I188: - | J188: 219. INSTITUTO PARA LA VIVIENDA | K188: 109. VIVIENDAS CON AHORRO PREVIO | L188: 0. VIVIENDAS CON AHORRO PREVIO | M188: 60. ACUMAR | N188: 0. ACUMAR | O188: 60. OBRAS DE MEJORAMIENTO | P188: 15 | Q188: 3 | R188: 9 | S188: 9 | T188: 0 | U188: 3 | V188: 7 | W188: 4 | X188: 1 | Y188: MEJORAMIENTO | Z188: 290. INSTITUTO DE LA VIVIENDA LEY N° 1.251 | AA188: CABA | AB188: 4 | AC188: 54 FAMILLIAS DE VILLAS 26 | AD188: - | AE188: - | AF188: 1728000 | AG188: 0 | AH188: 0 | AI188: 1728000 | AJ188: 7369160 | AK188: 0 | AL188: 0 | AM188: - | AN188: - | AO188: - | AQ188: - | AR188: - | AS188: - | AT188: - | AU188: - | AV188: - | AW188: -
B189: 7752 | C189: 1. ESTADO NACIONAL | D189: 09. EXPANSIÓN DE LA RED DE AGUA POTABLE Y SANEAMIENTO DE CLOACAS | E189: SISTEMA DE AGUA SUR | F189: RÍO SUBTERRÁNEO TRAMO 1 | G189: 2 | H189: 91. OBLIGACIONES DEL TESORO | I189: 356 | J189: AYSA | K189: 95. ASISTENCIA FINANCIERA A EMPRESAS PÚBLICAS Y ENTE BINACIONAL | L189: 5 | M189: 1464C01 | N189: 77 | O189: - | P189: 22 Y RECURSOS PROPIOS | Q189: 5 | R189: 5 | S189: 7 | T189: 753 | U189: 3 | V189: 8 | W189: 2 | X189: 2 | Y189: SA853000 | Z189: - | AA189: QUILMES - LOMAS DE ZAMORA | AB189: QUILMES / TEMPERLEY | AC189: EL PRIMER TRAMO DEL RÍO SUBTERRÁNEO ABARCA DESDE LA PLANTA BELGRANO (QUILMES), POR LA CALLE LARREA, AV. LAMADRID Y AV. EVA PERÓN HASTA LA ESTACIÓN ELEVADORA UBICADA A LA ALTURA DE LA INTERSECCIÓN DE LA CALLE JOSE NEGLIA Y AV. EVA PERÓN, EN LA LOCALIDAD DE TEMPERLEY, PARTIDO DE LOMAS DE ZAMORA. | AD189: 2017-11-01 | AE189: 2024-08-20 | AF189: 809536809 | AG189: 1178641056 | AH189: 0 | AI189: 1988177865 | AJ189: 34417131.12 | AK189: 21066689.12 | AL189: 624496422.6 | AM189: 397369714.2 | AN189: 213001326.7 | AO189: 1324156891 | AP189: =AN189+AO189 -> 1537158218 | AQ189: 1537158218 | AR189: 3738319804 | AS189: X | AT189: En ejecución | AU189: 0.7028 | AV189: 0.5856 | AW189: EL MONTO VIGENTE CONSIDERA SOLO PARTIDAS CONTRACTUALES. EL AVANCE FÍSICO Y ECONÓMICO ENGLOBA EL TOTAL DE LA OBRA CIVIL Y ELECTROMECÁNICA + RÍO, SEGÚN INFORME DE LA GERENCIA DEL SISTEMA DE AGUA SUR
B190: 5937 | C190: 1. ESTADO NACIONAL | D190: 09. EXPANSIÓN DE LA RED DE AGUA POTABLE Y SANEAMIENTO DE CLOACAS | E190: PLANTA POTABILIZADORA ECHEVERRÍA | F190: PLANTA POTABILIZADORA DE ÓSMOSIS INVERSA MARTÍNEZ MORENO Y LA MORITA - OBRA CIVIL | G190: 2 | H190: 91. OBLIGACIONES DEL TESORO | I190: 356 | J190: AYSA | K190: 95. ASISTENCIA FINANCIERA A EMPRESAS PÚBLICAS Y ENTE BINACIONAL | L190: 5 | M190: 1560502 | N190: 77 | O190: - | P190: 22 Y RECURSOS PROPIOS | Q190: 5 | R190: 5 | S190: 7 | T190: 753 | U190: 3 | V190: 8 | W190: 2 | X190: 2 | Y190: SA7661 | Z190: - | AA190: ESTEBAN ECHEVERRÍA | AB190: MONTE GRANDE | AC190: EL TERRENO SE ENCUENTRA UBICADO EN LA INTERSECCIÓN DE LAS CALLES MAXIMO PAZ Y CATAMARCA, PARTIDO DE ESTEBAN ECHEVERRÍA, REGION SUDOESTE. | AD190: 2016-07-25 | AE190: 2018-10-31 | AF190: 19852427.87 | AG190: 35899310.99 | AH190: 2186233.706 | AI190: 57937972.56 | AJ190: 1822012.543 | AK190: 0 | AL190: 0 | AM190: 0 | AN190: 0 | AO190: 0 | AQ190: - | AR190: - | AS190: - | AT190: FINALIZADO | AU190: 1 | AV190: 0.9978 | AW190: -
B191: 5938 | C191: 1. ESTADO NACIONAL | D191: 09. EXPANSIÓN DE LA RED DE AGUA POTABLE Y SANEAMIENTO DE CLOACAS | E191: PLANTA POTABILIZADORA ECHEVERRÍA | F191: PLANTA POTABILIZADORA DE ÓSMOSIS INVERSA MARTÍNEZ MORENO Y LA MORITA - OBRA ELECTRO | G191: 2 | H191: 91. OBLIGACIONES DEL TESORO | I191: 356 | J191: AYSA | K191: 95. ASISTENCIA FINANCIERA A EMPRESAS PÚBLICAS Y ENTE BINACIONAL | L191: 5 | M191: 1560503 | N191: 77 | O191: - | P191: 22 Y RECURSOS PROPIOS | Q191: 5 | R191: 5 | S191: 7 | T191: 753 | U191: 3 | V191: 8 | W191: 2 | X191: 2 | Y191: SA7662 | Z191: - | AA191: ESTEBAN ECHEVERRÍA | AB191: MONTE GRANDE | AC191: EL TERRENO SE ENCUENTRA UBICADO EN LA INTERSECCIÓN DE LAS CALLES MAXIMO PAZ Y CATAMARCA, PARTIDO DE ESTEBAN ECHEVERRÍA, REGION SUDOESTE. | AD191: 2016-07-25 | AE191: 2018-10-31 | AF191: 40058901.59 | AG191: 34746188.19 | AH191: 2628486.27 | AI191: 77433576.05 | AJ191: 11172663.49 | AK191: 0 | AL191: 0 | AM191: 0 | AN191: 0 | AO191: 0 | AQ191: - | AR191: - | AS191: - | AT191: FINALIZADO | AU191: 1 | AV191: 1 | AW191: -
B192: 5942 | C192: 1. ESTADO NACIONAL | D192: 09. EXPANSIÓN DE LA RED DE AGUA POTABLE Y SANEAMIENTO DE CLOACAS | E192: PLANTA DE TRATAMIENTO BERAZATEGUI | F192: SISTEMA DE INYECCIÓN DE AIRE - EDIFICIO TORNILLOS DE ELEVACIÓN - PLANTA BERAZATEGUI | G192: 2 | H192: 91. OBLIGACIONES DEL TESORO | I192: 356 | J192: AYSA | K192: 95. ASISTENCIA FINANCIERA A EMPRESAS PÚBLICAS Y ENTE BINACIONAL | L192: 5 | M192: 1561601 | N192: 77 | O192: - | P192: 22 Y RECURSOS PROPIOS | Q192: 5 | R192: 5 | S192: 7 | T192: 753 | U192: 3 | V192: 8 | W192: 2 | X192: 2 | Y192: SC70051 | Z192: - | AA192: BERAZATEGUI | AB192: BERAZATEGUI | AC192: EL PREDIO SE ENCUENTRA AL NOROESTE DEL PARTIDO DE BERAZATEGUI, CERCANO AL LÍMITE CON EL PARTIDO DE QUILMES, ENTRE LA AUTOPISTA BUENOS AIRES-LA PLATA Y LA COSTA DEL RÍO DE LA PLATA. | AD192: 2015-10-09 | AE192: 2019-01-18 | AF192: 9080328.489 | AG192: 3854096.603 | AH192: 17122858.4 | AI192: 30057283.5 | AJ192: 4984245.213 | AK192: 10779166.29 | AL192: 0 | AM192: 0 | AN192: 0 | AO192: 0 | AQ192: - | AR192: - | AS192: - | AT192: FINALIZADO | AU192: 0.9999999999 | AV192: 1 | AW192: -
B193: 5943 | C193: 1. ESTADO NACIONAL | D193: 09. EXPANSIÓN DE LA RED DE AGUA POTABLE Y SANEAMIENTO DE CLOACAS | E193: REDES DE AGUA CABA | F193: RENOVACIÓN DE RED SECUNDARIA DE AGUA LINIERS 2 | G193: 2 | H193: 91. OBLIGACIONES DEL TESORO | I193: 356 | J193: AYSA | K193: 95. ASISTENCIA FINANCIERA A EMPRESAS PÚBLICAS Y ENTE BINACIONAL | L193: 5 | M193: 1560703 | N193: 77 | O193: - | P193: 22 Y RECURSOS PROPIOS | Q193: 5 | R193: 5 | S193: 7 | T193: 753 | U193: 3 | V193: 8 | W193: 2 | X193: 2 | Y193: CA70006 | Z193: - | AA193: CABA | AB193: FLORES | AC193: LA RENOVACIÓN SE ENCUENTRA COMPRENDIDA ENTRE LAS CALLES TAPALQUE, CARHUE, GARCIA GRANDE DE ZEQUEIRA Y AV. L. DE LA TORRE, EN EL DISTRITO DE FLORES, DIRECCION REGIONAL CAPITAL FEDERAL | AD193: 2015-08-03 | AE193: 2017-10-31 | AF193: 23591769.88 | AG193: 13765586.1 | AH193: 1164861.291 | AI193: 38522217.27 | AJ193: 2806731.73 | AK193: 0 | AL193: 0 | AM193: 0 | AN193: 0 | AO193: 0 | AQ193: - | AR193: - | AS193: - | AT193: FINALIZADO | AU193: 1 | AV193: 1 | AW193: -
B194: 5944 | C194: 1. ESTADO NACIONAL | D194: 09. EXPANSIÓN DE LA RED DE AGUA POTABLE Y SANEAMIENTO DE CLOACAS | E194: REDES CLOACALES LANÚS | F194: RED CLOACAL BARRIOS ALBARIÑOS SUR Y BALCARCE SUR - CUENCA 2 | G194: 2 | H194: 91. OBLIGACIONES DEL TESORO | I194: 356 | J194: AYSA | K194: 95. ASISTENCIA FINANCIERA A EMPRESAS PÚBLICAS Y ENTE BINACIONAL | L194: 5 | M194: 1560401 | N194: 77 | O194: - | P194: 22 Y RECURSOS PROPIOS | Q194: 5 | R194: 5 | S194: 7 | T194: 753 | U194: 3 | V194: 8 | W194: 2 | X194: 2 | Y194: SC70006 | Z194: - | AA194: LANÚS | AB194: REMEDIOS DE ESCALADA | AC194: LA RED SECUNDARIA CLOACAL SE ENCUENTRA DELIMITADA POR LAS CALLES URIARTE, AVDA. TALLERES, LOS HORNOS, UGARTE, DON ORIONE, HERNANDARIAS, R. FRANCO, PENNA Y ROCA ; ESTA SUPERFICIE ES PARTE DEL ÁREA COMPRENDIDA POR LOS BARRIOS ALBARIÑOS SUR Y BALCARCE SUR, EN EL PARTIDO DE LANÚS. | AD194: 2016-07-12 | AE194: 2019-09-06 | AF194: 86862250.19 | AG194: 59374248.99 | AH194: 4796672.984 | AI194: 151033172.2 | AJ194: 17756233.52 | AK194: 0 | AL194: 0 | AM194: 0 | AN194: 0 | AO194: 0 | AQ194: - | AR194: - | AS194: - | AT194: FINALIZADO | AU194: 1 | AV194: 1 | AW194: -
B195: 7753 | C195: 1. ESTADO NACIONAL | D195: 09. EXPANSIÓN DE LA RED DE AGUA POTABLE Y SANEAMIENTO DE CLOACAS | E195: SISTEMA DE AGUA SUR | F195: RÍO SUBTERRÁNEO TRAMO 1 | G195: 2 | H195: 91. OBLIGACIONES DEL TESORO | I195: 356 | J195: AYSA | K195: 95. ASISTENCIA FINANCIERA A EMPRESAS PÚBLICAS Y ENTE BINACIONAL | L195: 5 | M195: 1464C01 | N195: 77 | O195: - | P195: 22 Y RECURSOS PROPIOS | Q195: 5 | R195: 5 | S195: 7 | T195: 753 | U195: 3 | V195: 8 | W195: 2 | X195: 2 | Y195: SA853000 | Z195: - | AA195: QUILMES - LOMAS DE ZAMORA | AB195: QUILMES / TEMPERLEY | AC195: EL PRIMER TRAMO DEL RÍO SUBTERRÁNEO ABARCA DESDE LA PLANTA BELGRANO (QUILMES), POR LA CALLE LARREA, AV. LAMADRID Y AV. EVA PERÓN HASTA LA ESTACIÓN ELEVADORA UBICADA A LA ALTURA DE LA INTERSECCIÓN DE LA CALLE JOSE NEGLIA Y AV. EVA PERÓN, EN LA LOCALIDAD DE TEMPERLEY, PARTIDO DE LOMAS DE ZAMORA. | AD195: 2017-11-01 | AE195: 2024-08-20 | AF195: 372268751.6 | AG195: 1727572967 | AH195: 0 | AI195: 2099841718 | AJ195: 205281051 | AK195: 212955766.4 | AL195: 496460979.4 | AM195: 3461959128 | AN195: 525408910.5 | AO195: 692155828.8 | AP195: =AN195+AO195 -> 1217564739 | AQ195: 1217564739 | AR195: 106723095.8 | AS195: X | AT195: En ejecución | AU195: 0.7028 | AV195: 0.5856 | AW195: EL MONTO VIGENTE CONSIDERA SOLO PARTIDAS CONTRACTUALES. EL AVANCE FÍSICO Y ECONÓMICO ENGLOBA EL TOTAL DE LA OBRA CIVIL Y ELECTROMECÁNICA + RÍO, SEGÚN INFORME DE LA GERENCIA DEL SISTEMA DE AGUA SUR
B196: 7754 | C196: 1. ESTADO NACIONAL | D196: 09. EXPANSIÓN DE LA RED DE AGUA POTABLE Y SANEAMIENTO DE CLOACAS | E196: SISTEMA DE AGUA SUR | F196: RÍO SUBTERRÁNEO TRAMO 1 | G196: 2 | H196: 64. MINISTERIO DE OBRAS PÚBLICAS | I196: 364 | J196: AYSA | K196: 94. ASISTENCIA FINANCIERA A EMPRESAS PÚBLICAS Y ENTE BINACIONAL | L196: - | M196: 1464C01 | N196: 13 | O196: - | P196: 22 | Q196: 5 | R196: 5 | S196: 7 | T196: 753 | U196: 3 | V196: 8 | W196: 6 | X196: 2 | Y196: SA853000 | Z196: - | AA196: QUILMES - LOMAS DE ZAMORA | AB196: QUILMES / TEMPERLEY | AC196: EL PRIMER TRAMO DEL RÍO SUBTERRÁNEO ABARCA DESDE LA PLANTA BELGRANO (QUILMES), POR LA CALLE LARREA, AV. LAMADRID Y AV. EVA PERÓN HASTA LA ESTACIÓN ELEVADORA UBICADA A LA ALTURA DE LA INTERSECCIÓN DE LA CALLE JOSE NEGLIA Y AV. EVA PERÓN, EN LA LOCALIDAD DE TEMPERLEY, PARTIDO DE LOMAS DE ZAMORA. | AD196: 2017-11-01 | AE196: 2024-08-20 | AF196: 1772708341 | AG196: 9601763072 | AH196: 0 | AI196: 1.137447141e+10 | AJ196: 977528814.3 | AK196: 1014075078 | AL196: 2364099902 | AM196: 9989646262 | AN196: 2501947193 | AO196: 3295980137 | AP196: =AN196+AO196 -> 5797927330 | AQ196: 5797927330 | AR196: 508205218.1 | AS196: X | AT196: En ejecución | AU196: 0.7028 | AV196: 0.5856 | AW196: EL MONTO VIGENTE CONSIDERA SOLO PARTIDAS CONTRACTUALES. EL AVANCE FÍSICO Y ECONÓMICO ENGLOBA EL TOTAL DE LA OBRA CIVIL Y ELECTROMECÁNICA + RÍO, SEGÚN INFORME DE LA GERENCIA DEL SISTEMA DE AGUA SUR
B197: 5967 | C197: 1. ESTADO NACIONAL | D197: 09. EXPANSIÓN DE LA RED DE AGUA POTABLE Y SANEAMIENTO DE CLOACAS | E197: REDES DE AGUA ESTEBAN ECHEVERRÍA | F197: REPOTENCIACION CENTRO DE MEZCLA 9 DE ABRIL. OBRA CIVIL | G197: 2 | H197: 64. MINISTERIO DE OBRAS PÚBLICAS | I197: 364 | J197: AYSA | K197: 94. ASISTENCIA FINANCIERA A EMPRESAS PÚBLICAS Y ENTE BINACIONAL | L197: - | M197: 1460C09 | N197: 79 | O197: - | P197: 22 | Q197: 5 | R197: 5 | S197: 7 | T197: 753 | U197: 3 | V197: 8 | W197: 6 | X197: 2 | Y197: UAE00110 | Z197: - | AA197: ESTEBAN ECHEVERRÍA | AB197: 9 DE ABRIL | AC197: S/D | AD197: 2015-12-18 | AE197: 2017-12-30 | AF197: 9150554.68 | AG197: 157375.69 | AH197: 0 | AI197: 9307930.37 | AJ197: 5759.82 | AK197: 0 | AL197: 0 | AM197: 0 | AN197: 0 | AO197: 0 | AQ197: - | AR197: - | AS197: - | AT197: FINALIZADO | AU197: 1 | AV197: 1 | AW197: MONTO VIGENTE Y GRADO DE AVANCE ECONÓMICO, SE CONSIDERAN SOLO PARTIDAS CONTRACTUALES
B198: 5968 | C198: 1. ESTADO NACIONAL | D198: 09. EXPANSIÓN DE LA RED DE AGUA POTABLE Y SANEAMIENTO DE CLOACAS | E198: REDES DE AGUA ESTEBAN ECHEVERRÍA | F198: REPOTENCIACION CENTRO DE MEZCLA 9 DE ABRIL. OBRA CIVIL | G198: 2 | H198: 91. OBLIGACIONES DEL TESORO | I198: 356 | J198: AYSA | K198: 95. ASISTENCIA FINANCIERA A EMPRESAS PÚBLICAS Y ENTE BINACIONAL | L198: 5 | M198: 1460C09 | N198: 77 | O198: - | P198: 22 Y RECURSOS PROPIOS | Q198: 5 | R198: 5 | S198: 7 | T198: 753 | U198: 3 | V198: 8 | W198: 2 | X198: 2 | Y198: UAE00110 | Z198: - | AA198: ESTEBAN ECHEVERRÍA | AB198: 9 DE ABRIL | AC198: S/D | AD198: 2015-12-18 | AE198: 2017-12-30 | AF198: 1921616.483 | AG198: 33048.8949 | AH198: 0 | AI198: 1954665.378 | AJ198: 1209.5622 | AK198: 0 | AL198: 0 | AM198: 0 | AN198: 0 | AO198: 0 | AQ198: - | AR198: - | AS198: - | AT198: FINALIZADO | AU198: 1 | AV198: 1 | AW198: MONTO VIGENTE Y GRADO DE AVANCE ECONÓMICO, SE CONSIDERAN SOLO PARTIDAS CONTRACTUALES.
B199: 5969 | C199: 1. ESTADO NACIONAL | D199: 09. EXPANSIÓN DE LA RED DE AGUA POTABLE Y SANEAMIENTO DE CLOACAS | E199: REDES DE AGUA ESTEBAN ECHEVERRÍA | F199: REPOTENCIACION CENTRO DE MEZCLA 9 DE ABRIL. OBRA CIVIL | G199: 2 | H199: 91. OBLIGACIONES DEL TESORO | I199: 356 | J199: AYSA | K199: 95. ASISTENCIA FINANCIERA A EMPRESAS PÚBLICAS Y ENTE BINACIONAL | L199: 5 | M199: 1460C09 | N199: 77 | O199: - | P199: 22 Y RECURSOS PROPIOS | Q199: 5 | R199: 5 | S199: 7 | T199: 753 | U199: 3 | V199: 8 | W199: 2 | X199: 2 | Y199: UAE00110 | Z199: - | AA199: ESTEBAN ECHEVERRÍA | AB199: 9 DE ABRIL | AC199: S/D | AD199: 2015-12-18 | AE199: 2017-12-30 | AF199: 137258.32 | AG199: 7702303.012 | AH199: 0 | AI199: 7839561.332 | AJ199: 150971.5427 | AK199: 0 | AL199: 0 | AM199: 0 | AN199: 0 | AO199: 0 | AQ199: - | AR199: - | AS199: - | AT199: FINALIZADO | AU199: 1 | AV199: 1 | AW199: MONTO VIGENTE Y GRADO DE AVANCE ECONÓMICO, SE CONSIDERAN SOLO PARTIDAS CONTRACTUALES.
B200: 5972 | C200: 1. ESTADO NACIONAL | D200: 09. EXPANSIÓN DE LA RED DE AGUA POTABLE Y SANEAMIENTO DE CLOACAS | E200: REDES DE AGUA ESTEBAN ECHEVERRÍA | F200: REPOTENCIACION CENTRO DE MEZCLA 9 DE ABRIL. OBRA ELECTROMECANICA | G200: 2 | H200: 91. OBLIGACIONES DEL TESORO | I200: 356 | J200: AYSA | K200: 95. ASISTENCIA FINANCIERA A EMPRESAS PÚBLICAS Y ENTE BINACIONAL | L200: 5 | M200: 1460C10 | N200: 77 | O200: - | P200: 22 Y RECURSOS PROPIOS | Q200: 5 | R200: 5 | S200: 7 | T200: 753 | U200: 3 | V200: 8 | W200: 2 | X200: 2 | Y200: UAE00120 | Z200: - | AA200: ESTEBAN ECHEVERRÍA | AB200: 9 DE ABRIL | AC200: S/D | AD200: 2016-10-18 | AE200: 2017-12-30 | AF200: 654039.96 | AG200: 32182957.28 | AH200: 0 | AI200: 32836997.24 | AJ200: 3826017.314 | AK200: 515473.4431 | AL200: 0 | AM200: 0 | AN200: 0 | AO200: 0 | AQ200: - | AR200: - | AS200: - | AT200: FINALIZADO | AU200: 1 | AV200: 1 | AW200: MONTO VIGENTE Y GRADO DE AVANCE ECONÓMICO, SE CONSIDERAN SOLO PARTIDAS CONTRACTUALES.
B201: 5983 | C201: 1. ESTADO NACIONAL | D201: 09. EXPANSIÓN DE LA RED DE AGUA POTABLE Y SANEAMIENTO DE CLOACAS | E201: SISTEMA LA LATA- ESTEBAN ECHEVERRIA | F201: PLANTA POTABILIZADORA POR SISTEMA DE OSMOSIS INVERSA LA LATA ETAPA 1 - OBRA ELECTROMECANICA | G201: 2 | H201: 91. OBLIGACIONES DEL TESORO | I201: 356 | J201: AYSA | K201: 95. ASISTENCIA FINANCIERA A EMPRESAS PÚBLICAS Y ENTE BINACIONAL | L201: 5 | M201: 1060C42 | N201: 5 | O201: - | P201: 11 | Q201: 5 | R201: 5 | S201: 7 | T201: 753 | U201: 3 | V201: 8 | W201: 96 | X201: 2 | Y201: RP380020 | Z201: - | AA201: ESTEBAN ECHEVERRÍA | AB201: MONTE GRANDE | AC201: EL PREDIO ESTÁ UBICADO EN LA CALLE COLÓN S/N°, ESQUINA MAIPÚ. | AD201: 2011-03-01 | AE201: 2016-07-29 | AF201: 2498325.97 | AG201: 7316272.18 | AH201: 0 | AI201: 9814598.15 | AJ201: -501977.3693 | AK201: 0 | AL201: 0 | AM201: 0 | AN201: 0 | AO201: 0 | AQ201: - | AR201: - | AS201: - | AT201: FINALIZADO | AU201: 1 | AV201: 1 | AW201: MONTO VIGENTE Y GRADO DE AVANCE ECONÓMICO, SE CONSIDERAN SOLO PARTIDAS CONTRACTUALES
B202: 7755 | C202: 1. ESTADO NACIONAL | D202: 09. EXPANSIÓN DE LA RED DE AGUA POTABLE Y SANEAMIENTO DE CLOACAS | E202: SISTEMA AGUA LOMAS DE ZAMORA | F202: ESTACION ELEVADORA DE AGUA TRAMO 1 O. CIVIL | G202: 2 | H202: 91. OBLIGACIONES DEL TESORO | I202: 356 | J202: AYSA | K202: 95. ASISTENCIA FINANCIERA A EMPRESAS PÚBLICAS Y ENTE BINACIONAL | L202: 5 | M202: 1464C02 | N202: 5 | O202: - | P202: 11 | Q202: 5 | R202: 5 | S202: 7 | T202: 753 | U202: 3 | V202: 8 | W202: 96 | X202: 2 | Y202: SA864010 | Z202: - | AA202: LOMAS DE ZAMORA | AB202: TÉMPERLEY | AC202: INTERSECCIÓN DE LA CALLE JOSE NEGLIA Y AV. EVA PERÓN, EN LA LOCALIDAD DE TEMPERLEY, PARTIDO DE LOMAS DE ZAMORA. | AD202: 2017-11-01 | AE202: 2024-08-20 | AF202: 26885763.06 | AG202: 56010878.84 | AH202: 0 | AI202: 82896641.9 | AJ202: 9952.7219 | AK202: 38994.8273 | AL202: 72025.0201 | AM202: 18625656.16 | AN202: 0 | AO202: 80919113.56 | AP202: =AN202+AO202 -> 80919113.56 | AQ202: 80919113.56 | AR202: 246171851.6 | AS202: X | AT202: En ejecución | AU202: 0.7028 | AV202: 0.5856 | AW202: EL MONTO VIGENTE CONSIDERA SOLO PARTIDAS CONTRACTUALES. EL AVANCE FÍSICO Y ECONÓMICO ENGLOBA EL TOTAL DE LA OBRA CIVIL Y ELECTROMECÁNICA + RÍO, SEGÚN INFORME DE LA GERENCIA DEL SISTEMA DE AGUA SUR
... 923 more rows

Sheet Hoja4 (hidden)

Sheet Hoja1 (hidden)
E3: Obras informadas | F3: Obras quitadas | G3: Obras con ejecución
D4: VIALIDAD | E4: 8 | F4: 0 | G4: 2
D5: ENOHSA | E5: 4 | F5: 0 | G5: 2
D6: UNIDAD C. | E6: 10 | F6: 0 | G6: 4
D7: BIRF 7706 | E7: 17 | F7: 0 | G7: 13
D8: HÍDRICOS | E8: 6 | F8: 0 | G8: 6
D9: VIVIENDA | E9: 111 | F9: 0 | G9: 23
D10: HABITAT | E10: 44 | F10: 0 | G10: 22
D11: AYSA | E11: 185 | F11: 181 | H11: 4 a revisar
D12: CABA | E12: 118 | F12: 117 | H12: 7809
D13: PBA | E13: 113

Sheet CLASIFICACIÓN MANUAL (hidden)
C1: CLASIFICACIÓN
A2: 01. SISTEMA DE INDICADORES | B2: FORTALECIMIENTO DEL SISTEMA DE INDICADORES DE ACUMAR | C2: SERVICIO
A3: 02. SISTEMA DE INFORMACIÓN PÚBLICA | B3: FORTALECIMIENTO DEL SISTEMA DE INFORMACIÓN PÚBLICA DE ACUMAR | C3: SERVICIO
A4: 03. FORTALECIMIENTO INSTITUCIONAL | B4: FORTALECIMIENTO INSTITUCIONAL DE ACUMAR | C4: SERVICIO
A5: 04. ORDENAMIENTO TERRITORIAL | B5: GENERACIÓN DE ESPACIOS VERDES | C5: OBRA
A6: 04. ORDENAMIENTO TERRITORIAL | B6: OBRAS VIALES ESTRATÉGICAS | C6: OBRA
A7: 04. ORDENAMIENTO TERRITORIAL | B7: ACCIONES EN ÁREAS DE ESPECIAL MANEJO | C7: OBRA
A8: 05. EDUCACIÓN AMBIENTAL | B8: CAMPAÑA DE EDUCACIÓN AMBIENTAL | C8: ACTIVIDAD
A9: 05. EDUCACIÓN AMBIENTAL | B9: CAPACITACIÓN EN EDUCACIÓN AMBIENTAL | C9: ACTIVIDAD
A10: 05. EDUCACIÓN AMBIENTAL | B10: NUEVO CENTRO EDUCATIVO | C10: OBRA
A11: 06. PLAN SANITARIO DE EMERGENCIA | B11: NUEVO EFECTOR DE SALUD | C11: OBRA
A12: 06. PLAN SANITARIO DE EMERGENCIA | B12: MEJORA EN EFECTOR DE SALUD | C12: OBRA
A13: 06. PLAN SANITARIO DE EMERGENCIA | B13: EQUIPAMIENTO PARA EFECTOR DE SALUD | C13: ACTIVIDAD
A14: 06. PLAN SANITARIO DE EMERGENCIA | B14: CAMPAÑA DE PREVENCIÓN | C14: ACTIVIDAD
A15: 06. PLAN SANITARIO DE EMERGENCIA | B15: CAMPAÑA DE VACUNACIÓN | C15: ACTIVIDAD
A16: 06. PLAN SANITARIO DE EMERGENCIA | B16: CAPACITACIÓN EN SALUD AMBIENTAL | C16: ACTIVIDAD
A17: 07. MONITOREO DE LA CALIDAD DE AGUA, SEDIMENTOS Y AIRE | B17: MONITOREO DE CALIDAD DE AGUA Y SEDIMENTOS | C17: ACTIVIDAD
A18: 07. MONITOREO DE LA CALIDAD DE AGUA, SEDIMENTOS Y AIRE | B18: MONITOREO DE CALIDAD DE AIRE | C18: ACTIVIDAD
A19: 07. MONITOREO DE LA CALIDAD DE AGUA, SEDIMENTOS Y AIRE | B19: ESTUDIOS Y EVALUACIONES AMBIENTALES | C19: ACTIVIDAD
A20: 08. URBANIZACIÓN DE VILLAS Y ASENTAMIENTOS URBANOS | B20: VIVIENDAS NUEVAS | C20: OBRA
A21: 08. URBANIZACIÓN DE VILLAS Y ASENTAMIENTOS URBANOS | B21: MEJORAMIENTOS DE VIVIENDA EXISTENTE | C21: OBRA
A22: 08. URBANIZACIÓN DE VILLAS Y ASENTAMIENTOS URBANOS | B22: INFRAESTRUCTURA DE SERVICIOS BÁSICOS | C22: OBRA
A23: 08. URBANIZACIÓN DE VILLAS Y ASENTAMIENTOS URBANOS | B23: CONEXIONES INTRADOMICILIARIAS EN VILLAS Y ASENTAMIENTOS | C23: OBRA
A24: 08. URBANIZACIÓN DE VILLAS Y ASENTAMIENTOS URBANOS | B24: CARACTERIZACIÓN Y REMEDIACIÓN DE SUELO | C24: ACTIVIDAD
A25: 08. URBANIZACIÓN DE VILLAS Y ASENTAMIENTOS URBANOS | B25: RED VIAL Y PEATONAL | C25: OBRA
A26: 08. URBANIZACIÓN DE VILLAS Y ASENTAMIENTOS URBANOS | B26: EQUIPAMIENTO COMUNITARIO | C26: OBRA
A27: 08. URBANIZACIÓN DE VILLAS Y ASENTAMIENTOS URBANOS | B27: REGULARIZACIÓN DOMINIAL | C27: ACTIVIDAD
A28: 08. URBANIZACIÓN DE VILLAS Y ASENTAMIENTOS URBANOS | B28: ADQUISICIÓN DE SUELO PARA PROYECTOS DE VIVIENDA Y HÁBITAT | C28: ACTIVIDAD
A29: 08. URBANIZACIÓN DE VILLAS Y ASENTAMIENTOS URBANOS | B29: FINANCIAMIENTO PARA ADQUISICIÓN DE VIVIENDA | C29: SERVICIO
A30: 09. EXPANSIÓN DE LA RED DE AGUA POTABLE Y SANEAMIENTO DE CLOACAS | B30: EXPANSIÓN DE REDES | C30: OBRA
A31: 09. EXPANSIÓN DE LA RED DE AGUA POTABLE Y SANEAMIENTO DE CLOACAS | B31: MEJORA Y MANTENIMIENTO | C31: ACTIVIDAD
A32: 09. EXPANSIÓN DE LA RED DE AGUA POTABLE Y SANEAMIENTO DE CLOACAS | B32: GRANDES OBRAS DE INFRAESTRUCTURA | C32: OBRA
A33: 09. EXPANSIÓN DE LA RED DE AGUA POTABLE Y SANEAMIENTO DE CLOACAS | B33: CONEXIONES INTRADOMICILIARIAS | C33: OBRA
A34: 10. DESAGÜES PLUVIALES | B34: DESAGÜES PLUVIALES | C34: OBRA
A35: 10. DESAGÜES PLUVIALES | B35: CANALIZACIÓN | C35: OBRA
A36: 10. DESAGÜES PLUVIALES | B36: ENTUBAMIENTOS | C36: OBRA
A37: 10. DESAGÜES PLUVIALES | B37: RESERVORIOS | C37: OBRA
A38: 10. DESAGÜES PLUVIALES | B38: DRAGADO | C38: ACTIVIDAD
A39: 10. DESAGÜES PLUVIALES | B39: SUMIDEROS | C39: OBRA
A40: 10. DESAGÜES PLUVIALES | B40: ESTACIONES DE BOMBEO | C40: OBRA
A41: 10. DESAGÜES PLUVIALES | B41: LIMPIEZA Y MANTENIMIENTO DE CANALES Y LAGUNAS | C41: ACTIVIDAD
A42: 11. CONTAMINACIÓN DE ORIGEN INDUSTRIAL | B42: INSPECCIONES | C42: ACTIVIDAD
A43: 11. CONTAMINACIÓN DE ORIGEN INDUSTRIAL | B43: TOMAS DE MUESTRAS | C43: ACTIVIDAD
A44: 11. CONTAMINACIÓN DE ORIGEN INDUSTRIAL | B44: ESTUDIOS Y EVALUACIONES AMBIENTALES | C44: ACTIVIDAD
A45: 11. CONTAMINACIÓN DE ORIGEN INDUSTRIAL | B45: OBRAS ESTRATÉGICAS EN PREDIO ACUBA | C45: OBRA
A46: 12. LIMPIEZA DE MÁRGENES Y CAMINO DE SIRGA | B46: LIMPIEZA DE MÁRGENES Y ARROYOS | C46: ACTIVIDAD
A47: 12. LIMPIEZA DE MÁRGENES Y CAMINO DE SIRGA | B47: DESINFECCIÓN Y DESRATIZACIÓN | C47: ACTIVIDAD
A48: 12. LIMPIEZA DE MÁRGENES Y CAMINO DE SIRGA | B48: RED VIAL | C48: OBRA
A49: 12. LIMPIEZA DE MÁRGENES Y CAMINO DE SIRGA | B49: PARQUIZACIÓN | C49: OBRA
A50: 12. LIMPIEZA DE MÁRGENES Y CAMINO DE SIRGA | B50: ALUMBRADO PÚBLICO | C50: OBRA
A51: 12. LIMPIEZA DE MÁRGENES Y CAMINO DE SIRGA | B51: SEMAFORIZACIÓN | C51: OBRA
A52: 13. SANEAMIENTO DE BASURALES | B52: RECOLECCIÓN DE RESIDUOS | C52: ACTIVIDAD
A53: 13. SANEAMIENTO DE BASURALES | B53: LIMPIEZA DE BASURALES | C53: ACTIVIDAD
A54: 13. SANEAMIENTO DE BASURALES | B54: NUEVA PLANTA DE TRATAMIENTO DE RESIDUOS | C54: OBRA
A55: 13. SANEAMIENTO DE BASURALES | B55: MEJORAMIENTO EN PLANTA DE TRATAMIENTO DE RESIDUOS | C55: OBRA
A56: 13. SANEAMIENTO DE BASURALES | B56: ESTACIONES DE RECICLADO | C56: OBRA
A57: 13. SANEAMIENTO DE BASURALES | B57: DESINFECCIÓN Y DESRATIZACIÓN | C57: ACTIVIDAD
A58: 14. PROGRAMA POLO PETROQUÍMICO DOCK SUD | B58: BALIZAMIENTO | C58: ACTIVIDAD
A59: 14. PROGRAMA POLO PETROQUÍMICO DOCK SUD | B59: DRAGADO | C59: ACTIVIDAD
A60: 14. PROGRAMA POLO PETROQUÍMICO DOCK SUD | B60: RED VIAL EN POLO DOCK SUD | C60: OBRA
A61: 14. PROGRAMA POLO PETROQUÍMICO DOCK SUD | B61: ALUMBRADO PÚBLICO | C61: OBRA
A62: 14. PROGRAMA POLO PETROQUÍMICO DOCK SUD | B62: SANEAMIENTO | C62: OBRA

Sheet Resumen por LA (hidden)
B4: LINEA DE ACCIÓN
B5: 03. FORTALECIMIENTO INSTITUCIONAL
B6: 02. SISTEMA DE INFORMACIÓN
B7: SISTEMA DE INFORMACIÓN PÚBLICA
B8: SISTEMA DE INFORMACIÓN PÚBLICA
B9: SERVICIO DE MONITOREO DE MEDIOS.-
B10: 03. FORTALECIMIENTO INSTITUCIONAL
B11: 04. ORDENAMIENTO TERRITORIAL
B12: 05. EDUCACIÓN AMBIENTAL
B13: 06. PLAN SANITARIO DE EMERGENCIA
B14: 07. MONITOREO DE LA CALIDAD DE AGUA, SEDIMENTOS Y AIRE
B15: 08. URBANIZACIÓN DE VILLAS Y ASENTAMIENTOS URBANOS
B16: 09. EXPANSIÓN DE LA RED DE AGUA POTABLE Y SANEAMIENTO DE CLOACAS
B17: 10. DESAGÜES PLUVIALES
B18: 11. CONTAMINACIÓN DE ORIGEN INDUSTRIAL
B19: 12. LIMPIEZA DE MÁRGENES Y CAMINO DE SIRGA
B20: 13. SANEAMIENTO DE BASURALES
B21: Total general
